Workbook

Sheet GAMEstage1
AF2: Selected piece | AL2: BODY
AO6: btb | AS6: btb | AV6: btb
AP7: btb | AR7: btb | AU7: btb
BE8: Sales&Marketing estimation of customer's needs
AO9: tb | AP9: tb | AR9: sb | BF9: Minimum | BG9: Maximum
BE10: Range of passengers
BE11: Speed
AL12: WING | BE12: Km of Travel
BE13: Lenght
BE14: Wing Span
BE15: Cost
AO16: btw | AQ16: btw | AU16: btw | BE16: Delivery time to customer (sec)
AN17: btw | AR17: btw | AT17: btw
AO19: sw | AQ19: tw | AR19: tw | AT19: tw | AU19: tw
AL22: TAIL
AS26: btt | AU26: btt
BE27: TIME TO FINISH THE DESIGN
AN28: btt | AP28: btt | AR28: tt | AT28: tt | AV28: st
AL31: COCKPIT
AS35: btc | AU35: btc
AN37: btc | AP37: btc | AR37: tc | AT37: tc | AV37: sc
B38: Pieces
AL40: ENGINES
AR43: e
F44: Without | K44: With | P44: Without | U44: With | Z44: Without | AE44: With
F45: passengers | K45: passengers | P45: passengers | U45: passengers | Z45: passengers | AE45: passengers
B47: Capacity | F47: 0 | K47: 3 | P47: 0 | U47: 1 | Z47: 0 | AE47: 1 | AJ47: ------
B49: Power | AJ49: 500
B51: Weight | F51: 10 | K51: 11.5 | P51: 5 | U51: 6 | Z51: 10 | AE51: 11 | AJ51: 50
B53: Cost | F53: 100 | K53: 130 | P53: 60 | U53: 70 | Z53: 60 | AE53: 170 | AJ53: 500

Sheet GAMEstage2
AF2: Selected piece | AL2: BODY
AO6: btb | AS6: btb | AV6: btb
AP7: btb | AR7: btb | AU7: btb
BE8: Estimation of customer needs
AO9: tb | AP9: tb | AR9: sb | BF9: Minimum | BG9: Maximum
BE10: Range of passengers
BE11: Speed
AL12: WING | BE12: Km of Travel
BE13: Lenght
BE14: Wing Span
BE15: Cost
AO16: btw | AQ16: btw | AU16: btw | BE16: Delivery time to customer
AN17: btw | AR17: btw | AT17: btw
AO19: sw | AQ19: tw | AR19: tw | AT19: tw | AU19: tw
AL22: TAIL
AS26: btt | AU26: btt
AN28: btt | AP28: btt | AR28: tt | AT28: tt | AV28: st
AL31: COCKPIT
AS35: btc | AU35: btc
AN37: btc | AP37: btc | AR37: tc | AT37: tc | AV37: sc
B38: Pieces
AL40: ENGINES
AR43: e
F44: Without | K44: With | P44: Without | U44: With | Z44: Without | AE44: With
F45: passengers | K45: passengers | P45: passengers | U45: passengers | Z45: passengers | AE45: passengers
BE46: TIME TO FINISH THE DESIGN
B47: Capacity | F47: 0 | K47: 3 | P47: 0 | U47: 1 | Z47: 0 | AE47: 1 | AJ47: ------
B49: Power | AJ49: 500
B51: Weight | F51: 10 | K51: 11.5 | P51: 5 | U51: 6 | Z51: 10 | AE51: 11 | AJ51: 50
B53: Cost | F53: 100 | K53: 130 | P53: 60 | U53: 70 | Z53: 60 | AE53: 170 | AJ53: 500

Sheet Guest-Supplier2
F44: Without | K44: With | P44: Without | U44: With | Z44: Without | AE44: With
F45: passengers | K45: passengers | P45: passengers | U45: passengers | Z45: passengers | AE45: passengers
B47: Capacity | F47: 0 | K47: 3 | P47: 0 | U47: 1 | Z47: 0 | AE47: 1 | AJ47: ------
B49: Power | AJ49: 500
B51: Weight | F51: 10 | K51: 11.5 | P51: 5 | U51: 6 | Z51: 10 | AE51: 11 | AJ51: 50
B53: Cost | F53: 100 | K53: 130 | P53: 60 | U53: 70 | Z53: 60 | AE53: 170 | AJ53: 500

Sheet Guest-Supplier
F44: Without | K44: With | P44: Without | U44: With | Z44: Without | AE44: With
F45: passengers | K45: passengers | P45: passengers | U45: passengers | Z45: passengers | AE45: passengers
B47: Capacity | F47: 0 | K47: 3 | P47: 0 | U47: 1 | Z47: 0 | AE47: 1 | AJ47: ------
B49: Power | AJ49: 500
B51: Weight | F51: 10 | K51: 11.5 | P51: 5 | U51: 6 | Z51: 10 | AE51: 11 | AJ51: 50
B53: Cost | F53: 100 | K53: 130 | P53: 60 | U53: 70 | Z53: 60 | AF53: 170 | AJ53: 500
B55: Time to
B56: arrive
B57: from | F57: 10 sec | K57: 12 sec | P57: 15 sec | U57: 17 sec | Z57: 30 sec | AE57: 40 sec | AJ57: 300
B58: the | AJ58: sec
B59: supplier
B61: Time of
B62: assembly | F62: 4sec | K62: 4 sec | P62: 6 sec | U62: 6 sec | Z62: 3 sec | AE62: 3 sec | AJ62: 20 sec

Sheet Simetría
B1: =GAMEstage1!B2 -> 0 | C1: =GAMEstage1!C2 -> 0 | D1: =GAMEstage1!D2 -> 0 | E1: =GAMEstage1!E2 -> 0 | F1: =GAMEstage1!F2 -> 0 | G1: =GAMEstage1!G2 -> 0 | H1: =GAMEstage1!H2 -> 0 | I1: =GAMEstage1!I2 -> 0 | J1: =GAMEstage1!J2 -> 0 | K1: =GAMEstage1!K2 -> 0 | L1: =GAMEstage1!L2 -> 0 | M1: =GAMEstage1!M2 -> 0 | N1: =GAMEstage1!N2 -> 0 | O1: =GAMEstage1!O2 -> 0 | P1: =GAMEstage1!P2 -> 0 | Q1: =P1 -> 0 | R1: =O1 -> 0 | S1: =N1 -> 0 | T1: =M1 -> 0 | U1: =L1 -> 0 | V1: =K1 -> 0 | W1: =J1 -> 0 | X1: =I1 -> 0 | Y1: =H1 -> 0 | Z1: =G1 -> 0 | AA1: =F1 -> 0 | AB1: =E1 -> 0 | AC1: =D1 -> 0 | AD1: =C1 -> 0 | AE1: =B1 -> 0 | AN1: There is Nothing | AP1: =IF(B1=0,0,1) -> 0 | AQ1: =IF(C1=0,0,1) -> 0 | AR1: 0 | AS1: 0 | AT1: 0 | AU1: 0 | AV1: 0 | AW1: 0 | AX1: 0 | AY1: 0 | AZ1: 0 | BA1: 0 | BB1: 0 | BC1: 0 | BD1: =IF(P1=0,0,1) -> 0 | BE1: 0 | BF1: 0 | BG1: 0 | BH1: 0 | BI1: 0 | BJ1: 0 | BK1: 0 | BL1: 0 | BM1: 0 | BN1: 0 | BO1: 0 | BP1: 0 | BQ1: 0 | BR1: 0 | BS1: 0
B2: =GAMEstage1!B3 -> 0 | C2: =GAMEstage1!C3 -> 0 | D2: =GAMEstage1!D3 -> 0 | E2: =GAMEstage1!E3 -> 0 | F2: =GAMEstage1!F3 -> 0 | G2: =GAMEstage1!G3 -> 0 | H2: =GAMEstage1!H3 -> 0 | I2: =GAMEstage1!I3 -> 0 | J2: =GAMEstage1!J3 -> 0 | K2: =GAMEstage1!K3 -> 0 | L2: =GAMEstage1!L3 -> 0 | M2: =GAMEstage1!M3 -> 0 | N2: =GAMEstage1!N3 -> 0 | O2: =GAMEstage1!O3 -> 0 | P2: =GAMEstage1!P3 -> 0 | Q2: =P2 -> 0 | R2: =O2 -> 0 | S2: =N2 -> 0 | T2: =M2 -> 0 | U2: =L2 -> 0 | V2: =K2 -> 0 | W2: =J2 -> 0 | X2: =I2 -> 0 | Y2: =H2 -> 0 | Z2: =G2 -> 0 | AA2: =F2 -> 0 | AB2: =E2 -> 0 | AC2: =D2 -> 0 | AD2: =C2 -> 0 | AE2: =B2 -> 0 | AP2: =IF(B2=0,0,1) -> 0 | AQ2: =IF(C2=0,0,1) -> 0 | AR2: =IF(D2=0,0,1) -> 0 | AS2: =IF(E2=0,0,1) -> 0 | AT2: =IF(F2=0,0,1) -> 0 | AU2: =IF(G2=0,0,1) -> 0 | AV2: =IF(H2=0,0,1) -> 0 | AW2: =IF(I2=0,0,1) -> 0 | AX2: =IF(J2=0,0,1) -> 0 | AY2: =IF(K2=0,0,1) -> 0 | AZ2: =IF(L2=0,0,1) -> 0 | BA2: =IF(M2=0,0,1) -> 0 | BB2: =IF(N2=0,0,1) -> 0 | BC2: =IF(O2=0,0,1) -> 0 | BD2: =IF(P2=0,0,1) -> 0 | BE2: =IF(Q2=0,0,1) -> 0 | BF2: =IF(R2=0,0,1) -> 0 | BG2: =IF(S2=0,0,1) -> 0 | BH2: =IF(T2=0,0,1) -> 0 | BI2: =IF(U2=0,0,1) -> 0 | BJ2: =IF(V2=0,0,1) -> 0 | BK2: =IF(W2=0,0,1) -> 0 | BL2: =IF(X2=0,0,1) -> 0 | BM2: =IF(Y2=0,0,1) -> 0 | BN2: =IF(Z2=0,0,1) -> 0 | BO2: =IF(AA2=0,0,1) -> 0 | BP2: =IF(AB2=0,0,1) -> 0 | BQ2: =IF(AC2=0,0,1) -> 0 | BR2: =IF(AD2=0,0,1) -> 0 | BS2: =IF(AE2=0,0,1) -> 0
B3: =GAMEstage1!B4 -> 0 | C3: =GAMEstage1!C4 -> 0 | D3: =GAMEstage1!D4 -> 0 | E3: =GAMEstage1!E4 -> 0 | F3: =GAMEstage1!F4 -> 0 | G3: =GAMEstage1!G4 -> 0 | H3: =GAMEstage1!H4 -> 0 | I3: =GAMEstage1!I4 -> 0 | J3: =GAMEstage1!J4 -> 0 | K3: =GAMEstage1!K4 -> 0 | L3: =GAMEstage1!L4 -> 0 | M3: =GAMEstage1!M4 -> 0 | N3: =GAMEstage1!N4 -> 0 | O3: =GAMEstage1!O4 -> 0 | P3: =GAMEstage1!P4 -> 0 | Q3: 0 | R3: 0 | S3: 0 | T3: 0 | U3: 0 | V3: 0 | W3: 0 | X3: 0 | Y3: 0 | Z3: 0 | AA3: 0 | AB3: 0 | AC3: 0 | AD3: 0 | AE3: 0 | AN3: =SUM(AP1:BS29) -> 0 | AP3: =IF(B3=0,0,1) -> 0 | AQ3: 0 | AR3: 0 | AS3: 0 | AT3: 0 | AU3: 0 | AV3: 0 | AW3: 0 | AX3: 0 | AY3: 0 | AZ3: 0 | BA3: 0 | BB3: 0 | BC3: 0 | BD3: 0 | BE3: 0 | BF3: 0 | BG3: 0 | BH3: 0 | BI3: 0 | BJ3: 0 | BK3: 0 | BL3: 0 | BM3: 0 | BN3: 0 | BO3: 0 | BP3: 0 | BQ3: 0 | BR3: 0 | BS3: 0
B4: =GAMEstage1!B5 -> 0 | C4: =GAMEstage1!C5 -> 0 | D4: =GAMEstage1!D5 -> 0 | E4: =GAMEstage1!E5 -> 0 | F4: =GAMEstage1!F5 -> 0 | G4: =GAMEstage1!G5 -> 0 | H4: =GAMEstage1!H5 -> 0 | I4: =GAMEstage1!I5 -> 0 | J4: =GAMEstage1!J5 -> 0 | K4: =GAMEstage1!K5 -> 0 | L4: =GAMEstage1!L5 -> 0 | M4: =GAMEstage1!M5 -> 0 | N4: =GAMEstage1!N5 -> 0 | O4: =GAMEstage1!O5 -> 0 | P4: =GAMEstage1!P5 -> 0 | Q4: 0 | R4: 0 | S4: 0 | T4: 0 | U4: 0 | V4: 0 | W4: 0 | X4: 0 | Y4: 0 | Z4: 0 | AA4: 0 | AB4: 0 | AC4: 0 | AD4: 0 | AE4: 0 | AP4: 0 | AQ4: 0 | AR4: 0 | AS4: 0 | AT4: 0 | AU4: 0 | AV4: 0 | AW4: 0 | AX4: 0 | AY4: 0 | AZ4: 0 | BA4: 0 | BB4: 0 | BC4: 0 | BD4: 0 | BE4: 0 | BF4: 0 | BG4: 0 | BH4: 0 | BI4: 0 | BJ4: 0 | BK4: 0 | BL4: 0 | BM4: 0 | BN4: 0 | BO4: 0 | BP4: 0 | BQ4: 0 | BR4: 0 | BS4: 0
B5: =GAMEstage1!B6 -> 0 | C5: =GAMEstage1!C6 -> 0 | D5: =GAMEstage1!D6 -> 0 | E5: =GAMEstage1!E6 -> 0 | F5: =GAMEstage1!F6 -> 0 | G5: =GAMEstage1!G6 -> 0 | H5: =GAMEstage1!H6 -> 0 | I5: =GAMEstage1!I6 -> 0 | J5: =GAMEstage1!J6 -> 0 | K5: =GAMEstage1!K6 -> 0 | L5: =GAMEstage1!L6 -> 0 | M5: =GAMEstage1!M6 -> 0 | N5: =GAMEstage1!N6 -> 0 | O5: =GAMEstage1!O6 -> 0 | P5: =GAMEstage1!P6 -> 0 | Q5: 0 | R5: 0 | S5: 0 | T5: 0 | U5: 0 | V5: 0 | W5: 0 | X5: 0 | Y5: 0 | Z5: 0 | AA5: 0 | AB5: 0 | AC5: 0 | AD5: 0 | AE5: 0 | AP5: 0 | AQ5: 0 | AR5: 0 | AS5: 0 | AT5: 0 | AU5: 0 | AV5: 0 | AW5: 0 | AX5: 0 | AY5: 0 | AZ5: 0 | BA5: 0 | BB5: 0 | BC5: 0 | BD5: 0 | BE5: 0 | BF5: 0 | BG5: 0 | BH5: 0 | BI5: 0 | BJ5: 0 | BK5: 0 | BL5: 0 | BM5: 0 | BN5: 0 | BO5: 0 | BP5: 0 | BQ5: 0 | BR5: 0 | BS5: 0
B6: =GAMEstage1!B7 -> 0 | C6: =GAMEstage1!C7 -> 0 | D6: =GAMEstage1!D7 -> 0 | E6: =GAMEstage1!E7 -> 0 | F6: =GAMEstage1!F7 -> 0 | G6: =GAMEstage1!G7 -> 0 | H6: =GAMEstage1!H7 -> 0 | I6: =GAMEstage1!I7 -> 0 | J6: =GAMEstage1!J7 -> 0 | K6: =GAMEstage1!K7 -> 0 | L6: =GAMEstage1!L7 -> 0 | M6: =GAMEstage1!M7 -> 0 | N6: =GAMEstage1!N7 -> 0 | O6: =GAMEstage1!O7 -> 0 | P6: =GAMEstage1!P7 -> 0 | Q6: 0 | R6: 0 | S6: 0 | T6: 0 | U6: 0 | V6: 0 | W6: 0 | X6: 0 | Y6: 0 | Z6: 0 | AA6: 0 | AB6: 0 | AC6: 0 | AD6: 0 | AE6: 0 | AP6: 0 | AQ6: 0 | AR6: 0 | AS6: 0 | AT6: 0 | AU6: 0 | AV6: 0 | AW6: 0 | AX6: 0 | AY6: 0 | AZ6: 0 | BA6: 0 | BB6: 0 | BC6: 0 | BD6: 0 | BE6: 0 | BF6: 0 | BG6: 0 | BH6: 0 | BI6: 0 | BJ6: 0 | BK6: 0 | BL6: 0 | BM6: 0 | BN6: 0 | BO6: 0 | BP6: 0 | BQ6: 0 | BR6: 0 | BS6: 0
B7: =GAMEstage1!B8 -> 0 | C7: =GAMEstage1!C8 -> 0 | D7: =GAMEstage1!D8 -> 0 | E7: =GAMEstage1!E8 -> 0 | F7: =GAMEstage1!F8 -> 0 | G7: =GAMEstage1!G8 -> 0 | H7: =GAMEstage1!H8 -> 0 | I7: =GAMEstage1!I8 -> 0 | J7: =GAMEstage1!J8 -> 0 | K7: =GAMEstage1!K8 -> 0 | L7: =GAMEstage1!L8 -> 0 | M7: =GAMEstage1!M8 -> 0 | N7: =GAMEstage1!N8 -> 0 | O7: =GAMEstage1!O8 -> 0 | P7: =GAMEstage1!P8 -> 0 | Q7: 0 | R7: 0 | S7: 0 | T7: 0 | U7: 0 | V7: 0 | W7: 0 | X7: 0 | Y7: 0 | Z7: 0 | AA7: 0 | AB7: 0 | AC7: 0 | AD7: 0 | AE7: 0 | AP7: 0 | AQ7: 0 | AR7: 0 | AS7: 0 | AT7: 0 | AU7: 0 | AV7: 0 | AW7: 0 | AX7: 0 | AY7: 0 | AZ7: 0 | BA7: 0 | BB7: 0 | BC7: 0 | BD7: 0 | BE7: 0 | BF7: 0 | BG7: 0 | BH7: 0 | BI7: 0 | BJ7: 0 | BK7: 0 | BL7: 0 | BM7: 0 | BN7: 0 | BO7: 0 | BP7: 0 | BQ7: 0 | BR7: 0 | BS7: 0
B8: =GAMEstage1!B9 -> 0 | C8: =GAMEstage1!C9 -> 0 | D8: =GAMEstage1!D9 -> 0 | E8: =GAMEstage1!E9 -> 0 | F8: =GAMEstage1!F9 -> 0 | G8: =GAMEstage1!G9 -> 0 | H8: =GAMEstage1!H9 -> 0 | I8: =GAMEstage1!I9 -> 0 | J8: =GAMEstage1!J9 -> 0 | K8: =GAMEstage1!K9 -> 0 | L8: =GAMEstage1!L9 -> 0 | M8: =GAMEstage1!M9 -> 0 | N8: =GAMEstage1!N9 -> 0 | O8: =GAMEstage1!O9 -> 0 | P8: =GAMEstage1!P9 -> 0 | Q8: 0 | R8: 0 | S8: 0 | T8: 0 | U8: 0 | V8: 0 | W8: 0 | X8: 0 | Y8: 0 | Z8: 0 | AA8: 0 | AB8: 0 | AC8: 0 | AD8: 0 | AE8: 0 | AP8: 0 | AQ8: 0 | AR8: 0 | AS8: 0 | AT8: 0 | AU8: 0 | AV8: 0 | AW8: 0 | AX8: 0 | AY8: 0 | AZ8: 0 | BA8: 0 | BB8: 0 | BC8: 0 | BD8: 0 | BE8: 0 | BF8: 0 | BG8: 0 | BH8: 0 | BI8: 0 | BJ8: 0 | BK8: 0 | BL8: 0 | BM8: 0 | BN8: 0 | BO8: 0 | BP8: 0 | BQ8: 0 | BR8: 0 | BS8: 0
B9: =GAMEstage1!B10 -> 0 | C9: =GAMEstage1!C10 -> 0 | D9: =GAMEstage1!D10 -> 0 | E9: =GAMEstage1!E10 -> 0 | F9: =GAMEstage1!F10 -> 0 | G9: =GAMEstage1!G10 -> 0 | H9: =GAMEstage1!H10 -> 0 | I9: =GAMEstage1!I10 -> 0 | J9: =GAMEstage1!J10 -> 0 | K9: =GAMEstage1!K10 -> 0 | L9: =GAMEstage1!L10 -> 0 | M9: =GAMEstage1!M10 -> 0 | N9: =GAMEstage1!N10 -> 0 | O9: =GAMEstage1!O10 -> 0 | P9: =GAMEstage1!P10 -> 0 | Q9: 0 | R9: 0 | S9: 0 | T9: 0 | U9: 0 | V9: 0 | W9: 0 | X9: 0 | Y9: 0 | Z9: 0 | AA9: 0 | AB9: 0 | AC9: 0 | AD9: 0 | AE9: 0 | AP9: 0 | AQ9: 0 | AR9: 0 | AS9: 0 | AT9: 0 | AU9: 0 | AV9: 0 | AW9: 0 | AX9: 0 | AY9: 0 | AZ9: 0 | BA9: 0 | BB9: 0 | BC9: 0 | BD9: 0 | BE9: 0 | BF9: 0 | BG9: 0 | BH9: 0 | BI9: 0 | BJ9: 0 | BK9: 0 | BL9: 0 | BM9: 0 | BN9: 0 | BO9: 0 | BP9: 0 | BQ9: 0 | BR9: 0 | BS9: 0
B10: =GAMEstage1!B11 -> 0 | C10: =GAMEstage1!C11 -> 0 | D10: =GAMEstage1!D11 -> 0 | E10: =GAMEstage1!E11 -> 0 | F10: =GAMEstage1!F11 -> 0 | G10: =GAMEstage1!G11 -> 0 | H10: =GAMEstage1!H11 -> 0 | I10: =GAMEstage1!I11 -> 0 | J10: =GAMEstage1!J11 -> 0 | K10: =GAMEstage1!K11 -> 0 | L10: =GAMEstage1!L11 -> 0 | M10: =GAMEstage1!M11 -> 0 | N10: =GAMEstage1!N11 -> 0 | O10: =GAMEstage1!O11 -> 0 | P10: =GAMEstage1!P11 -> 0 | Q10: 0 | R10: 0 | S10: 0 | T10: 0 | U10: 0 | V10: 0 | W10: 0 | X10: 0 | Y10: 0 | Z10: 0 | AA10: 0 | AB10: 0 | AC10: 0 | AD10: 0 | AE10: 0 | AP10: 0 | AQ10: 0 | AR10: 0 | AS10: 0 | AT10: 0 | AU10: 0 | AV10: 0 | AW10: 0 | AX10: 0 | AY10: 0 | AZ10: 0 | BA10: 0 | BB10: 0 | BC10: 0 | BD10: 0 | BE10: 0 | BF10: 0 | BG10: 0 | BH10: 0 | BI10: 0 | BJ10: 0 | BK10: 0 | BL10: 0 | BM10: 0 | BN10: 0 | BO10: 0 | BP10: 0 | BQ10: 0 | BR10: 0 | BS10: 0
B11: =GAMEstage1!B12 -> 0 | C11: =GAMEstage1!C12 -> 0 | D11: =GAMEstage1!D12 -> 0 | E11: =GAMEstage1!E12 -> 0 | F11: =GAMEstage1!F12 -> 0 | G11: =GAMEstage1!G12 -> 0 | H11: =GAMEstage1!H12 -> 0 | I11: =GAMEstage1!I12 -> 0 | J11: =GAMEstage1!J12 -> 0 | K11: =GAMEstage1!K12 -> 0 | L11: =GAMEstage1!L12 -> 0 | M11: =GAMEstage1!M12 -> 0 | N11: =GAMEstage1!N12 -> 0 | O11: =GAMEstage1!O12 -> 0 | P11: =GAMEstage1!P12 -> 0 | Q11: 0 | R11: 0 | S11: 0 | T11: 0 | U11: 0 | V11: 0 | W11: 0 | X11: 0 | Y11: 0 | Z11: 0 | AA11: 0 | AB11: 0 | AC11: 0 | AD11: 0 | AE11: 0 | AP11: 0 | AQ11: 0 | AR11: 0 | AS11: 0 | AT11: 0 | AU11: 0 | AV11: 0 | AW11: 0 | AX11: 0 | AY11: 0 | AZ11: 0 | BA11: 0 | BB11: 0 | BC11: 0 | BD11: 0 | BE11: 0 | BF11: 0 | BG11: 0 | BH11: 0 | BI11: 0 | BJ11: 0 | BK11: 0 | BL11: 0 | BM11: 0 | BN11: 0 | BO11: 0 | BP11: 0 | BQ11: 0 | BR11: 0 | BS11: 0
B12: =GAMEstage1!B13 -> 0 | C12: =GAMEstage1!C13 -> 0 | D12: =GAMEstage1!D13 -> 0 | E12: =GAMEstage1!E13 -> 0 | F12: =GAMEstage1!F13 -> 0 | G12: =GAMEstage1!G13 -> 0 | H12: =GAMEstage1!H13 -> 0 | I12: =GAMEstage1!I13 -> 0 | J12: =GAMEstage1!J13 -> 0 | K12: =GAMEstage1!K13 -> 0 | L12: =GAMEstage1!L13 -> 0 | M12: =GAMEstage1!M13 -> 0 | N12: =GAMEstage1!N13 -> 0 | O12: =GAMEstage1!O13 -> 0 | P12: =GAMEstage1!P13 -> 0 | Q12: 0 | R12: 0 | S12: 0 | T12: 0 | U12: 0 | V12: 0 | W12: 0 | X12: 0 | Y12: 0 | Z12: 0 | AA12: 0 | AB12: 0 | AC12: 0 | AD12: 0 | AE12: 0 | AP12: 0 | AQ12: 0 | AR12: 0 | AS12: 0 | AT12: 0 | AU12: 0 | AV12: 0 | AW12: 0 | AX12: 0 | AY12: 0 | AZ12: 0 | BA12: 0 | BB12: 0 | BC12: 0 | BD12: 0 | BE12: 0 | BF12: 0 | BG12: 0 | BH12: 0 | BI12: 0 | BJ12: 0 | BK12: 0 | BL12: 0 | BM12: 0 | BN12: 0 | BO12: 0 | BP12: 0 | BQ12: 0 | BR12: 0 | BS12: 0
B13: =GAMEstage1!B14 -> 0 | C13: =GAMEstage1!C14 -> 0 | D13: =GAMEstage1!D14 -> 0 | E13: =GAMEstage1!E14 -> 0 | F13: =GAMEstage1!F14 -> 0 | G13: =GAMEstage1!G14 -> 0 | H13: =GAMEstage1!H14 -> 0 | I13: =GAMEstage1!I14 -> 0 | J13: =GAMEstage1!J14 -> 0 | K13: =GAMEstage1!K14 -> 0 | L13: =GAMEstage1!L14 -> 0 | M13: =GAMEstage1!M14 -> 0 | N13: =GAMEstage1!N14 -> 0 | O13: =GAMEstage1!O14 -> 0 | P13: =GAMEstage1!P14 -> 0 | Q13: 0 | R13: 0 | S13: 0 | T13: 0 | U13: 0 | V13: 0 | W13: 0 | X13: 0 | Y13: 0 | Z13: 0 | AA13: 0 | AB13: 0 | AC13: 0 | AD13: 0 | AE13: 0 | AP13: 0 | AQ13: 0 | AR13: 0 | AS13: 0 | AT13: 0 | AU13: 0 | AV13: 0 | AW13: 0 | AX13: 0 | AY13: 0 | AZ13: 0 | BA13: 0 | BB13: 0 | BC13: 0 | BD13: 0 | BE13: 0 | BF13: 0 | BG13: 0 | BH13: 0 | BI13: 0 | BJ13: 0 | BK13: 0 | BL13: 0 | BM13: 0 | BN13: 0 | BO13: 0 | BP13: 0 | BQ13: 0 | BR13: 0 | BS13: 0
B14: =GAMEstage1!B15 -> 0 | C14: =GAMEstage1!C15 -> 0 | D14: =GAMEstage1!D15 -> 0 | E14: =GAMEstage1!E15 -> 0 | F14: =GAMEstage1!F15 -> 0 | G14: =GAMEstage1!G15 -> 0 | H14: =GAMEstage1!H15 -> 0 | I14: =GAMEstage1!I15 -> 0 | J14: =GAMEstage1!J15 -> 0 | K14: =GAMEstage1!K15 -> 0 | L14: =GAMEstage1!L15 -> 0 | M14: =GAMEstage1!M15 -> 0 | N14: =GAMEstage1!N15 -> 0 | O14: =GAMEstage1!O15 -> 0 | P14: =GAMEstage1!P15 -> 0 | Q14: 0 | R14: 0 | S14: 0 | T14: 0 | U14: 0 | V14: 0 | W14: 0 | X14: 0 | Y14: 0 | Z14: 0 | AA14: 0 | AB14: 0 | AC14: 0 | AD14: 0 | AE14: 0 | AP14: 0 | AQ14: 0 | AR14: 0 | AS14: 0 | AT14: 0 | AU14: 0 | AV14: 0 | AW14: 0 | AX14: 0 | AY14: 0 | AZ14: 0 | BA14: 0 | BB14: 0 | BC14: 0 | BD14: 0 | BE14: 0 | BF14: 0 | BG14: 0 | BH14: 0 | BI14: 0 | BJ14: 0 | BK14: 0 | BL14: 0 | BM14: 0 | BN14: 0 | BO14: 0 | BP14: 0 | BQ14: 0 | BR14: 0 | BS14: 0
B15: =GAMEstage1!B16 -> 0 | C15: =GAMEstage1!C16 -> 0 | D15: =GAMEstage1!D16 -> 0 | E15: =GAMEstage1!E16 -> 0 | F15: =GAMEstage1!F16 -> 0 | G15: =GAMEstage1!G16 -> 0 | H15: =GAMEstage1!H16 -> 0 | I15: =GAMEstage1!I16 -> 0 | J15: =GAMEstage1!J16 -> 0 | K15: =GAMEstage1!K16 -> 0 | L15: =GAMEstage1!L16 -> 0 | M15: =GAMEstage1!M16 -> 0 | N15: =GAMEstage1!N16 -> 0 | O15: =GAMEstage1!O16 -> 0 | P15: =GAMEstage1!P16 -> 0 | Q15: 0 | R15: 0 | S15: 0 | T15: 0 | U15: 0 | V15: 0 | W15: 0 | X15: 0 | Y15: 0 | Z15: 0 | AA15: 0 | AB15: 0 | AC15: 0 | AD15: 0 | AE15: 0 | AP15: 0 | AQ15: 0 | AR15: 0 | AS15: 0 | AT15: 0 | AU15: 0 | AV15: 0 | AW15: 0 | AX15: 0 | AY15: 0 | AZ15: 0 | BA15: 0 | BB15: 0 | BC15: 0 | BD15: 0 | BE15: 0 | BF15: 0 | BG15: 0 | BH15: 0 | BI15: 0 | BJ15: 0 | BK15: 0 | BL15: 0 | BM15: 0 | BN15: 0 | BO15: 0 | BP15: 0 | BQ15: 0 | BR15: 0 | BS15: 0
B16: =GAMEstage1!B17 -> 0 | C16: =GAMEstage1!C17 -> 0 | D16: =GAMEstage1!D17 -> 0 | E16: =GAMEstage1!E17 -> 0 | F16: =GAMEstage1!F17 -> 0 | G16: =GAMEstage1!G17 -> 0 | H16: =GAMEstage1!H17 -> 0 | I16: =GAMEstage1!I17 -> 0 | J16: =GAMEstage1!J17 -> 0 | K16: =GAMEstage1!K17 -> 0 | L16: =GAMEstage1!L17 -> 0 | M16: =GAMEstage1!M17 -> 0 | N16: =GAMEstage1!N17 -> 0 | O16: =GAMEstage1!O17 -> 0 | P16: =GAMEstage1!P17 -> 0 | Q16: 0 | R16: 0 | S16: 0 | T16: 0 | U16: 0 | V16: 0 | W16: 0 | X16: 0 | Y16: 0 | Z16: 0 | AA16: 0 | AB16: 0 | AC16: 0 | AD16: 0 | AE16: 0 | AP16: 0 | AQ16: 0 | AR16: 0 | AS16: 0 | AT16: 0 | AU16: 0 | AV16: 0 | AW16: 0 | AX16: 0 | AY16: 0 | AZ16: 0 | BA16: 0 | BB16: 0 | BC16: 0 | BD16: 0 | BE16: 0 | BF16: 0 | BG16: 0 | BH16: 0 | BI16: 0 | BJ16: 0 | BK16: 0 | BL16: 0 | BM16: 0 | BN16: 0 | BO16: 0 | BP16: 0 | BQ16: 0 | BR16: 0 | BS16: 0
B17: =GAMEstage1!B18 -> 0 | C17: =GAMEstage1!C18 -> 0 | D17: =GAMEstage1!D18 -> 0 | E17: =GAMEstage1!E18 -> 0 | F17: =GAMEstage1!F18 -> 0 | G17: =GAMEstage1!G18 -> 0 | H17: =GAMEstage1!H18 -> 0 | I17: =GAMEstage1!I18 -> 0 | J17: =GAMEstage1!J18 -> 0 | K17: =GAMEstage1!K18 -> 0 | L17: =GAMEstage1!L18 -> 0 | M17: =GAMEstage1!M18 -> 0 | N17: =GAMEstage1!N18 -> 0 | O17: =GAMEstage1!O18 -> 0 | P17: =GAMEstage1!P18 -> 0 | Q17: 0 | R17: 0 | S17: 0 | T17: 0 | U17: 0 | V17: 0 | W17: 0 | X17: 0 | Y17: 0 | Z17: 0 | AA17: 0 | AB17: 0 | AC17: 0 | AD17: 0 | AE17: 0 | AP17: 0 | AQ17: 0 | AR17: 0 | AS17: 0 | AT17: 0 | AU17: 0 | AV17: 0 | AW17: 0 | AX17: 0 | AY17: 0 | AZ17: 0 | BA17: 0 | BB17: 0 | BC17: 0 | BD17: 0 | BE17: 0 | BF17: 0 | BG17: 0 | BH17: 0 | BI17: 0 | BJ17: 0 | BK17: 0 | BL17: 0 | BM17: 0 | BN17: 0 | BO17: 0 | BP17: 0 | BQ17: 0 | BR17: 0 | BS17: 0
B18: =GAMEstage1!B19 -> 0 | C18: =GAMEstage1!C19 -> 0 | D18: =GAMEstage1!D19 -> 0 | E18: =GAMEstage1!E19 -> 0 | F18: =GAMEstage1!F19 -> 0 | G18: =GAMEstage1!G19 -> 0 | H18: =GAMEstage1!H19 -> 0 | I18: =GAMEstage1!I19 -> 0 | J18: =GAMEstage1!J19 -> 0 | K18: =GAMEstage1!K19 -> 0 | L18: =GAMEstage1!L19 -> 0 | M18: =GAMEstage1!M19 -> 0 | N18: =GAMEstage1!N19 -> 0 | O18: =GAMEstage1!O19 -> 0 | P18: =GAMEstage1!P19 -> 0 | Q18: 0 | R18: 0 | S18: 0 | T18: 0 | U18: 0 | V18: 0 | W18: 0 | X18: 0 | Y18: 0 | Z18: 0 | AA18: 0 | AB18: 0 | AC18: 0 | AD18: 0 | AE18: 0 | AP18: 0 | AQ18: 0 | AR18: 0 | AS18: 0 | AT18: 0 | AU18: 0 | AV18: 0 | AW18: 0 | AX18: 0 | AY18: 0 | AZ18: 0 | BA18: 0 | BB18: 0 | BC18: 0 | BD18: 0 | BE18: 0 | BF18: 0 | BG18: 0 | BH18: 0 | BI18: 0 | BJ18: 0 | BK18: 0 | BL18: 0 | BM18: 0 | BN18: 0 | BO18: 0 | BP18: 0 | BQ18: 0 | BR18: 0 | BS18: 0
B19: =GAMEstage1!B20 -> 0 | C19: =GAMEstage1!C20 -> 0 | D19: =GAMEstage1!D20 -> 0 | E19: =GAMEstage1!E20 -> 0 | F19: =GAMEstage1!F20 -> 0 | G19: =GAMEstage1!G20 -> 0 | H19: =GAMEstage1!H20 -> 0 | I19: =GAMEstage1!I20 -> 0 | J19: =GAMEstage1!J20 -> 0 | K19: =GAMEstage1!K20 -> 0 | L19: =GAMEstage1!L20 -> 0 | M19: =GAMEstage1!M20 -> 0 | N19: =GAMEstage1!N20 -> 0 | O19: =GAMEstage1!O20 -> 0 | P19: =GAMEstage1!P20 -> 0 | Q19: 0 | R19: 0 | S19: 0 | T19: 0 | U19: 0 | V19: 0 | W19: 0 | X19: 0 | Y19: 0 | Z19: 0 | AA19: 0 | AB19: 0 | AC19: 0 | AD19: 0 | AE19: 0 | AP19: 0 | AQ19: 0 | AR19: 0 | AS19: 0 | AT19: 0 | AU19: 0 | AV19: 0 | AW19: 0 | AX19: 0 | AY19: 0 | AZ19: 0 | BA19: 0 | BB19: 0 | BC19: 0 | BD19: 0 | BE19: 0 | BF19: 0 | BG19: 0 | BH19: 0 | BI19: 0 | BJ19: 0 | BK19: 0 | BL19: 0 | BM19: 0 | BN19: 0 | BO19: 0 | BP19: 0 | BQ19: 0 | BR19: 0 | BS19: 0
B20: =GAMEstage1!B21 -> 0 | C20: =GAMEstage1!C21 -> 0 | D20: =GAMEstage1!D21 -> 0 | E20: =GAMEstage1!E21 -> 0 | F20: =GAMEstage1!F21 -> 0 | G20: =GAMEstage1!G21 -> 0 | H20: =GAMEstage1!H21 -> 0 | I20: =GAMEstage1!I21 -> 0 | J20: =GAMEstage1!J21 -> 0 | K20: =GAMEstage1!K21 -> 0 | L20: =GAMEstage1!L21 -> 0 | M20: =GAMEstage1!M21 -> 0 | N20: =GAMEstage1!N21 -> 0 | O20: =GAMEstage1!O21 -> 0 | P20: =GAMEstage1!P21 -> 0 | Q20: 0 | R20: 0 | S20: 0 | T20: 0 | U20: 0 | V20: 0 | W20: 0 | X20: 0 | Y20: 0 | Z20: 0 | AA20: 0 | AB20: 0 | AC20: 0 | AD20: 0 | AE20: 0 | AP20: 0 | AQ20: 0 | AR20: 0 | AS20: 0 | AT20: 0 | AU20: 0 | AV20: 0 | AW20: 0 | AX20: 0 | AY20: 0 | AZ20: 0 | BA20: 0 | BB20: 0 | BC20: 0 | BD20: 0 | BE20: 0 | BF20: 0 | BG20: 0 | BH20: 0 | BI20: 0 | BJ20: 0 | BK20: 0 | BL20: 0 | BM20: 0 | BN20: 0 | BO20: 0 | BP20: 0 | BQ20: 0 | BR20: 0 | BS20: 0
B21: =GAMEstage1!B22 -> 0 | C21: =GAMEstage1!C22 -> 0 | D21: =GAMEstage1!D22 -> 0 | E21: =GAMEstage1!E22 -> 0 | F21: =GAMEstage1!F22 -> 0 | G21: =GAMEstage1!G22 -> 0 | H21: =GAMEstage1!H22 -> 0 | I21: =GAMEstage1!I22 -> 0 | J21: =GAMEstage1!J22 -> 0 | K21: =GAMEstage1!K22 -> 0 | L21: =GAMEstage1!L22 -> 0 | M21: =GAMEstage1!M22 -> 0 | N21: =GAMEstage1!N22 -> 0 | O21: =GAMEstage1!O22 -> 0 | P21: =GAMEstage1!P22 -> 0 | Q21: 0 | R21: 0 | S21: 0 | T21: 0 | U21: 0 | V21: 0 | W21: 0 | X21: 0 | Y21: 0 | Z21: 0 | AA21: 0 | AB21: 0 | AC21: 0 | AD21: 0 | AE21: 0 | AP21: 0 | AQ21: 0 | AR21: 0 | AS21: 0 | AT21: 0 | AU21: 0 | AV21: 0 | AW21: 0 | AX21: 0 | AY21: 0 | AZ21: 0 | BA21: 0 | BB21: 0 | BC21: 0 | BD21: 0 | BE21: 0 | BF21: 0 | BG21: 0 | BH21: 0 | BI21: 0 | BJ21: 0 | BK21: 0 | BL21: 0 | BM21: 0 | BN21: 0 | BO21: 0 | BP21: 0 | BQ21: 0 | BR21: 0 | BS21: 0
B22: =GAMEstage1!B23 -> 0 | C22: =GAMEstage1!C23 -> 0 | D22: =GAMEstage1!D23 -> 0 | E22: =GAMEstage1!E23 -> 0 | F22: =GAMEstage1!F23 -> 0 | G22: =GAMEstage1!G23 -> 0 | H22: =GAMEstage1!H23 -> 0 | I22: =GAMEstage1!I23 -> 0 | J22: =GAMEstage1!J23 -> 0 | K22: =GAMEstage1!K23 -> 0 | L22: =GAMEstage1!L23 -> 0 | M22: =GAMEstage1!M23 -> 0 | N22: =GAMEstage1!N23 -> 0 | O22: =GAMEstage1!O23 -> 0 | P22: =GAMEstage1!P23 -> 0 | Q22: 0 | R22: 0 | S22: 0 | T22: 0 | U22: 0 | V22: 0 | W22: 0 | X22: 0 | Y22: 0 | Z22: 0 | AA22: 0 | AB22: 0 | AC22: 0 | AD22: 0 | AE22: 0 | AP22: 0 | AQ22: 0 | AR22: 0 | AS22: 0 | AT22: 0 | AU22: 0 | AV22: 0 | AW22: 0 | AX22: 0 | AY22: 0 | AZ22: 0 | BA22: 0 | BB22: 0 | BC22: 0 | BD22: 0 | BE22: 0 | BF22: 0 | BG22: 0 | BH22: 0 | BI22: 0 | BJ22: 0 | BK22: 0 | BL22: 0 | BM22: 0 | BN22: 0 | BO22: 0 | BP22: 0 | BQ22: 0 | BR22: 0 | BS22: 0
B23: =GAMEstage1!B24 -> 0 | C23: =GAMEstage1!C24 -> 0 | D23: =GAMEstage1!D24 -> 0 | E23: =GAMEstage1!E24 -> 0 | F23: =GAMEstage1!F24 -> 0 | G23: =GAMEstage1!G24 -> 0 | H23: =GAMEstage1!H24 -> 0 | I23: =GAMEstage1!I24 -> 0 | J23: =GAMEstage1!J24 -> 0 | K23: =GAMEstage1!K24 -> 0 | L23: =GAMEstage1!L24 -> 0 | M23: =GAMEstage1!M24 -> 0 | N23: =GAMEstage1!N24 -> 0 | O23: =GAMEstage1!O24 -> 0 | P23: =GAMEstage1!P24 -> 0 | Q23: 0 | R23: 0 | S23: 0 | T23: 0 | U23: 0 | V23: 0 | W23: 0 | X23: 0 | Y23: 0 | Z23: 0 | AA23: 0 | AB23: 0 | AC23: 0 | AD23: 0 | AE23: 0 | AP23: 0 | AQ23: 0 | AR23: 0 | AS23: 0 | AT23: 0 | AU23: 0 | AV23: 0 | AW23: 0 | AX23: 0 | AY23: 0 | AZ23: 0 | BA23: 0 | BB23: 0 | BC23: 0 | BD23: 0 | BE23: 0 | BF23: 0 | BG23: 0 | BH23: 0 | BI23: 0 | BJ23: 0 | BK23: 0 | BL23: 0 | BM23: 0 | BN23: 0 | BO23: 0 | BP23: 0 | BQ23: 0 | BR23: 0 | BS23: 0
B24: =GAMEstage1!B25 -> 0 | C24: =GAMEstage1!C25 -> 0 | D24: =GAMEstage1!D25 -> 0 | E24: =GAMEstage1!E25 -> 0 | F24: =GAMEstage1!F25 -> 0 | G24: =GAMEstage1!G25 -> 0 | H24: =GAMEstage1!H25 -> 0 | I24: =GAMEstage1!I25 -> 0 | J24: =GAMEstage1!J25 -> 0 | K24: =GAMEstage1!K25 -> 0 | L24: =GAMEstage1!L25 -> 0 | M24: =GAMEstage1!M25 -> 0 | N24: =GAMEstage1!N25 -> 0 | O24: =GAMEstage1!O25 -> 0 | P24: =GAMEstage1!P25 -> 0 | Q24: 0 | R24: 0 | S24: 0 | T24: 0 | U24: 0 | V24: 0 | W24: 0 | X24: 0 | Y24: 0 | Z24: 0 | AA24: 0 | AB24: 0 | AC24: 0 | AD24: 0 | AE24: 0 | AP24: 0 | AQ24: 0 | AR24: 0 | AS24: 0 | AT24: 0 | AU24: 0 | AV24: 0 | AW24: 0 | AX24: 0 | AY24: 0 | AZ24: 0 | BA24: 0 | BB24: 0 | BC24: 0 | BD24: 0 | BE24: 0 | BF24: 0 | BG24: 0 | BH24: 0 | BI24: 0 | BJ24: 0 | BK24: 0 | BL24: 0 | BM24: 0 | BN24: 0 | BO24: 0 | BP24: 0 | BQ24: 0 | BR24: 0 | BS24: 0
B25: =GAMEstage1!B26 -> 0 | C25: =GAMEstage1!C26 -> 0 | D25: =GAMEstage1!D26 -> 0 | E25: =GAMEstage1!E26 -> 0 | F25: =GAMEstage1!F26 -> 0 | G25: =GAMEstage1!G26 -> 0 | H25: =GAMEstage1!H26 -> 0 | I25: =GAMEstage1!I26 -> 0 | J25: =GAMEstage1!J26 -> 0 | K25: =GAMEstage1!K26 -> 0 | L25: =GAMEstage1!L26 -> 0 | M25: =GAMEstage1!M26 -> 0 | N25: =GAMEstage1!N26 -> 0 | O25: =GAMEstage1!O26 -> 0 | P25: =GAMEstage1!P26 -> 0 | Q25: 0 | R25: 0 | S25: 0 | T25: 0 | U25: 0 | V25: 0 | W25: 0 | X25: 0 | Y25: 0 | Z25: 0 | AA25: 0 | AB25: 0 | AC25: 0 | AD25: 0 | AE25: 0 | AP25: 0 | AQ25: 0 | AR25: 0 | AS25: 0 | AT25: 0 | AU25: 0 | AV25: 0 | AW25: 0 | AX25: 0 | AY25: 0 | AZ25: 0 | BA25: 0 | BB25: 0 | BC25: 0 | BD25: 0 | BE25: 0 | BF25: 0 | BG25: 0 | BH25: 0 | BI25: 0 | BJ25: 0 | BK25: 0 | BL25: 0 | BM25: 0 | BN25: 0 | BO25: 0 | BP25: 0 | BQ25: 0 | BR25: 0 | BS25: 0
B26: =GAMEstage1!B27 -> 0 | C26: =GAMEstage1!C27 -> 0 | D26: =GAMEstage1!D27 -> 0 | E26: =GAMEstage1!E27 -> 0 | F26: =GAMEstage1!F27 -> 0 | G26: =GAMEstage1!G27 -> 0 | H26: =GAMEstage1!H27 -> 0 | I26: =GAMEstage1!I27 -> 0 | J26: =GAMEstage1!J27 -> 0 | K26: =GAMEstage1!K27 -> 0 | L26: =GAMEstage1!L27 -> 0 | M26: =GAMEstage1!M27 -> 0 | N26: =GAMEstage1!N27 -> 0 | O26: =GAMEstage1!O27 -> 0 | P26: =GAMEstage1!P27 -> 0 | Q26: 0 | R26: 0 | S26: 0 | T26: 0 | U26: 0 | V26: 0 | W26: 0 | X26: 0 | Y26: 0 | Z26: 0 | AA26: 0 | AB26: 0 | AC26: 0 | AD26: 0 | AE26: 0 | AP26: 0 | AQ26: 0 | AR26: 0 | AS26: 0 | AT26: 0 | AU26: 0 | AV26: 0 | AW26: 0 | AX26: 0 | AY26: 0 | AZ26: 0 | BA26: 0 | BB26: 0 | BC26: 0 | BD26: 0 | BE26: 0 | BF26: 0 | BG26: 0 | BH26: 0 | BI26: 0 | BJ26: 0 | BK26: 0 | BL26: 0 | BM26: 0 | BN26: 0 | BO26: 0 | BP26: 0 | BQ26: 0 | BR26: 0 | BS26: 0
B27: =GAMEstage1!B28 -> 0 | C27: =GAMEstage1!C28 -> 0 | D27: =GAMEstage1!D28 -> 0 | E27: =GAMEstage1!E28 -> 0 | F27: =GAMEstage1!F28 -> 0 | G27: =GAMEstage1!G28 -> 0 | H27: =GAMEstage1!H28 -> 0 | I27: =GAMEstage1!I28 -> 0 | J27: =GAMEstage1!J28 -> 0 | K27: =GAMEstage1!K28 -> 0 | L27: =GAMEstage1!L28 -> 0 | M27: =GAMEstage1!M28 -> 0 | N27: =GAMEstage1!N28 -> 0 | O27: =GAMEstage1!O28 -> 0 | P27: =GAMEstage1!P28 -> 0 | Q27: 0 | R27: 0 | S27: 0 | T27: 0 | U27: 0 | V27: 0 | W27: 0 | X27: 0 | Y27: 0 | Z27: 0 | AA27: 0 | AB27: 0 | AC27: 0 | AD27: 0 | AE27: 0 | AP27: 0 | AQ27: 0 | AR27: 0 | AS27: 0 | AT27: 0 | AU27: 0 | AV27: 0 | AW27: 0 | AX27: 0 | AY27: 0 | AZ27: 0 | BA27: 0 | BB27: 0 | BC27: 0 | BD27: 0 | BE27: 0 | BF27: 0 | BG27: 0 | BH27: 0 | BI27: 0 | BJ27: 0 | BK27: 0 | BL27: 0 | BM27: 0 | BN27: 0 | BO27: 0 | BP27: 0 | BQ27: 0 | BR27: 0 | BS27: 0
B28: =GAMEstage1!B29 -> 0 | C28: =GAMEstage1!C29 -> 0 | D28: =GAMEstage1!D29 -> 0 | E28: =GAMEstage1!E29 -> 0 | F28: =GAMEstage1!F29 -> 0 | G28: =GAMEstage1!G29 -> 0 | H28: =GAMEstage1!H29 -> 0 | I28: =GAMEstage1!I29 -> 0 | J28: =GAMEstage1!J29 -> 0 | K28: =GAMEstage1!K29 -> 0 | L28: =GAMEstage1!L29 -> 0 | M28: =GAMEstage1!M29 -> 0 | N28: =GAMEstage1!N29 -> 0 | O28: =GAMEstage1!O29 -> 0 | P28: =GAMEstage1!P29 -> 0 | Q28: 0 | R28: 0 | S28: 0 | T28: 0 | U28: 0 | V28: 0 | W28: 0 | X28: 0 | Y28: 0 | Z28: 0 | AA28: 0 | AB28: 0 | AC28: 0 | AD28: 0 | AE28: 0 | AP28: 0 | AQ28: 0 | AR28: 0 | AS28: 0 | AT28: 0 | AU28: 0 | AV28: 0 | AW28: 0 | AX28: 0 | AY28: 0 | AZ28: 0 | BA28: 0 | BB28: 0 | BC28: 0 | BD28: 0 | BE28: 0 | BF28: 0 | BG28: 0 | BH28: 0 | BI28: 0 | BJ28: 0 | BK28: 0 | BL28: 0 | BM28: 0 | BN28: 0 | BO28: 0 | BP28: 0 | BQ28: 0 | BR28: 0 | BS28: 0
B29: =GAMEstage1!B30 -> 0 | C29: =GAMEstage1!C30 -> 0 | D29: =GAMEstage1!D30 -> 0 | E29: =GAMEstage1!E30 -> 0 | F29: =GAMEstage1!F30 -> 0 | G29: =GAMEstage1!G30 -> 0 | H29: =GAMEstage1!H30 -> 0 | I29: =GAMEstage1!I30 -> 0 | J29: =GAMEstage1!J30 -> 0 | K29: =GAMEstage1!K30 -> 0 | L29: =GAMEstage1!L30 -> 0 | M29: =GAMEstage1!M30 -> 0 | N29: =GAMEstage1!N30 -> 0 | O29: =GAMEstage1!O30 -> 0 | P29: =GAMEstage1!P30 -> 0 | Q29: 0 | R29: 0 | S29: 0 | T29: 0 | U29: 0 | V29: 0 | W29: 0 | X29: 0 | Y29: 0 | Z29: 0 | AA29: 0 | AB29: 0 | AC29: 0 | AD29: 0 | AE29: 0 | AP29: 0 | AQ29: 0 | AR29: 0 | AS29: 0 | AT29: 0 | AU29: 0 | AV29: 0 | AW29: 0 | AX29: 0 | AY29: 0 | AZ29: 0 | BA29: 0 | BB29: 0 | BC29: 0 | BD29: 0 | BE29: 0 | BF29: 0 | BG29: 0 | BH29: 0 | BI29: 0 | BJ29: 0 | BK29: 0 | BL29: 0 | BM29: 0 | BN29: 0 | BO29: 0 | BP29: 0 | BQ29: 0 | BR29: 0 | BS29: 0
B30: =GAMEstage1!B31 -> 0 | C30: =GAMEstage1!C31 -> 0 | D30: =GAMEstage1!D31 -> 0 | E30: =GAMEstage1!E31 -> 0 | F30: =GAMEstage1!F31 -> 0 | G30: =GAMEstage1!G31 -> 0 | H30: =GAMEstage1!H31 -> 0 | I30: =GAMEstage1!I31 -> 0 | J30: =GAMEstage1!J31 -> 0 | K30: =GAMEstage1!K31 -> 0 | L30: =GAMEstage1!L31 -> 0 | M30: =GAMEstage1!M31 -> 0 | N30: =GAMEstage1!N31 -> 0 | O30: =GAMEstage1!O31 -> 0 | P30: =GAMEstage1!P31 -> 0 | Q30: 0 | R30: 0 | S30: 0 | T30: 0 | U30: 0 | V30: 0 | W30: 0 | X30: 0 | Y30: 0 | Z30: 0 | AA30: 0 | AB30: 0 | AC30: 0 | AD30: 0 | AE30: 0
B32: =IF(Q1=Q32,1,0) -> 1 | C32: =IF(R1=R32,1,0) -> 1 | D32: 1 | E32: 1 | F32: 1 | G32: 1 | H32: 1 | I32: 1 | J32: 1 | K32: 1 | L32: 1 | M32: 1 | N32: =IF(AC1=AC32,1,0) -> 1 | O32: 1 | P32: 1 | Q32: =GAMEstage1!Q2 -> 0 | R32: =GAMEstage1!R2 -> 0 | S32: =GAMEstage1!S2 -> 0 | T32: =GAMEstage1!T2 -> 0 | U32: =GAMEstage1!U2 -> 0 | V32: =GAMEstage1!V2 -> 0 | W32: =GAMEstage1!W2 -> 0 | X32: =GAMEstage1!X2 -> 0 | Y32: =GAMEstage1!Y2 -> 0 | Z32: =GAMEstage1!Z2 -> 0 | AA32: =GAMEstage1!AA2 -> 0 | AB32: =GAMEstage1!AB2 -> 0 | AC32: =GAMEstage1!AC2 -> 0 | AD32: =GAMEstage1!AD2 -> 0 | AE32: =GAMEstage1!AE2 -> 0
B33: =IF(Q2=Q33,1,0) -> 1 | C33: =IF(R2=R33,1,0) -> 1 | D33: =IF(S2=S33,1,0) -> 1 | E33: =IF(T2=T33,1,0) -> 1 | F33: =IF(U2=U33,1,0) -> 1 | G33: =IF(V2=V33,1,0) -> 1 | H33: =IF(W2=W33,1,0) -> 1 | I33: =IF(X2=X33,1,0) -> 1 | J33: =IF(Y2=Y33,1,0) -> 1 | K33: =IF(Z2=Z33,1,0) -> 1 | L33: =IF(AA2=AA33,1,0) -> 1 | M33: =IF(AB2=AB33,1,0) -> 1 | N33: 1 | O33: =IF(AD2=AD33,1,0) -> 1 | P33: =IF(AE2=AE33,1,0) -> 1 | Q33: =GAMEstage1!Q3 -> 0 | R33: =GAMEstage1!R3 -> 0 | S33: =GAMEstage1!S3 -> 0 | T33: =GAMEstage1!T3 -> 0 | U33: =GAMEstage1!U3 -> 0 | V33: =GAMEstage1!V3 -> 0 | W33: =GAMEstage1!W3 -> 0 | X33: =GAMEstage1!X3 -> 0 | Y33: =GAMEstage1!Y3 -> 0 | Z33: =GAMEstage1!Z3 -> 0 | AA33: =GAMEstage1!AA3 -> 0 | AB33: =GAMEstage1!AB3 -> 0 | AC33: =GAMEstage1!AC3 -> 0 | AD33: =GAMEstage1!AD3 -> 0 | AE33: =GAMEstage1!AE3 -> 0
B34: 1 | C34: 1 | D34: 1 | E34: 1 | F34: 1 | G34: 1 | H34: 1 | I34: 1 | J34: 1 | K34: 1 | L34: 1 | M34: 1 | N34: =IF(AC3=AC34,1,0) -> 1 | O34: 1 | P34: 1 | Q34: =GAMEstage1!Q4 -> 0 | R34: =GAMEstage1!R4 -> 0 | S34: =GAMEstage1!S4 -> 0 | T34: =GAMEstage1!T4 -> 0 | U34: =GAMEstage1!U4 -> 0 | V34: =GAMEstage1!V4 -> 0 | W34: =GAMEstage1!W4 -> 0 | X34: =GAMEstage1!X4 -> 0 | Y34: =GAMEstage1!Y4 -> 0 | Z34: =GAMEstage1!Z4 -> 0 | AA34: =GAMEstage1!AA4 -> 0 | AB34: =GAMEstage1!AB4 -> 0 | AC34: =GAMEstage1!AC4 -> 0 | AD34: =GAMEstage1!AD4 -> 0 | AE34: =GAMEstage1!AE4 -> 0
B35: 1 | C35: 1 | D35: 1 | E35: 1 | F35: 1 | G35: 1 | H35: 1 | I35: 1 | J35: 1 | K35: 1 | L35: 1 | M35: 1 | N35: 1 | O35: 1 | P35: 1 | Q35: =GAMEstage1!Q5 -> 0 | R35: =GAMEstage1!R5 -> 0 | S35: =GAMEstage1!S5 -> 0 | T35: =GAMEstage1!T5 -> 0 | U35: =GAMEstage1!U5 -> 0 | V35: =GAMEstage1!V5 -> 0 | W35: =GAMEstage1!W5 -> 0 | X35: =GAMEstage1!X5 -> 0 | Y35: =GAMEstage1!Y5 -> 0 | Z35: =GAMEstage1!Z5 -> 0 | AA35: =GAMEstage1!AA5 -> 0 | AB35: =GAMEstage1!AB5 -> 0 | AC35: =GAMEstage1!AC5 -> 0 | AD35: =GAMEstage1!AD5 -> 0 | AE35: =GAMEstage1!AE5 -> 0
B36: 1 | C36: 1 | D36: 1 | E36: 1 | F36: 1 | G36: 1 | H36: 1 | I36: 1 | J36: 1 | K36: 1 | L36: 1 | M36: 1 | N36: 1 | O36: 1 | P36: 1 | Q36: =GAMEstage1!Q6 -> 0 | R36: =GAMEstage1!R6 -> 0 | S36: =GAMEstage1!S6 -> 0 | T36: =GAMEstage1!T6 -> 0 | U36: =GAMEstage1!U6 -> 0 | V36: =GAMEstage1!V6 -> 0 | W36: =GAMEstage1!W6 -> 0 | X36: =GAMEstage1!X6 -> 0 | Y36: =GAMEstage1!Y6 -> 0 | Z36: =GAMEstage1!Z6 -> 0 | AA36: =GAMEstage1!AA6 -> 0 | AB36: =GAMEstage1!AB6 -> 0 | AC36: =GAMEstage1!AC6 -> 0 | AD36: =GAMEstage1!AD6 -> 0 | AE36: =GAMEstage1!AE6 -> 0
B37: 1 | C37: 1 | D37: 1 | E37: 1 | F37: 1 | G37: 1 | H37: 1 | I37: 1 | J37: 1 | K37: 1 | L37: 1 | M37: 1 | N37: 1 | O37: 1 | P37: 1 | Q37: =GAMEstage1!Q7 -> 0 | R37: =GAMEstage1!R7 -> 0 | S37: =GAMEstage1!S7 -> 0 | T37: =GAMEstage1!T7 -> 0 | U37: =GAMEstage1!U7 -> 0 | V37: =GAMEstage1!V7 -> 0 | W37: =GAMEstage1!W7 -> 0 | X37: =GAMEstage1!X7 -> 0 | Y37: =GAMEstage1!Y7 -> 0 | Z37: =GAMEstage1!Z7 -> 0 | AA37: =GAMEstage1!AA7 -> 0 | AB37: =GAMEstage1!AB7 -> 0 | AC37: =GAMEstage1!AC7 -> 0 | AD37: =GAMEstage1!AD7 -> 0 | AE37: =GAMEstage1!AE7 -> 0
B38: 1 | C38: 1 | D38: 1 | E38: 1 | F38: 1 | G38: 1 | H38: 1 | I38: 1 | J38: 1 | K38: 1 | L38: 1 | M38: 1 | N38: 1 | O38: 1 | P38: 1 | Q38: =GAMEstage1!Q8 -> 0 | R38: =GAMEstage1!R8 -> 0 | S38: =GAMEstage1!S8 -> 0 | T38: =GAMEstage1!T8 -> 0 | U38: =GAMEstage1!U8 -> 0 | V38: =GAMEstage1!V8 -> 0 | W38: =GAMEstage1!W8 -> 0 | X38: =GAMEstage1!X8 -> 0 | Y38: =GAMEstage1!Y8 -> 0 | Z38: =GAMEstage1!Z8 -> 0 | AA38: =GAMEstage1!AA8 -> 0 | AB38: =GAMEstage1!AB8 -> 0 | AC38: =GAMEstage1!AC8 -> 0 | AD38: =GAMEstage1!AD8 -> 0 | AE38: =GAMEstage1!AE8 -> 0
B39: 1 | C39: 1 | D39: 1 | E39: 1 | F39: 1 | G39: 1 | H39: 1 | I39: 1 | J39: 1 | K39: 1 | L39: 1 | M39: 1 | N39: 1 | O39: 1 | P39: 1 | Q39: =GAMEstage1!Q9 -> 0 | R39: =GAMEstage1!R9 -> 0 | S39: =GAMEstage1!S9 -> 0 | T39: =GAMEstage1!T9 -> 0 | U39: =GAMEstage1!U9 -> 0 | V39: =GAMEstage1!V9 -> 0 | W39: =GAMEstage1!W9 -> 0 | X39: =GAMEstage1!X9 -> 0 | Y39: =GAMEstage1!Y9 -> 0 | Z39: =GAMEstage1!Z9 -> 0 | AA39: =GAMEstage1!AA9 -> 0 | AB39: =GAMEstage1!AB9 -> 0 | AC39: =GAMEstage1!AC9 -> 0 | AD39: =GAMEstage1!AD9 -> 0 | AE39: =GAMEstage1!AE9 -> 0
B40: 1 | C40: 1 | D40: 1 | E40: 1 | F40: 1 | G40: 1 | H40: 1 | I40: 1 | J40: 1 | K40: 1 | L40: 1 | M40: 1 | N40: 1 | O40: 1 | P40: 1 | Q40: =GAMEstage1!Q10 -> 0 | R40: =GAMEstage1!R10 -> 0 | S40: =GAMEstage1!S10 -> 0 | T40: =GAMEstage1!T10 -> 0 | U40: =GAMEstage1!U10 -> 0 | V40: =GAMEstage1!V10 -> 0 | W40: =GAMEstage1!W10 -> 0 | X40: =GAMEstage1!X10 -> 0 | Y40: =GAMEstage1!Y10 -> 0 | Z40: =GAMEstage1!Z10 -> 0 | AA40: =GAMEstage1!AA10 -> 0 | AB40: =GAMEstage1!AB10 -> 0 | AC40: =GAMEstage1!AC10 -> 0 | AD40: =GAMEstage1!AD10 -> 0 | AE40: =GAMEstage1!AE10 -> 0
B41: 1 | C41: 1 | D41: 1 | E41: 1 | F41: 1 | G41: 1 | H41: 1 | I41: 1 | J41: 1 | K41: 1 | L41: 1 | M41: 1 | N41: 1 | O41: 1 | P41: 1 | Q41: =GAMEstage1!Q11 -> 0 | R41: =GAMEstage1!R11 -> 0 | S41: =GAMEstage1!S11 -> 0 | T41: =GAMEstage1!T11 -> 0 | U41: =GAMEstage1!U11 -> 0 | V41: =GAMEstage1!V11 -> 0 | W41: =GAMEstage1!W11 -> 0 | X41: =GAMEstage1!X11 -> 0 | Y41: =GAMEstage1!Y11 -> 0 | Z41: =GAMEstage1!Z11 -> 0 | AA41: =GAMEstage1!AA11 -> 0 | AB41: =GAMEstage1!AB11 -> 0 | AC41: =GAMEstage1!AC11 -> 0 | AD41: =GAMEstage1!AD11 -> 0 | AE41: =GAMEstage1!AE11 -> 0
B42: 1 | C42: 1 | D42: 1 | E42: 1 | F42: 1 | G42: 1 | H42: 1 | I42: 1 | J42: 1 | K42: 1 | L42: 1 | M42: 1 | N42: 1 | O42: 1 | P42: 1 | Q42: =GAMEstage1!Q12 -> 0 | R42: =GAMEstage1!R12 -> 0 | S42: =GAMEstage1!S12 -> 0 | T42: =GAMEstage1!T12 -> 0 | U42: =GAMEstage1!U12 -> 0 | V42: =GAMEstage1!V12 -> 0 | W42: =GAMEstage1!W12 -> 0 | X42: =GAMEstage1!X12 -> 0 | Y42: =GAMEstage1!Y12 -> 0 | Z42: =GAMEstage1!Z12 -> 0 | AA42: =GAMEstage1!AA12 -> 0 | AB42: =GAMEstage1!AB12 -> 0 | AC42: =GAMEstage1!AC12 -> 0 | AD42: =GAMEstage1!AD12 -> 0 | AE42: =GAMEstage1!AE12 -> 0
B43: 1 | C43: 1 | D43: 1 | E43: 1 | F43: 1 | G43: 1 | H43: 1 | I43: 1 | J43: 1 | K43: 1 | L43: 1 | M43: 1 | N43: 1 | O43: 1 | P43: 1 | Q43: =GAMEstage1!Q13 -> 0 | R43: =GAMEstage1!R13 -> 0 | S43: =GAMEstage1!S13 -> 0 | T43: =GAMEstage1!T13 -> 0 | U43: =GAMEstage1!U13 -> 0 | V43: =GAMEstage1!V13 -> 0 | W43: =GAMEstage1!W13 -> 0 | X43: =GAMEstage1!X13 -> 0 | Y43: =GAMEstage1!Y13 -> 0 | Z43: =GAMEstage1!Z13 -> 0 | AA43: =GAMEstage1!AA13 -> 0 | AB43: =GAMEstage1!AB13 -> 0 | AC43: =GAMEstage1!AC13 -> 0 | AD43: =GAMEstage1!AD13 -> 0 | AE43: =GAMEstage1!AE13 -> 0
B44: 1 | C44: 1 | D44: 1 | E44: 1 | F44: 1 | G44: 1 | H44: 1 | I44: 1 | J44: 1 | K44: 1 | L44: 1 | M44: 1 | N44: 1 | O44: 1 | P44: 1 | Q44: =GAMEstage1!Q14 -> 0 | R44: =GAMEstage1!R14 -> 0 | S44: =GAMEstage1!S14 -> 0 | T44: =GAMEstage1!T14 -> 0 | U44: =GAMEstage1!U14 -> 0 | V44: =GAMEstage1!V14 -> 0 | W44: =GAMEstage1!W14 -> 0 | X44: =GAMEstage1!X14 -> 0 | Y44: =GAMEstage1!Y14 -> 0 | Z44: =GAMEstage1!Z14 -> 0 | AA44: =GAMEstage1!AA14 -> 0 | AB44: =GAMEstage1!AB14 -> 0 | AC44: =GAMEstage1!AC14 -> 0 | AD44: =GAMEstage1!AD14 -> 0 | AE44: =GAMEstage1!AE14 -> 0
B45: 1 | C45: 1 | D45: 1 | E45: 1 | F45: 1 | G45: 1 | H45: 1 | I45: 1 | J45: 1 | K45: 1 | L45: 1 | M45: 1 | N45: 1 | O45: 1 | P45: 1 | Q45: =GAMEstage1!Q15 -> 0 | R45: =GAMEstage1!R15 -> 0 | S45: =GAMEstage1!S15 -> 0 | T45: =GAMEstage1!T15 -> 0 | U45: =GAMEstage1!U15 -> 0 | V45: =GAMEstage1!V15 -> 0 | W45: =GAMEstage1!W15 -> 0 | X45: =GAMEstage1!X15 -> 0 | Y45: =GAMEstage1!Y15 -> 0 | Z45: =GAMEstage1!Z15 -> 0 | AA45: =GAMEstage1!AA15 -> 0 | AB45: =GAMEstage1!AB15 -> 0 | AC45: =GAMEstage1!AC15 -> 0 | AD45: =GAMEstage1!AD15 -> 0 | AE45: =GAMEstage1!AE15 -> 0
B46: 1 | C46: 1 | D46: 1 | E46: 1 | F46: 1 | G46: 1 | H46: 1 | I46: 1 | J46: 1 | K46: 1 | L46: 1 | M46: 1 | N46: 1 | O46: 1 | P46: 1 | Q46: =GAMEstage1!Q16 -> 0 | R46: =GAMEstage1!R16 -> 0 | S46: =GAMEstage1!S16 -> 0 | T46: =GAMEstage1!T16 -> 0 | U46: =GAMEstage1!U16 -> 0 | V46: =GAMEstage1!V16 -> 0 | W46: =GAMEstage1!W16 -> 0 | X46: =GAMEstage1!X16 -> 0 | Y46: =GAMEstage1!Y16 -> 0 | Z46: =GAMEstage1!Z16 -> 0 | AA46: =GAMEstage1!AA16 -> 0 | AB46: =GAMEstage1!AB16 -> 0 | AC46: =GAMEstage1!AC16 -> 0 | AD46: =GAMEstage1!AD16 -> 0 | AE46: =GAMEstage1!AE16 -> 0
B47: 1 | C47: 1 | D47: 1 | E47: 1 | F47: 1 | G47: 1 | H47: 1 | I47: 1 | J47: 1 | K47: 1 | L47: 1 | M47: 1 | N47: 1 | O47: 1 | P47: 1 | Q47: =GAMEstage1!Q17 -> 0 | R47: =GAMEstage1!R17 -> 0 | S47: =GAMEstage1!S17 -> 0 | T47: =GAMEstage1!T17 -> 0 | U47: =GAMEstage1!U17 -> 0 | V47: =GAMEstage1!V17 -> 0 | W47: =GAMEstage1!W17 -> 0 | X47: =GAMEstage1!X17 -> 0 | Y47: =GAMEstage1!Y17 -> 0 | Z47: =GAMEstage1!Z17 -> 0 | AA47: =GAMEstage1!AA17 -> 0 | AB47: =GAMEstage1!AB17 -> 0 | AC47: =GAMEstage1!AC17 -> 0 | AD47: =GAMEstage1!AD17 -> 0 | AE47: =GAMEstage1!AE17 -> 0
B48: 1 | C48: 1 | D48: 1 | E48: 1 | F48: 1 | G48: 1 | H48: 1 | I48: 1 | J48: 1 | K48: 1 | L48: 1 | M48: 1 | N48: 1 | O48: 1 | P48: 1 | Q48: =GAMEstage1!Q18 -> 0 | R48: =GAMEstage1!R18 -> 0 | S48: =GAMEstage1!S18 -> 0 | T48: =GAMEstage1!T18 -> 0 | U48: =GAMEstage1!U18 -> 0 | V48: =GAMEstage1!V18 -> 0 | W48: =GAMEstage1!W18 -> 0 | X48: =GAMEstage1!X18 -> 0 | Y48: =GAMEstage1!Y18 -> 0 | Z48: =GAMEstage1!Z18 -> 0 | AA48: =GAMEstage1!AA18 -> 0 | AB48: =GAMEstage1!AB18 -> 0 | AC48: =GAMEstage1!AC18 -> 0 | AD48: =GAMEstage1!AD18 -> 0 | AE48: =GAMEstage1!AE18 -> 0
B49: 1 | C49: 1 | D49: 1 | E49: 1 | F49: 1 | G49: 1 | H49: 1 | I49: 1 | J49: 1 | K49: 1 | L49: 1 | M49: =IF(AB18=AB49,1,0) -> 1 | N49: 1 | O49: 1 | P49: 1 | Q49: =GAMEstage1!Q19 -> 0 | R49: =GAMEstage1!R19 -> 0 | S49: =GAMEstage1!S19 -> 0 | T49: =GAMEstage1!T19 -> 0 | U49: =GAMEstage1!U19 -> 0 | V49: =GAMEstage1!V19 -> 0 | W49: =GAMEstage1!W19 -> 0 | X49: =GAMEstage1!X19 -> 0 | Y49: =GAMEstage1!Y19 -> 0 | Z49: =GAMEstage1!Z19 -> 0 | AA49: =GAMEstage1!AA19 -> 0 | AB49: =GAMEstage1!AB19 -> 0 | AC49: =GAMEstage1!AC19 -> 0 | AD49: =GAMEstage1!AD19 -> 0 | AE49: =GAMEstage1!AE19 -> 0
B50: 1 | C50: 1 | D50: 1 | E50: 1 | F50: 1 | G50: 1 | H50: 1 | I50: 1 | J50: 1 | K50: 1 | L50: 1 | M50: 1 | N50: 1 | O50: 1 | P50: 1 | Q50: =GAMEstage1!Q20 -> 0 | R50: =GAMEstage1!R20 -> 0 | S50: =GAMEstage1!S20 -> 0 | T50: =GAMEstage1!T20 -> 0 | U50: =GAMEstage1!U20 -> 0 | V50: =GAMEstage1!V20 -> 0 | W50: =GAMEstage1!W20 -> 0 | X50: =GAMEstage1!X20 -> 0 | Y50: =GAMEstage1!Y20 -> 0 | Z50: =GAMEstage1!Z20 -> 0 | AA50: =GAMEstage1!AA20 -> 0 | AB50: =GAMEstage1!AB20 -> 0 | AC50: =GAMEstage1!AC20 -> 0 | AD50: =GAMEstage1!AD20 -> 0 | AE50: =GAMEstage1!AE20 -> 0
B51: 1 | C51: 1 | D51: 1 | E51: 1 | F51: 1 | G51: 1 | H51: 1 | I51: 1 | J51: 1 | K51: 1 | L51: 1 | M51: 1 | N51: 1 | O51: 1 | P51: 1 | Q51: =GAMEstage1!Q21 -> 0 | R51: =GAMEstage1!R21 -> 0 | S51: =GAMEstage1!S21 -> 0 | T51: =GAMEstage1!T21 -> 0 | U51: =GAMEstage1!U21 -> 0 | V51: =GAMEstage1!V21 -> 0 | W51: =GAMEstage1!W21 -> 0 | X51: =GAMEstage1!X21 -> 0 | Y51: =GAMEstage1!Y21 -> 0 | Z51: =GAMEstage1!Z21 -> 0 | AA51: =GAMEstage1!AA21 -> 0 | AB51: =GAMEstage1!AB21 -> 0 | AC51: =GAMEstage1!AC21 -> 0 | AD51: =GAMEstage1!AD21 -> 0 | AE51: =GAMEstage1!AE21 -> 0
B52: 1 | C52: 1 | D52: 1 | E52: 1 | F52: 1 | G52: 1 | H52: 1 | I52: 1 | J52: 1 | K52: 1 | L52: 1 | M52: 1 | N52: 1 | O52: 1 | P52: 1 | Q52: =GAMEstage1!Q22 -> 0 | R52: =GAMEstage1!R22 -> 0 | S52: =GAMEstage1!S22 -> 0 | T52: =GAMEstage1!T22 -> 0 | U52: =GAMEstage1!U22 -> 0 | V52: =GAMEstage1!V22 -> 0 | W52: =GAMEstage1!W22 -> 0 | X52: =GAMEstage1!X22 -> 0 | Y52: =GAMEstage1!Y22 -> 0 | Z52: =GAMEstage1!Z22 -> 0 | AA52: =GAMEstage1!AA22 -> 0 | AB52: =GAMEstage1!AB22 -> 0 | AC52: =GAMEstage1!AC22 -> 0 | AD52: =GAMEstage1!AD22 -> 0 | AE52: =GAMEstage1!AE22 -> 0
B53: 1 | C53: 1 | D53: 1 | E53: 1 | F53: 1 | G53: 1 | H53: 1 | I53: 1 | J53: 1 | K53: 1 | L53: 1 | M53: 1 | N53: 1 | O53: 1 | P53: 1 | Q53: =GAMEstage1!Q23 -> 0 | R53: =GAMEstage1!R23 -> 0 | S53: =GAMEstage1!S23 -> 0 | T53: =GAMEstage1!T23 -> 0 | U53: =GAMEstage1!U23 -> 0 | V53: =GAMEstage1!V23 -> 0 | W53: =GAMEstage1!W23 -> 0 | X53: =GAMEstage1!X23 -> 0 | Y53: =GAMEstage1!Y23 -> 0 | Z53: =GAMEstage1!Z23 -> 0 | AA53: =GAMEstage1!AA23 -> 0 | AB53: =GAMEstage1!AB23 -> 0 | AC53: =GAMEstage1!AC23 -> 0 | AD53: =GAMEstage1!AD23 -> 0 | AE53: =GAMEstage1!AE23 -> 0
B54: 1 | C54: 1 | D54: 1 | E54: 1 | F54: 1 | G54: 1 | H54: 1 | I54: 1 | J54: 1 | K54: 1 | L54: 1 | M54: 1 | N54: 1 | O54: 1 | P54: 1 | Q54: =GAMEstage1!Q24 -> 0 | R54: =GAMEstage1!R24 -> 0 | S54: =GAMEstage1!S24 -> 0 | T54: =GAMEstage1!T24 -> 0 | U54: =GAMEstage1!U24 -> 0 | V54: =GAMEstage1!V24 -> 0 | W54: =GAMEstage1!W24 -> 0 | X54: =GAMEstage1!X24 -> 0 | Y54: =GAMEstage1!Y24 -> 0 | Z54: =GAMEstage1!Z24 -> 0 | AA54: =GAMEstage1!AA24 -> 0 | AB54: =GAMEstage1!AB24 -> 0 | AC54: =GAMEstage1!AC24 -> 0 | AD54: =GAMEstage1!AD24 -> 0 | AE54: =GAMEstage1!AE24 -> 0
B55: 1 | C55: 1 | D55: 1 | E55: 1 | F55: 1 | G55: 1 | H55: 1 | I55: 1 | J55: 1 | K55: 1 | L55: 1 | M55: 1 | N55: 1 | O55: 1 | P55: 1 | Q55: =GAMEstage1!Q25 -> 0 | R55: =GAMEstage1!R25 -> 0 | S55: =GAMEstage1!S25 -> 0 | T55: =GAMEstage1!T25 -> 0 | U55: =GAMEstage1!U25 -> 0 | V55: =GAMEstage1!V25 -> 0 | W55: =GAMEstage1!W25 -> 0 | X55: =GAMEstage1!X25 -> 0 | Y55: =GAMEstage1!Y25 -> 0 | Z55: =GAMEstage1!Z25 -> 0 | AA55: =GAMEstage1!AA25 -> 0 | AB55: =GAMEstage1!AB25 -> 0 | AC55: =GAMEstage1!AC25 -> 0 | AD55: =GAMEstage1!AD25 -> 0 | AE55: =GAMEstage1!AE25 -> 0
B56: 1 | C56: 1 | D56: 1 | E56: 1 | F56: 1 | G56: 1 | H56: 1 | I56: 1 | J56: 1 | K56: 1 | L56: 1 | M56: 1 | N56: 1 | O56: 1 | P56: 1 | Q56: =GAMEstage1!Q26 -> 0 | R56: =GAMEstage1!R26 -> 0 | S56: =GAMEstage1!S26 -> 0 | T56: =GAMEstage1!T26 -> 0 | U56: =GAMEstage1!U26 -> 0 | V56: =GAMEstage1!V26 -> 0 | W56: =GAMEstage1!W26 -> 0 | X56: =GAMEstage1!X26 -> 0 | Y56: =GAMEstage1!Y26 -> 0 | Z56: =GAMEstage1!Z26 -> 0 | AA56: =GAMEstage1!AA26 -> 0 | AB56: =GAMEstage1!AB26 -> 0 | AC56: =GAMEstage1!AC26 -> 0 | AD56: =GAMEstage1!AD26 -> 0 | AE56: =GAMEstage1!AE26 -> 0
B57: 1 | C57: 1 | D57: 1 | E57: 1 | F57: 1 | G57: 1 | H57: 1 | I57: 1 | J57: 1 | K57: 1 | L57: 1 | M57: 1 | N57: 1 | O57: 1 | P57: 1 | Q57: =GAMEstage1!Q27 -> 0 | R57: =GAMEstage1!R27 -> 0 | S57: =GAMEstage1!S27 -> 0 | T57: =GAMEstage1!T27 -> 0 | U57: =GAMEstage1!U27 -> 0 | V57: =GAMEstage1!V27 -> 0 | W57: =GAMEstage1!W27 -> 0 | X57: =GAMEstage1!X27 -> 0 | Y57: =GAMEstage1!Y27 -> 0 | Z57: =GAMEstage1!Z27 -> 0 | AA57: =GAMEstage1!AA27 -> 0 | AB57: =GAMEstage1!AB27 -> 0 | AC57: =GAMEstage1!AC27 -> 0 | AD57: =GAMEstage1!AD27 -> 0 | AE57: =GAMEstage1!AE27 -> 0
B58: 1 | C58: 1 | D58: 1 | E58: 1 | F58: 1 | G58: 1 | H58: 1 | I58: 1 | J58: 1 | K58: 1 | L58: 1 | M58: 1 | N58: 1 | O58: 1 | P58: 1 | Q58: =GAMEstage1!Q28 -> 0 | R58: =GAMEstage1!R28 -> 0 | S58: =GAMEstage1!S28 -> 0 | T58: =GAMEstage1!T28 -> 0 | U58: =GAMEstage1!U28 -> 0 | V58: =GAMEstage1!V28 -> 0 | W58: =GAMEstage1!W28 -> 0 | X58: =GAMEstage1!X28 -> 0 | Y58: =GAMEstage1!Y28 -> 0 | Z58: =GAMEstage1!Z28 -> 0 | AA58: =GAMEstage1!AA28 -> 0 | AB58: =GAMEstage1!AB28 -> 0 | AC58: =GAMEstage1!AC28 -> 0 | AD58: =GAMEstage1!AD28 -> 0 | AE58: =GAMEstage1!AE28 -> 0
B59: 1 | C59: 1 | D59: 1 | E59: 1 | F59: 1 | G59: 1 | H59: 1 | I59: 1 | J59: 1 | K59: 1 | L59: 1 | M59: 1 | N59: 1 | O59: 1 | P59: 1 | Q59: =GAMEstage1!Q29 -> 0 | R59: =GAMEstage1!R29 -> 0 | S59: =GAMEstage1!S29 -> 0 | T59: =GAMEstage1!T29 -> 0 | U59: =GAMEstage1!U29 -> 0 | V59: =GAMEstage1!V29 -> 0 | W59: =GAMEstage1!W29 -> 0 | X59: =GAMEstage1!X29 -> 0 | Y59: =GAMEstage1!Y29 -> 0 | Z59: =GAMEstage1!Z29 -> 0 | AA59: =GAMEstage1!AA29 -> 0 | AB59: =GAMEstage1!AB29 -> 0 | AC59: =GAMEstage1!AC29 -> 0 | AD59: =GAMEstage1!AD29 -> 0 | AE59: =GAMEstage1!AE29 -> 0
B60: 1 | C60: 1 | D60: 1 | E60: 1 | F60: 1 | G60: 1 | H60: 1 | I60: 1 | J60: 1 | K60: 1 | L60: 1 | M60: 1 | N60: 1 | O60: 1 | P60: 1 | Q60: =GAMEstage1!Q30 -> 0 | R60: =GAMEstage1!R30 -> 0 | S60: =GAMEstage1!S30 -> 0 | T60: =GAMEstage1!T30 -> 0 | U60: =GAMEstage1!U30 -> 0 | V60: =GAMEstage1!V30 -> 0 | W60: =GAMEstage1!W30 -> 0 | X60: =GAMEstage1!X30 -> 0 | Y60: =GAMEstage1!Y30 -> 0 | Z60: =GAMEstage1!Z30 -> 0 | AA60: =GAMEstage1!AA30 -> 0 | AB60: =GAMEstage1!AB30 -> 0 | AC60: =GAMEstage1!AC30 -> 0 | AD60: =GAMEstage1!AD30 -> 0 | AE60: =GAMEstage1!AE30 -> 0
B61: 1 | C61: 1 | D61: 1 | E61: 1 | F61: 1 | G61: 1 | H61: 1 | I61: 1 | J61: 1 | K61: 1 | L61: 1 | M61: 1 | N61: 1 | O61: 1 | P61: 1 | Q61: =GAMEstage1!Q31 -> 0 | R61: =GAMEstage1!R31 -> 0 | S61: =GAMEstage1!S31 -> 0 | T61: =GAMEstage1!T31 -> 0 | U61: =GAMEstage1!U31 -> 0 | V61: =GAMEstage1!V31 -> 0 | W61: =GAMEstage1!W31 -> 0 | X61: =GAMEstage1!X31 -> 0 | Y61: =GAMEstage1!Y31 -> 0 | Z61: =GAMEstage1!Z31 -> 0 | AA61: =GAMEstage1!AA31 -> 0 | AB61: =GAMEstage1!AB31 -> 0 | AC61: =GAMEstage1!AC31 -> 0 | AD61: =GAMEstage1!AD31 -> 0 | AE61: =GAMEstage1!AE31 -> 0
G65: =SUM(B32:P61) -> 450

Sheet Simetría2
B1: =GAMEstage1!B2 -> 0 | C1: =GAMEstage1!C2 -> 0 | D1: =GAMEstage1!D2 -> 0 | E1: =GAMEstage1!E2 -> 0 | F1: =GAMEstage1!F2 -> 0 | G1: =GAMEstage1!G2 -> 0 | H1: =GAMEstage1!H2 -> 0 | I1: =GAMEstage1!I2 -> 0 | J1: =GAMEstage1!J2 -> 0 | K1: =GAMEstage1!K2 -> 0 | L1: =GAMEstage1!L2 -> 0 | M1: =GAMEstage1!M2 -> 0 | N1: =GAMEstage1!N2 -> 0 | O1: =GAMEstage1!O2 -> 0 | P1: =GAMEstage1!P2 -> 0 | Q1: =P1 -> 0 | R1: =O1 -> 0 | S1: =N1 -> 0 | T1: =M1 -> 0 | U1: =L1 -> 0 | V1: =K1 -> 0 | W1: =J1 -> 0 | X1: =I1 -> 0 | Y1: =H1 -> 0 | Z1: =G1 -> 0 | AA1: =F1 -> 0 | AB1: =E1 -> 0 | AC1: =D1 -> 0 | AD1: =C1 -> 0 | AE1: =B1 -> 0 | AN1: There is nothing | AP1: =IF(B1=0,0,1) -> 0 | AQ1: =IF(C1=0,0,1) -> 0 | AR1: 0 | AS1: 0 | AT1: 0 | AU1: 0 | AV1: 0 | AW1: 0 | AX1: 0 | AY1: 0 | AZ1: 0 | BA1: 0 | BB1: 0 | BC1: 0 | BD1: 0 | BE1: 0 | BF1: 0 | BG1: 0 | BH1: 0 | BI1: 0 | BJ1: 0 | BK1: 0 | BL1: 0 | BM1: 0 | BN1: 0 | BO1: 0 | BP1: 0 | BQ1: 0 | BR1: 0 | BS1: 0
B2: =GAMEstage1!B3 -> 0 | C2: =GAMEstage1!C3 -> 0 | D2: =GAMEstage1!D3 -> 0 | E2: =GAMEstage1!E3 -> 0 | F2: =GAMEstage1!F3 -> 0 | G2: =GAMEstage1!G3 -> 0 | H2: =GAMEstage1!H3 -> 0 | I2: =GAMEstage1!I3 -> 0 | J2: =GAMEstage1!J3 -> 0 | K2: =GAMEstage1!K3 -> 0 | L2: =GAMEstage1!L3 -> 0 | M2: =GAMEstage1!M3 -> 0 | N2: =GAMEstage1!N3 -> 0 | O2: =GAMEstage1!O3 -> 0 | P2: =GAMEstage1!P3 -> 0 | Q2: =P2 -> 0 | R2: =O2 -> 0 | S2: =N2 -> 0 | T2: =M2 -> 0 | U2: =L2 -> 0 | V2: =K2 -> 0 | W2: =J2 -> 0 | X2: =I2 -> 0 | Y2: =H2 -> 0 | Z2: =G2 -> 0 | AA2: =F2 -> 0 | AB2: =E2 -> 0 | AC2: =D2 -> 0 | AD2: =C2 -> 0 | AE2: =B2 -> 0 | AP2: =IF(B2=0,0,1) -> 0 | AQ2: =IF(C2=0,0,1) -> 0 | AR2: =IF(D2=0,0,1) -> 0 | AS2: =IF(E2=0,0,1) -> 0 | AT2: =IF(F2=0,0,1) -> 0 | AU2: =IF(G2=0,0,1) -> 0 | AV2: =IF(H2=0,0,1) -> 0 | AW2: =IF(I2=0,0,1) -> 0 | AX2: =IF(J2=0,0,1) -> 0 | AY2: =IF(K2=0,0,1) -> 0 | AZ2: =IF(L2=0,0,1) -> 0 | BA2: =IF(M2=0,0,1) -> 0 | BB2: =IF(N2=0,0,1) -> 0 | BC2: =IF(O2=0,0,1) -> 0 | BD2: =IF(P2=0,0,1) -> 0 | BE2: =IF(Q2=0,0,1) -> 0 | BF2: =IF(R2=0,0,1) -> 0 | BG2: =IF(S2=0,0,1) -> 0 | BH2: =IF(T2=0,0,1) -> 0 | BI2: =IF(U2=0,0,1) -> 0 | BJ2: =IF(V2=0,0,1) -> 0 | BK2: =IF(W2=0,0,1) -> 0 | BL2: =IF(X2=0,0,1) -> 0 | BM2: =IF(Y2=0,0,1) -> 0 | BN2: =IF(Z2=0,0,1) -> 0 | BO2: =IF(AA2=0,0,1) -> 0 | BP2: =IF(AB2=0,0,1) -> 0 | BQ2: =IF(AC2=0,0,1) -> 0 | BR2: =IF(AD2=0,0,1) -> 0 | BS2: =IF(AE2=0,0,1) -> 0
B3: =GAMEstage1!B4 -> 0 | C3: =GAMEstage1!C4 -> 0 | D3: =GAMEstage1!D4 -> 0 | E3: =GAMEstage1!E4 -> 0 | F3: =GAMEstage1!F4 -> 0 | G3: =GAMEstage1!G4 -> 0 | H3: =GAMEstage1!H4 -> 0 | I3: =GAMEstage1!I4 -> 0 | J3: =GAMEstage1!J4 -> 0 | K3: =GAMEstage1!K4 -> 0 | L3: =GAMEstage1!L4 -> 0 | M3: =GAMEstage1!M4 -> 0 | N3: =GAMEstage1!N4 -> 0 | O3: =GAMEstage1!O4 -> 0 | P3: =GAMEstage1!P4 -> 0 | Q3: 0 | R3: 0 | S3: 0 | T3: 0 | U3: 0 | V3: 0 | W3: 0 | X3: 0 | Y3: 0 | Z3: 0 | AA3: 0 | AB3: 0 | AC3: 0 | AD3: 0 | AE3: 0 | AN3: =SUM(AP1:BS30) -> 0 | AP3: 0 | AQ3: 0 | AR3: 0 | AS3: 0 | AT3: 0 | AU3: 0 | AV3: 0 | AW3: 0 | AX3: 0 | AY3: 0 | AZ3: 0 | BA3: 0 | BB3: 0 | BC3: 0 | BD3: 0 | BE3: 0 | BF3: 0 | BG3: 0 | BH3: 0 | BI3: 0 | BJ3: 0 | BK3: 0 | BL3: 0 | BM3: 0 | BN3: 0 | BO3: 0 | BP3: 0 | BQ3: 0 | BR3: 0 | BS3: 0
B4: =GAMEstage1!B5 -> 0 | C4: =GAMEstage1!C5 -> 0 | D4: =GAMEstage1!D5 -> 0 | E4: =GAMEstage1!E5 -> 0 | F4: =GAMEstage1!F5 -> 0 | G4: =GAMEstage1!G5 -> 0 | H4: =GAMEstage1!H5 -> 0 | I4: =GAMEstage1!I5 -> 0 | J4: =GAMEstage1!J5 -> 0 | K4: =GAMEstage1!K5 -> 0 | L4: =GAMEstage1!L5 -> 0 | M4: =GAMEstage1!M5 -> 0 | N4: =GAMEstage1!N5 -> 0 | O4: =GAMEstage1!O5 -> 0 | P4: =GAMEstage1!P5 -> 0 | Q4: 0 | R4: 0 | S4: 0 | T4: 0 | U4: 0 | V4: 0 | W4: 0 | X4: 0 | Y4: 0 | Z4: 0 | AA4: 0 | AB4: 0 | AC4: 0 | AD4: 0 | AE4: 0 | AP4: 0 | AQ4: 0 | AR4: 0 | AS4: 0 | AT4: 0 | AU4: 0 | AV4: 0 | AW4: 0 | AX4: 0 | AY4: 0 | AZ4: 0 | BA4: 0 | BB4: 0 | BC4: 0 | BD4: 0 | BE4: 0 | BF4: 0 | BG4: 0 | BH4: 0 | BI4: 0 | BJ4: 0 | BK4: 0 | BL4: 0 | BM4: 0 | BN4: 0 | BO4: 0 | BP4: 0 | BQ4: 0 | BR4: 0 | BS4: 0
B5: =GAMEstage1!B6 -> 0 | C5: =GAMEstage1!C6 -> 0 | D5: =GAMEstage1!D6 -> 0 | E5: =GAMEstage1!E6 -> 0 | F5: =GAMEstage1!F6 -> 0 | G5: =GAMEstage1!G6 -> 0 | H5: =GAMEstage1!H6 -> 0 | I5: =GAMEstage1!I6 -> 0 | J5: =GAMEstage1!J6 -> 0 | K5: =GAMEstage1!K6 -> 0 | L5: =GAMEstage1!L6 -> 0 | M5: =GAMEstage1!M6 -> 0 | N5: =GAMEstage1!N6 -> 0 | O5: =GAMEstage1!O6 -> 0 | P5: =GAMEstage1!P6 -> 0 | Q5: 0 | R5: 0 | S5: 0 | T5: 0 | U5: 0 | V5: 0 | W5: 0 | X5: 0 | Y5: 0 | Z5: 0 | AA5: 0 | AB5: 0 | AC5: 0 | AD5: 0 | AE5: 0 | AP5: 0 | AQ5: 0 | AR5: 0 | AS5: 0 | AT5: 0 | AU5: 0 | AV5: 0 | AW5: 0 | AX5: 0 | AY5: 0 | AZ5: 0 | BA5: 0 | BB5: 0 | BC5: 0 | BD5: 0 | BE5: 0 | BF5: 0 | BG5: 0 | BH5: 0 | BI5: 0 | BJ5: 0 | BK5: 0 | BL5: 0 | BM5: 0 | BN5: 0 | BO5: 0 | BP5: 0 | BQ5: 0 | BR5: 0 | BS5: 0
B6: =GAMEstage1!B7 -> 0 | C6: =GAMEstage1!C7 -> 0 | D6: =GAMEstage1!D7 -> 0 | E6: =GAMEstage1!E7 -> 0 | F6: =GAMEstage1!F7 -> 0 | G6: =GAMEstage1!G7 -> 0 | H6: =GAMEstage1!H7 -> 0 | I6: =GAMEstage1!I7 -> 0 | J6: =GAMEstage1!J7 -> 0 | K6: =GAMEstage1!K7 -> 0 | L6: =GAMEstage1!L7 -> 0 | M6: =GAMEstage1!M7 -> 0 | N6: =GAMEstage1!N7 -> 0 | O6: =GAMEstage1!O7 -> 0 | P6: =GAMEstage1!P7 -> 0 | Q6: 0 | R6: 0 | S6: 0 | T6: 0 | U6: 0 | V6: 0 | W6: 0 | X6: 0 | Y6: 0 | Z6: 0 | AA6: 0 | AB6: 0 | AC6: 0 | AD6: 0 | AE6: 0 | AP6: 0 | AQ6: 0 | AR6: 0 | AS6: 0 | AT6: 0 | AU6: 0 | AV6: 0 | AW6: 0 | AX6: 0 | AY6: 0 | AZ6: 0 | BA6: 0 | BB6: 0 | BC6: 0 | BD6: 0 | BE6: 0 | BF6: 0 | BG6: 0 | BH6: 0 | BI6: 0 | BJ6: 0 | BK6: 0 | BL6: 0 | BM6: 0 | BN6: 0 | BO6: 0 | BP6: 0 | BQ6: 0 | BR6: 0 | BS6: 0
B7: =GAMEstage1!B8 -> 0 | C7: =GAMEstage1!C8 -> 0 | D7: =GAMEstage1!D8 -> 0 | E7: =GAMEstage1!E8 -> 0 | F7: =GAMEstage1!F8 -> 0 | G7: =GAMEstage1!G8 -> 0 | H7: =GAMEstage1!H8 -> 0 | I7: =GAMEstage1!I8 -> 0 | J7: =GAMEstage1!J8 -> 0 | K7: =GAMEstage1!K8 -> 0 | L7: =GAMEstage1!L8 -> 0 | M7: =GAMEstage1!M8 -> 0 | N7: =GAMEstage1!N8 -> 0 | O7: =GAMEstage1!O8 -> 0 | P7: =GAMEstage1!P8 -> 0 | Q7: 0 | R7: 0 | S7: 0 | T7: 0 | U7: 0 | V7: 0 | W7: 0 | X7: 0 | Y7: 0 | Z7: 0 | AA7: 0 | AB7: 0 | AC7: 0 | AD7: 0 | AE7: 0 | AP7: 0 | AQ7: 0 | AR7: 0 | AS7: 0 | AT7: 0 | AU7: 0 | AV7: 0 | AW7: 0 | AX7: 0 | AY7: 0 | AZ7: 0 | BA7: 0 | BB7: 0 | BC7: 0 | BD7: 0 | BE7: 0 | BF7: 0 | BG7: 0 | BH7: 0 | BI7: 0 | BJ7: 0 | BK7: 0 | BL7: 0 | BM7: 0 | BN7: 0 | BO7: 0 | BP7: 0 | BQ7: 0 | BR7: 0 | BS7: 0
B8: =GAMEstage1!B9 -> 0 | C8: =GAMEstage1!C9 -> 0 | D8: =GAMEstage1!D9 -> 0 | E8: =GAMEstage1!E9 -> 0 | F8: =GAMEstage1!F9 -> 0 | G8: =GAMEstage1!G9 -> 0 | H8: =GAMEstage1!H9 -> 0 | I8: =GAMEstage1!I9 -> 0 | J8: =GAMEstage1!J9 -> 0 | K8: =GAMEstage1!K9 -> 0 | L8: =GAMEstage1!L9 -> 0 | M8: =GAMEstage1!M9 -> 0 | N8: =GAMEstage1!N9 -> 0 | O8: =GAMEstage1!O9 -> 0 | P8: =GAMEstage1!P9 -> 0 | Q8: 0 | R8: 0 | S8: 0 | T8: 0 | U8: 0 | V8: 0 | W8: 0 | X8: 0 | Y8: 0 | Z8: 0 | AA8: 0 | AB8: 0 | AC8: 0 | AD8: 0 | AE8: 0 | AP8: 0 | AQ8: 0 | AR8: 0 | AS8: 0 | AT8: 0 | AU8: 0 | AV8: 0 | AW8: 0 | AX8: 0 | AY8: 0 | AZ8: 0 | BA8: 0 | BB8: 0 | BC8: 0 | BD8: 0 | BE8: 0 | BF8: 0 | BG8: 0 | BH8: 0 | BI8: 0 | BJ8: 0 | BK8: 0 | BL8: 0 | BM8: 0 | BN8: 0 | BO8: 0 | BP8: 0 | BQ8: 0 | BR8: 0 | BS8: 0
B9: =GAMEstage1!B10 -> 0 | C9: =GAMEstage1!C10 -> 0 | D9: =GAMEstage1!D10 -> 0 | E9: =GAMEstage1!E10 -> 0 | F9: =GAMEstage1!F10 -> 0 | G9: =GAMEstage1!G10 -> 0 | H9: =GAMEstage1!H10 -> 0 | I9: =GAMEstage1!I10 -> 0 | J9: =GAMEstage1!J10 -> 0 | K9: =GAMEstage1!K10 -> 0 | L9: =GAMEstage1!L10 -> 0 | M9: =GAMEstage1!M10 -> 0 | N9: =GAMEstage1!N10 -> 0 | O9: =GAMEstage1!O10 -> 0 | P9: =GAMEstage1!P10 -> 0 | Q9: 0 | R9: 0 | S9: 0 | T9: 0 | U9: 0 | V9: 0 | W9: 0 | X9: 0 | Y9: 0 | Z9: 0 | AA9: 0 | AB9: 0 | AC9: 0 | AD9: 0 | AE9: 0 | AP9: 0 | AQ9: 0 | AR9: 0 | AS9: 0 | AT9: 0 | AU9: 0 | AV9: 0 | AW9: 0 | AX9: 0 | AY9: 0 | AZ9: 0 | BA9: 0 | BB9: 0 | BC9: 0 | BD9: 0 | BE9: 0 | BF9: 0 | BG9: 0 | BH9: 0 | BI9: 0 | BJ9: 0 | BK9: 0 | BL9: 0 | BM9: 0 | BN9: 0 | BO9: 0 | BP9: 0 | BQ9: 0 | BR9: 0 | BS9: 0
B10: =GAMEstage1!B11 -> 0 | C10: =GAMEstage1!C11 -> 0 | D10: =GAMEstage1!D11 -> 0 | E10: =GAMEstage1!E11 -> 0 | F10: =GAMEstage1!F11 -> 0 | G10: =GAMEstage1!G11 -> 0 | H10: =GAMEstage1!H11 -> 0 | I10: =GAMEstage1!I11 -> 0 | J10: =GAMEstage1!J11 -> 0 | K10: =GAMEstage1!K11 -> 0 | L10: =GAMEstage1!L11 -> 0 | M10: =GAMEstage1!M11 -> 0 | N10: =GAMEstage1!N11 -> 0 | O10: =GAMEstage1!O11 -> 0 | P10: =GAMEstage1!P11 -> 0 | Q10: 0 | R10: 0 | S10: 0 | T10: 0 | U10: 0 | V10: 0 | W10: 0 | X10: 0 | Y10: 0 | Z10: 0 | AA10: 0 | AB10: 0 | AC10: 0 | AD10: 0 | AE10: 0 | AP10: 0 | AQ10: 0 | AR10: 0 | AS10: 0 | AT10: 0 | AU10: 0 | AV10: 0 | AW10: 0 | AX10: 0 | AY10: 0 | AZ10: 0 | BA10: 0 | BB10: 0 | BC10: 0 | BD10: 0 | BE10: 0 | BF10: 0 | BG10: 0 | BH10: 0 | BI10: 0 | BJ10: 0 | BK10: 0 | BL10: 0 | BM10: 0 | BN10: 0 | BO10: 0 | BP10: 0 | BQ10: 0 | BR10: 0 | BS10: 0
B11: =GAMEstage1!B12 -> 0 | C11: =GAMEstage1!C12 -> 0 | D11: =GAMEstage1!D12 -> 0 | E11: =GAMEstage1!E12 -> 0 | F11: =GAMEstage1!F12 -> 0 | G11: =GAMEstage1!G12 -> 0 | H11: =GAMEstage1!H12 -> 0 | I11: =GAMEstage1!I12 -> 0 | J11: =GAMEstage1!J12 -> 0 | K11: =GAMEstage1!K12 -> 0 | L11: =GAMEstage1!L12 -> 0 | M11: =GAMEstage1!M12 -> 0 | N11: =GAMEstage1!N12 -> 0 | O11: =GAMEstage1!O12 -> 0 | P11: =GAMEstage1!P12 -> 0 | Q11: 0 | R11: 0 | S11: 0 | T11: 0 | U11: 0 | V11: 0 | W11: 0 | X11: 0 | Y11: 0 | Z11: 0 | AA11: 0 | AB11: 0 | AC11: 0 | AD11: 0 | AE11: 0 | AP11: 0 | AQ11: 0 | AR11: 0 | AS11: 0 | AT11: 0 | AU11: 0 | AV11: 0 | AW11: 0 | AX11: 0 | AY11: 0 | AZ11: 0 | BA11: 0 | BB11: 0 | BC11: 0 | BD11: 0 | BE11: 0 | BF11: 0 | BG11: 0 | BH11: 0 | BI11: 0 | BJ11: 0 | BK11: 0 | BL11: 0 | BM11: 0 | BN11: 0 | BO11: 0 | BP11: 0 | BQ11: 0 | BR11: 0 | BS11: 0
B12: =GAMEstage1!B13 -> 0 | C12: =GAMEstage1!C13 -> 0 | D12: =GAMEstage1!D13 -> 0 | E12: =GAMEstage1!E13 -> 0 | F12: =GAMEstage1!F13 -> 0 | G12: =GAMEstage1!G13 -> 0 | H12: =GAMEstage1!H13 -> 0 | I12: =GAMEstage1!I13 -> 0 | J12: =GAMEstage1!J13 -> 0 | K12: =GAMEstage1!K13 -> 0 | L12: =GAMEstage1!L13 -> 0 | M12: =GAMEstage1!M13 -> 0 | N12: =GAMEstage1!N13 -> 0 | O12: =GAMEstage1!O13 -> 0 | P12: =GAMEstage1!P13 -> 0 | Q12: 0 | R12: 0 | S12: 0 | T12: 0 | U12: 0 | V12: 0 | W12: 0 | X12: 0 | Y12: 0 | Z12: 0 | AA12: 0 | AB12: 0 | AC12: 0 | AD12: 0 | AE12: 0 | AP12: 0 | AQ12: 0 | AR12: 0 | AS12: 0 | AT12: 0 | AU12: 0 | AV12: 0 | AW12: 0 | AX12: 0 | AY12: 0 | AZ12: 0 | BA12: 0 | BB12: 0 | BC12: 0 | BD12: 0 | BE12: 0 | BF12: 0 | BG12: 0 | BH12: 0 | BI12: 0 | BJ12: 0 | BK12: 0 | BL12: 0 | BM12: 0 | BN12: 0 | BO12: 0 | BP12: 0 | BQ12: 0 | BR12: 0 | BS12: 0
B13: =GAMEstage1!B14 -> 0 | C13: =GAMEstage1!C14 -> 0 | D13: =GAMEstage1!D14 -> 0 | E13: =GAMEstage1!E14 -> 0 | F13: =GAMEstage1!F14 -> 0 | G13: =GAMEstage1!G14 -> 0 | H13: =GAMEstage1!H14 -> 0 | I13: =GAMEstage1!I14 -> 0 | J13: =GAMEstage1!J14 -> 0 | K13: =GAMEstage1!K14 -> 0 | L13: =GAMEstage1!L14 -> 0 | M13: =GAMEstage1!M14 -> 0 | N13: =GAMEstage1!N14 -> 0 | O13: =GAMEstage1!O14 -> 0 | P13: =GAMEstage1!P14 -> 0 | Q13: 0 | R13: 0 | S13: 0 | T13: 0 | U13: 0 | V13: 0 | W13: 0 | X13: 0 | Y13: 0 | Z13: 0 | AA13: 0 | AB13: 0 | AC13: 0 | AD13: 0 | AE13: 0 | AP13: 0 | AQ13: 0 | AR13: 0 | AS13: 0 | AT13: 0 | AU13: 0 | AV13: 0 | AW13: 0 | AX13: 0 | AY13: 0 | AZ13: 0 | BA13: 0 | BB13: 0 | BC13: 0 | BD13: 0 | BE13: 0 | BF13: 0 | BG13: 0 | BH13: 0 | BI13: 0 | BJ13: 0 | BK13: 0 | BL13: 0 | BM13: 0 | BN13: 0 | BO13: 0 | BP13: 0 | BQ13: 0 | BR13: 0 | BS13: 0
B14: =GAMEstage1!B15 -> 0 | C14: =GAMEstage1!C15 -> 0 | D14: =GAMEstage1!D15 -> 0 | E14: =GAMEstage1!E15 -> 0 | F14: =GAMEstage1!F15 -> 0 | G14: =GAMEstage1!G15 -> 0 | H14: =GAMEstage1!H15 -> 0 | I14: =GAMEstage1!I15 -> 0 | J14: =GAMEstage1!J15 -> 0 | K14: =GAMEstage1!K15 -> 0 | L14: =GAMEstage1!L15 -> 0 | M14: =GAMEstage1!M15 -> 0 | N14: =GAMEstage1!N15 -> 0 | O14: =GAMEstage1!O15 -> 0 | P14: =GAMEstage1!P15 -> 0 | Q14: 0 | R14: 0 | S14: 0 | T14: 0 | U14: 0 | V14: 0 | W14: 0 | X14: 0 | Y14: 0 | Z14: 0 | AA14: 0 | AB14: 0 | AC14: 0 | AD14: 0 | AE14: 0 | AP14: 0 | AQ14: 0 | AR14: 0 | AS14: 0 | AT14: 0 | AU14: 0 | AV14: 0 | AW14: 0 | AX14: 0 | AY14: 0 | AZ14: 0 | BA14: 0 | BB14: 0 | BC14: 0 | BD14: 0 | BE14: 0 | BF14: 0 | BG14: 0 | BH14: 0 | BI14: 0 | BJ14: 0 | BK14: 0 | BL14: 0 | BM14: 0 | BN14: 0 | BO14: 0 | BP14: 0 | BQ14: 0 | BR14: 0 | BS14: 0
B15: =GAMEstage1!B16 -> 0 | C15: =GAMEstage1!C16 -> 0 | D15: =GAMEstage1!D16 -> 0 | E15: =GAMEstage1!E16 -> 0 | F15: =GAMEstage1!F16 -> 0 | G15: =GAMEstage1!G16 -> 0 | H15: =GAMEstage1!H16 -> 0 | I15: =GAMEstage1!I16 -> 0 | J15: =GAMEstage1!J16 -> 0 | K15: =GAMEstage1!K16 -> 0 | L15: =GAMEstage1!L16 -> 0 | M15: =GAMEstage1!M16 -> 0 | N15: =GAMEstage1!N16 -> 0 | O15: =GAMEstage1!O16 -> 0 | P15: =GAMEstage1!P16 -> 0 | Q15: 0 | R15: 0 | S15: 0 | T15: 0 | U15: 0 | V15: 0 | W15: 0 | X15: 0 | Y15: 0 | Z15: 0 | AA15: 0 | AB15: 0 | AC15: 0 | AD15: 0 | AE15: 0 | AP15: 0 | AQ15: 0 | AR15: 0 | AS15: 0 | AT15: 0 | AU15: 0 | AV15: 0 | AW15: 0 | AX15: 0 | AY15: 0 | AZ15: 0 | BA15: 0 | BB15: 0 | BC15: 0 | BD15: 0 | BE15: 0 | BF15: 0 | BG15: 0 | BH15: 0 | BI15: 0 | BJ15: 0 | BK15: 0 | BL15: 0 | BM15: 0 | BN15: 0 | BO15: 0 | BP15: 0 | BQ15: 0 | BR15: 0 | BS15: 0
B16: =GAMEstage1!B17 -> 0 | C16: =GAMEstage1!C17 -> 0 | D16: =GAMEstage1!D17 -> 0 | E16: =GAMEstage1!E17 -> 0 | F16: =GAMEstage1!F17 -> 0 | G16: =GAMEstage1!G17 -> 0 | H16: =GAMEstage1!H17 -> 0 | I16: =GAMEstage1!I17 -> 0 | J16: =GAMEstage1!J17 -> 0 | K16: =GAMEstage1!K17 -> 0 | L16: =GAMEstage1!L17 -> 0 | M16: =GAMEstage1!M17 -> 0 | N16: =GAMEstage1!N17 -> 0 | O16: =GAMEstage1!O17 -> 0 | P16: =GAMEstage1!P17 -> 0 | Q16: 0 | R16: 0 | S16: 0 | T16: 0 | U16: 0 | V16: 0 | W16: 0 | X16: 0 | Y16: 0 | Z16: 0 | AA16: 0 | AB16: 0 | AC16: 0 | AD16: 0 | AE16: 0 | AP16: 0 | AQ16: 0 | AR16: 0 | AS16: 0 | AT16: 0 | AU16: 0 | AV16: 0 | AW16: 0 | AX16: 0 | AY16: 0 | AZ16: 0 | BA16: 0 | BB16: 0 | BC16: 0 | BD16: 0 | BE16: 0 | BF16: 0 | BG16: 0 | BH16: 0 | BI16: 0 | BJ16: 0 | BK16: 0 | BL16: 0 | BM16: 0 | BN16: 0 | BO16: 0 | BP16: 0 | BQ16: 0 | BR16: 0 | BS16: 0
B17: =GAMEstage1!B18 -> 0 | C17: =GAMEstage1!C18 -> 0 | D17: =GAMEstage1!D18 -> 0 | E17: =GAMEstage1!E18 -> 0 | F17: =GAMEstage1!F18 -> 0 | G17: =GAMEstage1!G18 -> 0 | H17: =GAMEstage1!H18 -> 0 | I17: =GAMEstage1!I18 -> 0 | J17: =GAMEstage1!J18 -> 0 | K17: =GAMEstage1!K18 -> 0 | L17: =GAMEstage1!L18 -> 0 | M17: =GAMEstage1!M18 -> 0 | N17: =GAMEstage1!N18 -> 0 | O17: =GAMEstage1!O18 -> 0 | P17: =GAMEstage1!P18 -> 0 | Q17: 0 | R17: 0 | S17: 0 | T17: 0 | U17: 0 | V17: 0 | W17: 0 | X17: 0 | Y17: 0 | Z17: 0 | AA17: 0 | AB17: 0 | AC17: 0 | AD17: 0 | AE17: 0 | AP17: 0 | AQ17: 0 | AR17: 0 | AS17: 0 | AT17: 0 | AU17: 0 | AV17: 0 | AW17: 0 | AX17: 0 | AY17: 0 | AZ17: 0 | BA17: 0 | BB17: 0 | BC17: 0 | BD17: 0 | BE17: 0 | BF17: 0 | BG17: 0 | BH17: 0 | BI17: 0 | BJ17: 0 | BK17: 0 | BL17: 0 | BM17: 0 | BN17: 0 | BO17: 0 | BP17: 0 | BQ17: 0 | BR17: 0 | BS17: 0
B18: =GAMEstage1!B19 -> 0 | C18: =GAMEstage1!C19 -> 0 | D18: =GAMEstage1!D19 -> 0 | E18: =GAMEstage1!E19 -> 0 | F18: =GAMEstage1!F19 -> 0 | G18: =GAMEstage1!G19 -> 0 | H18: =GAMEstage1!H19 -> 0 | I18: =GAMEstage1!I19 -> 0 | J18: =GAMEstage1!J19 -> 0 | K18: =GAMEstage1!K19 -> 0 | L18: =GAMEstage1!L19 -> 0 | M18: =GAMEstage1!M19 -> 0 | N18: =GAMEstage1!N19 -> 0 | O18: =GAMEstage1!O19 -> 0 | P18: =GAMEstage1!P19 -> 0 | Q18: 0 | R18: 0 | S18: 0 | T18: 0 | U18: 0 | V18: 0 | W18: 0 | X18: 0 | Y18: 0 | Z18: 0 | AA18: 0 | AB18: 0 | AC18: 0 | AD18: 0 | AE18: 0 | AP18: 0 | AQ18: 0 | AR18: 0 | AS18: 0 | AT18: 0 | AU18: 0 | AV18: 0 | AW18: 0 | AX18: 0 | AY18: 0 | AZ18: 0 | BA18: 0 | BB18: 0 | BC18: 0 | BD18: 0 | BE18: 0 | BF18: 0 | BG18: 0 | BH18: 0 | BI18: 0 | BJ18: 0 | BK18: 0 | BL18: 0 | BM18: 0 | BN18: 0 | BO18: 0 | BP18: 0 | BQ18: 0 | BR18: 0 | BS18: 0
B19: =GAMEstage1!B20 -> 0 | C19: =GAMEstage1!C20 -> 0 | D19: =GAMEstage1!D20 -> 0 | E19: =GAMEstage1!E20 -> 0 | F19: =GAMEstage1!F20 -> 0 | G19: =GAMEstage1!G20 -> 0 | H19: =GAMEstage1!H20 -> 0 | I19: =GAMEstage1!I20 -> 0 | J19: =GAMEstage1!J20 -> 0 | K19: =GAMEstage1!K20 -> 0 | L19: =GAMEstage1!L20 -> 0 | M19: =GAMEstage1!M20 -> 0 | N19: =GAMEstage1!N20 -> 0 | O19: =GAMEstage1!O20 -> 0 | P19: =GAMEstage1!P20 -> 0 | Q19: 0 | R19: 0 | S19: 0 | T19: 0 | U19: 0 | V19: 0 | W19: 0 | X19: 0 | Y19: 0 | Z19: 0 | AA19: 0 | AB19: 0 | AC19: 0 | AD19: 0 | AE19: 0 | AP19: 0 | AQ19: 0 | AR19: 0 | AS19: 0 | AT19: 0 | AU19: 0 | AV19: 0 | AW19: 0 | AX19: 0 | AY19: 0 | AZ19: 0 | BA19: 0 | BB19: 0 | BC19: 0 | BD19: 0 | BE19: 0 | BF19: 0 | BG19: 0 | BH19: 0 | BI19: 0 | BJ19: 0 | BK19: 0 | BL19: 0 | BM19: 0 | BN19: 0 | BO19: 0 | BP19: 0 | BQ19: 0 | BR19: 0 | BS19: 0
B20: =GAMEstage1!B21 -> 0 | C20: =GAMEstage1!C21 -> 0 | D20: =GAMEstage1!D21 -> 0 | E20: =GAMEstage1!E21 -> 0 | F20: =GAMEstage1!F21 -> 0 | G20: =GAMEstage1!G21 -> 0 | H20: =GAMEstage1!H21 -> 0 | I20: =GAMEstage1!I21 -> 0 | J20: =GAMEstage1!J21 -> 0 | K20: =GAMEstage1!K21 -> 0 | L20: =GAMEstage1!L21 -> 0 | M20: =GAMEstage1!M21 -> 0 | N20: =GAMEstage1!N21 -> 0 | O20: =GAMEstage1!O21 -> 0 | P20: =GAMEstage1!P21 -> 0 | Q20: 0 | R20: 0 | S20: 0 | T20: 0 | U20: 0 | V20: 0 | W20: 0 | X20: 0 | Y20: 0 | Z20: 0 | AA20: 0 | AB20: 0 | AC20: 0 | AD20: 0 | AE20: 0 | AP20: 0 | AQ20: 0 | AR20: 0 | AS20: 0 | AT20: 0 | AU20: 0 | AV20: 0 | AW20: 0 | AX20: 0 | AY20: 0 | AZ20: 0 | BA20: 0 | BB20: 0 | BC20: 0 | BD20: 0 | BE20: 0 | BF20: 0 | BG20: 0 | BH20: 0 | BI20: 0 | BJ20: 0 | BK20: 0 | BL20: 0 | BM20: 0 | BN20: 0 | BO20: 0 | BP20: 0 | BQ20: 0 | BR20: 0 | BS20: 0
B21: =GAMEstage1!B22 -> 0 | C21: =GAMEstage1!C22 -> 0 | D21: =GAMEstage1!D22 -> 0 | E21: =GAMEstage1!E22 -> 0 | F21: =GAMEstage1!F22 -> 0 | G21: =GAMEstage1!G22 -> 0 | H21: =GAMEstage1!H22 -> 0 | I21: =GAMEstage1!I22 -> 0 | J21: =GAMEstage1!J22 -> 0 | K21: =GAMEstage1!K22 -> 0 | L21: =GAMEstage1!L22 -> 0 | M21: =GAMEstage1!M22 -> 0 | N21: =GAMEstage1!N22 -> 0 | O21: =GAMEstage1!O22 -> 0 | P21: =GAMEstage1!P22 -> 0 | Q21: 0 | R21: 0 | S21: 0 | T21: 0 | U21: 0 | V21: 0 | W21: 0 | X21: 0 | Y21: 0 | Z21: 0 | AA21: 0 | AB21: 0 | AC21: 0 | AD21: 0 | AE21: 0 | AP21: 0 | AQ21: 0 | AR21: 0 | AS21: 0 | AT21: 0 | AU21: 0 | AV21: 0 | AW21: 0 | AX21: 0 | AY21: 0 | AZ21: 0 | BA21: 0 | BB21: 0 | BC21: 0 | BD21: 0 | BE21: 0 | BF21: 0 | BG21: 0 | BH21: 0 | BI21: 0 | BJ21: 0 | BK21: 0 | BL21: 0 | BM21: 0 | BN21: 0 | BO21: 0 | BP21: 0 | BQ21: 0 | BR21: 0 | BS21: 0
B22: =GAMEstage1!B23 -> 0 | C22: =GAMEstage1!C23 -> 0 | D22: =GAMEstage1!D23 -> 0 | E22: =GAMEstage1!E23 -> 0 | F22: =GAMEstage1!F23 -> 0 | G22: =GAMEstage1!G23 -> 0 | H22: =GAMEstage1!H23 -> 0 | I22: =GAMEstage1!I23 -> 0 | J22: =GAMEstage1!J23 -> 0 | K22: =GAMEstage1!K23 -> 0 | L22: =GAMEstage1!L23 -> 0 | M22: =GAMEstage1!M23 -> 0 | N22: =GAMEstage1!N23 -> 0 | O22: =GAMEstage1!O23 -> 0 | P22: =GAMEstage1!P23 -> 0 | Q22: 0 | R22: 0 | S22: 0 | T22: 0 | U22: 0 | V22: 0 | W22: 0 | X22: 0 | Y22: 0 | Z22: 0 | AA22: 0 | AB22: 0 | AC22: 0 | AD22: 0 | AE22: 0 | AP22: 0 | AQ22: 0 | AR22: 0 | AS22: 0 | AT22: 0 | AU22: 0 | AV22: 0 | AW22: 0 | AX22: 0 | AY22: 0 | AZ22: 0 | BA22: 0 | BB22: 0 | BC22: 0 | BD22: 0 | BE22: 0 | BF22: 0 | BG22: 0 | BH22: 0 | BI22: 0 | BJ22: 0 | BK22: 0 | BL22: 0 | BM22: 0 | BN22: 0 | BO22: 0 | BP22: 0 | BQ22: 0 | BR22: 0 | BS22: 0
B23: =GAMEstage1!B24 -> 0 | C23: =GAMEstage1!C24 -> 0 | D23: =GAMEstage1!D24 -> 0 | E23: =GAMEstage1!E24 -> 0 | F23: =GAMEstage1!F24 -> 0 | G23: =GAMEstage1!G24 -> 0 | H23: =GAMEstage1!H24 -> 0 | I23: =GAMEstage1!I24 -> 0 | J23: =GAMEstage1!J24 -> 0 | K23: =GAMEstage1!K24 -> 0 | L23: =GAMEstage1!L24 -> 0 | M23: =GAMEstage1!M24 -> 0 | N23: =GAMEstage1!N24 -> 0 | O23: =GAMEstage1!O24 -> 0 | P23: =GAMEstage1!P24 -> 0 | Q23: 0 | R23: 0 | S23: 0 | T23: 0 | U23: 0 | V23: 0 | W23: 0 | X23: 0 | Y23: 0 | Z23: 0 | AA23: 0 | AB23: 0 | AC23: 0 | AD23: 0 | AE23: 0 | AP23: 0 | AQ23: 0 | AR23: 0 | AS23: 0 | AT23: 0 | AU23: 0 | AV23: 0 | AW23: 0 | AX23: 0 | AY23: 0 | AZ23: 0 | BA23: 0 | BB23: 0 | BC23: 0 | BD23: 0 | BE23: 0 | BF23: 0 | BG23: 0 | BH23: 0 | BI23: 0 | BJ23: 0 | BK23: 0 | BL23: 0 | BM23: 0 | BN23: 0 | BO23: 0 | BP23: 0 | BQ23: 0 | BR23: 0 | BS23: 0
B24: =GAMEstage1!B25 -> 0 | C24: =GAMEstage1!C25 -> 0 | D24: =GAMEstage1!D25 -> 0 | E24: =GAMEstage1!E25 -> 0 | F24: =GAMEstage1!F25 -> 0 | G24: =GAMEstage1!G25 -> 0 | H24: =GAMEstage1!H25 -> 0 | I24: =GAMEstage1!I25 -> 0 | J24: =GAMEstage1!J25 -> 0 | K24: =GAMEstage1!K25 -> 0 | L24: =GAMEstage1!L25 -> 0 | M24: =GAMEstage1!M25 -> 0 | N24: =GAMEstage1!N25 -> 0 | O24: =GAMEstage1!O25 -> 0 | P24: =GAMEstage1!P25 -> 0 | Q24: 0 | R24: 0 | S24: 0 | T24: 0 | U24: 0 | V24: 0 | W24: 0 | X24: 0 | Y24: 0 | Z24: 0 | AA24: 0 | AB24: 0 | AC24: 0 | AD24: 0 | AE24: 0 | AP24: 0 | AQ24: 0 | AR24: 0 | AS24: 0 | AT24: 0 | AU24: 0 | AV24: 0 | AW24: 0 | AX24: 0 | AY24: 0 | AZ24: 0 | BA24: 0 | BB24: 0 | BC24: 0 | BD24: 0 | BE24: 0 | BF24: 0 | BG24: 0 | BH24: 0 | BI24: 0 | BJ24: 0 | BK24: 0 | BL24: 0 | BM24: 0 | BN24: 0 | BO24: 0 | BP24: 0 | BQ24: 0 | BR24: 0 | BS24: 0
B25: =GAMEstage1!B26 -> 0 | C25: =GAMEstage1!C26 -> 0 | D25: =GAMEstage1!D26 -> 0 | E25: =GAMEstage1!E26 -> 0 | F25: =GAMEstage1!F26 -> 0 | G25: =GAMEstage1!G26 -> 0 | H25: =GAMEstage1!H26 -> 0 | I25: =GAMEstage1!I26 -> 0 | J25: =GAMEstage1!J26 -> 0 | K25: =GAMEstage1!K26 -> 0 | L25: =GAMEstage1!L26 -> 0 | M25: =GAMEstage1!M26 -> 0 | N25: =GAMEstage1!N26 -> 0 | O25: =GAMEstage1!O26 -> 0 | P25: =GAMEstage1!P26 -> 0 | Q25: 0 | R25: 0 | S25: 0 | T25: 0 | U25: 0 | V25: 0 | W25: 0 | X25: 0 | Y25: 0 | Z25: 0 | AA25: 0 | AB25: 0 | AC25: 0 | AD25: 0 | AE25: 0 | AP25: 0 | AQ25: 0 | AR25: 0 | AS25: 0 | AT25: 0 | AU25: 0 | AV25: 0 | AW25: 0 | AX25: 0 | AY25: 0 | AZ25: 0 | BA25: 0 | BB25: 0 | BC25: 0 | BD25: 0 | BE25: 0 | BF25: 0 | BG25: 0 | BH25: 0 | BI25: 0 | BJ25: 0 | BK25: 0 | BL25: 0 | BM25: 0 | BN25: 0 | BO25: 0 | BP25: 0 | BQ25: 0 | BR25: 0 | BS25: 0
B26: =GAMEstage1!B27 -> 0 | C26: =GAMEstage1!C27 -> 0 | D26: =GAMEstage1!D27 -> 0 | E26: =GAMEstage1!E27 -> 0 | F26: =GAMEstage1!F27 -> 0 | G26: =GAMEstage1!G27 -> 0 | H26: =GAMEstage1!H27 -> 0 | I26: =GAMEstage1!I27 -> 0 | J26: =GAMEstage1!J27 -> 0 | K26: =GAMEstage1!K27 -> 0 | L26: =GAMEstage1!L27 -> 0 | M26: =GAMEstage1!M27 -> 0 | N26: =GAMEstage1!N27 -> 0 | O26: =GAMEstage1!O27 -> 0 | P26: =GAMEstage1!P27 -> 0 | Q26: 0 | R26: 0 | S26: 0 | T26: 0 | U26: 0 | V26: 0 | W26: 0 | X26: 0 | Y26: 0 | Z26: 0 | AA26: 0 | AB26: 0 | AC26: 0 | AD26: 0 | AE26: 0 | AP26: 0 | AQ26: 0 | AR26: 0 | AS26: 0 | AT26: 0 | AU26: 0 | AV26: 0 | AW26: 0 | AX26: 0 | AY26: 0 | AZ26: 0 | BA26: 0 | BB26: 0 | BC26: 0 | BD26: 0 | BE26: 0 | BF26: 0 | BG26: 0 | BH26: 0 | BI26: 0 | BJ26: 0 | BK26: 0 | BL26: 0 | BM26: 0 | BN26: 0 | BO26: 0 | BP26: 0 | BQ26: 0 | BR26: 0 | BS26: 0
B27: =GAMEstage1!B28 -> 0 | C27: =GAMEstage1!C28 -> 0 | D27: =GAMEstage1!D28 -> 0 | E27: =GAMEstage1!E28 -> 0 | F27: =GAMEstage1!F28 -> 0 | G27: =GAMEstage1!G28 -> 0 | H27: =GAMEstage1!H28 -> 0 | I27: =GAMEstage1!I28 -> 0 | J27: =GAMEstage1!J28 -> 0 | K27: =GAMEstage1!K28 -> 0 | L27: =GAMEstage1!L28 -> 0 | M27: =GAMEstage1!M28 -> 0 | N27: =GAMEstage1!N28 -> 0 | O27: =GAMEstage1!O28 -> 0 | P27: =GAMEstage1!P28 -> 0 | Q27: 0 | R27: 0 | S27: 0 | T27: 0 | U27: 0 | V27: 0 | W27: 0 | X27: 0 | Y27: 0 | Z27: 0 | AA27: 0 | AB27: 0 | AC27: 0 | AD27: 0 | AE27: 0 | AP27: 0 | AQ27: 0 | AR27: 0 | AS27: 0 | AT27: 0 | AU27: 0 | AV27: 0 | AW27: 0 | AX27: 0 | AY27: 0 | AZ27: 0 | BA27: 0 | BB27: 0 | BC27: 0 | BD27: 0 | BE27: 0 | BF27: 0 | BG27: 0 | BH27: 0 | BI27: 0 | BJ27: 0 | BK27: 0 | BL27: 0 | BM27: 0 | BN27: 0 | BO27: 0 | BP27: 0 | BQ27: 0 | BR27: 0 | BS27: 0
B28: =GAMEstage1!B29 -> 0 | C28: =GAMEstage1!C29 -> 0 | D28: =GAMEstage1!D29 -> 0 | E28: =GAMEstage1!E29 -> 0 | F28: =GAMEstage1!F29 -> 0 | G28: =GAMEstage1!G29 -> 0 | H28: =GAMEstage1!H29 -> 0 | I28: =GAMEstage1!I29 -> 0 | J28: =GAMEstage1!J29 -> 0 | K28: =GAMEstage1!K29 -> 0 | L28: =GAMEstage1!L29 -> 0 | M28: =GAMEstage1!M29 -> 0 | N28: =GAMEstage1!N29 -> 0 | O28: =GAMEstage1!O29 -> 0 | P28: =GAMEstage1!P29 -> 0 | Q28: 0 | R28: 0 | S28: 0 | T28: 0 | U28: 0 | V28: 0 | W28: 0 | X28: 0 | Y28: 0 | Z28: 0 | AA28: 0 | AB28: 0 | AC28: 0 | AD28: 0 | AE28: 0 | AP28: 0 | AQ28: 0 | AR28: 0 | AS28: 0 | AT28: 0 | AU28: 0 | AV28: 0 | AW28: 0 | AX28: 0 | AY28: 0 | AZ28: 0 | BA28: 0 | BB28: 0 | BC28: 0 | BD28: 0 | BE28: 0 | BF28: 0 | BG28: 0 | BH28: 0 | BI28: 0 | BJ28: 0 | BK28: 0 | BL28: 0 | BM28: 0 | BN28: 0 | BO28: 0 | BP28: 0 | BQ28: 0 | BR28: 0 | BS28: 0
B29: =GAMEstage1!B30 -> 0 | C29: =GAMEstage1!C30 -> 0 | D29: =GAMEstage1!D30 -> 0 | E29: =GAMEstage1!E30 -> 0 | F29: =GAMEstage1!F30 -> 0 | G29: =GAMEstage1!G30 -> 0 | H29: =GAMEstage1!H30 -> 0 | I29: =GAMEstage1!I30 -> 0 | J29: =GAMEstage1!J30 -> 0 | K29: =GAMEstage1!K30 -> 0 | L29: =GAMEstage1!L30 -> 0 | M29: =GAMEstage1!M30 -> 0 | N29: =GAMEstage1!N30 -> 0 | O29: =GAMEstage1!O30 -> 0 | P29: =GAMEstage1!P30 -> 0 | Q29: 0 | R29: 0 | S29: 0 | T29: 0 | U29: 0 | V29: 0 | W29: 0 | X29: 0 | Y29: 0 | Z29: 0 | AA29: 0 | AB29: 0 | AC29: 0 | AD29: 0 | AE29: 0 | AP29: 0 | AQ29: 0 | AR29: 0 | AS29: 0 | AT29: 0 | AU29: 0 | AV29: 0 | AW29: 0 | AX29: 0 | AY29: 0 | AZ29: 0 | BA29: 0 | BB29: 0 | BC29: 0 | BD29: 0 | BE29: 0 | BF29: 0 | BG29: 0 | BH29: 0 | BI29: 0 | BJ29: 0 | BK29: 0 | BL29: 0 | BM29: 0 | BN29: 0 | BO29: 0 | BP29: 0 | BQ29: 0 | BR29: 0 | BS29: 0
B30: =GAMEstage1!B31 -> 0 | C30: =GAMEstage1!C31 -> 0 | D30: =GAMEstage1!D31 -> 0 | E30: =GAMEstage1!E31 -> 0 | F30: =GAMEstage1!F31 -> 0 | G30: =GAMEstage1!G31 -> 0 | H30: =GAMEstage1!H31 -> 0 | I30: =GAMEstage1!I31 -> 0 | J30: =GAMEstage1!J31 -> 0 | K30: =GAMEstage1!K31 -> 0 | L30: =GAMEstage1!L31 -> 0 | M30: =GAMEstage1!M31 -> 0 | N30: =GAMEstage1!N31 -> 0 | O30: =GAMEstage1!O31 -> 0 | P30: =GAMEstage1!P31 -> 0 | Q30: 0 | R30: 0 | S30: 0 | T30: 0 | U30: 0 | V30: 0 | W30: 0 | X30: 0 | Y30: 0 | Z30: 0 | AA30: 0 | AB30: 0 | AC30: 0 | AD30: 0 | AE30: 0 | AP30: 0 | AQ30: 0 | AR30: 0 | AS30: 0 | AT30: 0 | AU30: 0 | AV30: 0 | AW30: 0 | AX30: 0 | AY30: 0 | AZ30: 0 | BA30: 0 | BB30: 0 | BC30: 0 | BD30: 0 | BE30: 0 | BF30: 0 | BG30: 0 | BH30: 0 | BI30: 0 | BJ30: 0 | BK30: 0 | BL30: 0 | BM30: 0 | BN30: 0 | BO30: 0 | BP30: 0 | BQ30: 0 | BR30: 0 | BS30: 0
B32: =IF(Q1=Q32,1,0) -> 1 | C32: =IF(R1=R32,1,0) -> 1 | D32: 1 | E32: 1 | F32: 1 | G32: 1 | H32: 1 | I32: 1 | J32: 1 | K32: 1 | L32: 1 | M32: 1 | N32: =IF(AC1=AC32,1,0) -> 1 | O32: 1 | P32: 1 | Q32: =GAMEstage1!Q2 -> 0 | R32: =GAMEstage1!R2 -> 0 | S32: =GAMEstage1!S2 -> 0 | T32: =GAMEstage1!T2 -> 0 | U32: =GAMEstage1!U2 -> 0 | V32: =GAMEstage1!V2 -> 0 | W32: =GAMEstage1!W2 -> 0 | X32: =GAMEstage1!X2 -> 0 | Y32: =GAMEstage1!Y2 -> 0 | Z32: =GAMEstage1!Z2 -> 0 | AA32: =GAMEstage1!AA2 -> 0 | AB32: =GAMEstage1!AB2 -> 0 | AC32: =GAMEstage1!AC2 -> 0 | AD32: =GAMEstage1!AD2 -> 0 | AE32: =GAMEstage1!AE2 -> 0
B33: 1 | C33: 1 | D33: 1 | E33: 1 | F33: 1 | G33: 1 | H33: 1 | I33: 1 | J33: 1 | K33: 1 | L33: 1 | M33: 1 | N33: 1 | O33: 1 | P33: 1 | Q33: =GAMEstage1!Q3 -> 0 | R33: =GAMEstage1!R3 -> 0 | S33: =GAMEstage1!S3 -> 0 | T33: =GAMEstage1!T3 -> 0 | U33: =GAMEstage1!U3 -> 0 | V33: =GAMEstage1!V3 -> 0 | W33: =GAMEstage1!W3 -> 0 | X33: =GAMEstage1!X3 -> 0 | Y33: =GAMEstage1!Y3 -> 0 | Z33: =GAMEstage1!Z3 -> 0 | AA33: =GAMEstage1!AA3 -> 0 | AB33: =GAMEstage1!AB3 -> 0 | AC33: =GAMEstage1!AC3 -> 0 | AD33: =GAMEstage1!AD3 -> 0 | AE33: =GAMEstage1!AE3 -> 0
B34: 1 | C34: 1 | D34: 1 | E34: 1 | F34: 1 | G34: 1 | H34: 1 | I34: 1 | J34: 1 | K34: 1 | L34: 1 | M34: 1 | N34: 1 | O34: 1 | P34: 1 | Q34: =GAMEstage1!Q4 -> 0 | R34: =GAMEstage1!R4 -> 0 | S34: =GAMEstage1!S4 -> 0 | T34: =GAMEstage1!T4 -> 0 | U34: =GAMEstage1!U4 -> 0 | V34: =GAMEstage1!V4 -> 0 | W34: =GAMEstage1!W4 -> 0 | X34: =GAMEstage1!X4 -> 0 | Y34: =GAMEstage1!Y4 -> 0 | Z34: =GAMEstage1!Z4 -> 0 | AA34: =GAMEstage1!AA4 -> 0 | AB34: =GAMEstage1!AB4 -> 0 | AC34: =GAMEstage1!AC4 -> 0 | AD34: =GAMEstage1!AD4 -> 0 | AE34: =GAMEstage1!AE4 -> 0
B35: 1 | C35: 1 | D35: 1 | E35: 1 | F35: 1 | G35: 1 | H35: 1 | I35: 1 | J35: 1 | K35: 1 | L35: 1 | M35: 1 | N35: 1 | O35: 1 | P35: 1 | Q35: =GAMEstage1!Q5 -> 0 | R35: =GAMEstage1!R5 -> 0 | S35: =GAMEstage1!S5 -> 0 | T35: =GAMEstage1!T5 -> 0 | U35: =GAMEstage1!U5 -> 0 | V35: =GAMEstage1!V5 -> 0 | W35: =GAMEstage1!W5 -> 0 | X35: =GAMEstage1!X5 -> 0 | Y35: =GAMEstage1!Y5 -> 0 | Z35: =GAMEstage1!Z5 -> 0 | AA35: =GAMEstage1!AA5 -> 0 | AB35: =GAMEstage1!AB5 -> 0 | AC35: =GAMEstage1!AC5 -> 0 | AD35: =GAMEstage1!AD5 -> 0 | AE35: =GAMEstage1!AE5 -> 0
B36: 1 | C36: 1 | D36: 1 | E36: 1 | F36: 1 | G36: 1 | H36: 1 | I36: 1 | J36: 1 | K36: 1 | L36: 1 | M36: 1 | N36: 1 | O36: 1 | P36: 1 | Q36: =GAMEstage1!Q6 -> 0 | R36: =GAMEstage1!R6 -> 0 | S36: =GAMEstage1!S6 -> 0 | T36: =GAMEstage1!T6 -> 0 | U36: =GAMEstage1!U6 -> 0 | V36: =GAMEstage1!V6 -> 0 | W36: =GAMEstage1!W6 -> 0 | X36: =GAMEstage1!X6 -> 0 | Y36: =GAMEstage1!Y6 -> 0 | Z36: =GAMEstage1!Z6 -> 0 | AA36: =GAMEstage1!AA6 -> 0 | AB36: =GAMEstage1!AB6 -> 0 | AC36: =GAMEstage1!AC6 -> 0 | AD36: =GAMEstage1!AD6 -> 0 | AE36: =GAMEstage1!AE6 -> 0
B37: 1 | C37: 1 | D37: 1 | E37: 1 | F37: 1 | G37: 1 | H37: 1 | I37: 1 | J37: 1 | K37: 1 | L37: 1 | M37: 1 | N37: 1 | O37: 1 | P37: 1 | Q37: =GAMEstage1!Q7 -> 0 | R37: =GAMEstage1!R7 -> 0 | S37: =GAMEstage1!S7 -> 0 | T37: =GAMEstage1!T7 -> 0 | U37: =GAMEstage1!U7 -> 0 | V37: =GAMEstage1!V7 -> 0 | W37: =GAMEstage1!W7 -> 0 | X37: =GAMEstage1!X7 -> 0 | Y37: =GAMEstage1!Y7 -> 0 | Z37: =GAMEstage1!Z7 -> 0 | AA37: =GAMEstage1!AA7 -> 0 | AB37: =GAMEstage1!AB7 -> 0 | AC37: =GAMEstage1!AC7 -> 0 | AD37: =GAMEstage1!AD7 -> 0 | AE37: =GAMEstage1!AE7 -> 0
B38: 1 | C38: 1 | D38: 1 | E38: 1 | F38: 1 | G38: 1 | H38: 1 | I38: 1 | J38: 1 | K38: 1 | L38: 1 | M38: 1 | N38: 1 | O38: 1 | P38: 1 | Q38: =GAMEstage1!Q8 -> 0 | R38: =GAMEstage1!R8 -> 0 | S38: =GAMEstage1!S8 -> 0 | T38: =GAMEstage1!T8 -> 0 | U38: =GAMEstage1!U8 -> 0 | V38: =GAMEstage1!V8 -> 0 | W38: =GAMEstage1!W8 -> 0 | X38: =GAMEstage1!X8 -> 0 | Y38: =GAMEstage1!Y8 -> 0 | Z38: =GAMEstage1!Z8 -> 0 | AA38: =GAMEstage1!AA8 -> 0 | AB38: =GAMEstage1!AB8 -> 0 | AC38: =GAMEstage1!AC8 -> 0 | AD38: =GAMEstage1!AD8 -> 0 | AE38: =GAMEstage1!AE8 -> 0
B39: 1 | C39: 1 | D39: 1 | E39: 1 | F39: 1 | G39: 1 | H39: 1 | I39: 1 | J39: 1 | K39: 1 | L39: 1 | M39: 1 | N39: 1 | O39: 1 | P39: 1 | Q39: =GAMEstage1!Q9 -> 0 | R39: =GAMEstage1!R9 -> 0 | S39: =GAMEstage1!S9 -> 0 | T39: =GAMEstage1!T9 -> 0 | U39: =GAMEstage1!U9 -> 0 | V39: =GAMEstage1!V9 -> 0 | W39: =GAMEstage1!W9 -> 0 | X39: =GAMEstage1!X9 -> 0 | Y39: =GAMEstage1!Y9 -> 0 | Z39: =GAMEstage1!Z9 -> 0 | AA39: =GAMEstage1!AA9 -> 0 | AB39: =GAMEstage1!AB9 -> 0 | AC39: =GAMEstage1!AC9 -> 0 | AD39: =GAMEstage1!AD9 -> 0 | AE39: =GAMEstage1!AE9 -> 0
B40: 1 | C40: 1 | D40: 1 | E40: 1 | F40: 1 | G40: 1 | H40: 1 | I40: 1 | J40: 1 | K40: 1 | L40: 1 | M40: 1 | N40: 1 | O40: 1 | P40: 1 | Q40: =GAMEstage1!Q10 -> 0 | R40: =GAMEstage1!R10 -> 0 | S40: =GAMEstage1!S10 -> 0 | T40: =GAMEstage1!T10 -> 0 | U40: =GAMEstage1!U10 -> 0 | V40: =GAMEstage1!V10 -> 0 | W40: =GAMEstage1!W10 -> 0 | X40: =GAMEstage1!X10 -> 0 | Y40: =GAMEstage1!Y10 -> 0 | Z40: =GAMEstage1!Z10 -> 0 | AA40: =GAMEstage1!AA10 -> 0 | AB40: =GAMEstage1!AB10 -> 0 | AC40: =GAMEstage1!AC10 -> 0 | AD40: =GAMEstage1!AD10 -> 0 | AE40: =GAMEstage1!AE10 -> 0
B41: 1 | C41: 1 | D41: 1 | E41: 1 | F41: 1 | G41: 1 | H41: 1 | I41: 1 | J41: 1 | K41: 1 | L41: 1 | M41: 1 | N41: 1 | O41: 1 | P41: 1 | Q41: =GAMEstage1!Q11 -> 0 | R41: =GAMEstage1!R11 -> 0 | S41: =GAMEstage1!S11 -> 0 | T41: =GAMEstage1!T11 -> 0 | U41: =GAMEstage1!U11 -> 0 | V41: =GAMEstage1!V11 -> 0 | W41: =GAMEstage1!W11 -> 0 | X41: =GAMEstage1!X11 -> 0 | Y41: =GAMEstage1!Y11 -> 0 | Z41: =GAMEstage1!Z11 -> 0 | AA41: =GAMEstage1!AA11 -> 0 | AB41: =GAMEstage1!AB11 -> 0 | AC41: =GAMEstage1!AC11 -> 0 | AD41: =GAMEstage1!AD11 -> 0 | AE41: =GAMEstage1!AE11 -> 0
B42: 1 | C42: 1 | D42: 1 | E42: 1 | F42: 1 | G42: 1 | H42: 1 | I42: 1 | J42: 1 | K42: 1 | L42: 1 | M42: 1 | N42: 1 | O42: 1 | P42: 1 | Q42: =GAMEstage1!Q12 -> 0 | R42: =GAMEstage1!R12 -> 0 | S42: =GAMEstage1!S12 -> 0 | T42: =GAMEstage1!T12 -> 0 | U42: =GAMEstage1!U12 -> 0 | V42: =GAMEstage1!V12 -> 0 | W42: =GAMEstage1!W12 -> 0 | X42: =GAMEstage1!X12 -> 0 | Y42: =GAMEstage1!Y12 -> 0 | Z42: =GAMEstage1!Z12 -> 0 | AA42: =GAMEstage1!AA12 -> 0 | AB42: =GAMEstage1!AB12 -> 0 | AC42: =GAMEstage1!AC12 -> 0 | AD42: =GAMEstage1!AD12 -> 0 | AE42: =GAMEstage1!AE12 -> 0
B43: 1 | C43: 1 | D43: 1 | E43: 1 | F43: 1 | G43: 1 | H43: 1 | I43: 1 | J43: 1 | K43: 1 | L43: 1 | M43: 1 | N43: 1 | O43: 1 | P43: 1 | Q43: =GAMEstage1!Q13 -> 0 | R43: =GAMEstage1!R13 -> 0 | S43: =GAMEstage1!S13 -> 0 | T43: =GAMEstage1!T13 -> 0 | U43: =GAMEstage1!U13 -> 0 | V43: =GAMEstage1!V13 -> 0 | W43: =GAMEstage1!W13 -> 0 | X43: =GAMEstage1!X13 -> 0 | Y43: =GAMEstage1!Y13 -> 0 | Z43: =GAMEstage1!Z13 -> 0 | AA43: =GAMEstage1!AA13 -> 0 | AB43: =GAMEstage1!AB13 -> 0 | AC43: =GAMEstage1!AC13 -> 0 | AD43: =GAMEstage1!AD13 -> 0 | AE43: =GAMEstage1!AE13 -> 0
B44: 1 | C44: 1 | D44: 1 | E44: 1 | F44: 1 | G44: 1 | H44: 1 | I44: 1 | J44: 1 | K44: 1 | L44: 1 | M44: 1 | N44: 1 | O44: 1 | P44: 1 | Q44: =GAMEstage1!Q14 -> 0 | R44: =GAMEstage1!R14 -> 0 | S44: =GAMEstage1!S14 -> 0 | T44: =GAMEstage1!T14 -> 0 | U44: =GAMEstage1!U14 -> 0 | V44: =GAMEstage1!V14 -> 0 | W44: =GAMEstage1!W14 -> 0 | X44: =GAMEstage1!X14 -> 0 | Y44: =GAMEstage1!Y14 -> 0 | Z44: =GAMEstage1!Z14 -> 0 | AA44: =GAMEstage1!AA14 -> 0 | AB44: =GAMEstage1!AB14 -> 0 | AC44: =GAMEstage1!AC14 -> 0 | AD44: =GAMEstage1!AD14 -> 0 | AE44: =GAMEstage1!AE14 -> 0
B45: 1 | C45: 1 | D45: 1 | E45: 1 | F45: 1 | G45: 1 | H45: 1 | I45: 1 | J45: 1 | K45: 1 | L45: 1 | M45: 1 | N45: 1 | O45: 1 | P45: 1 | Q45: =GAMEstage1!Q15 -> 0 | R45: =GAMEstage1!R15 -> 0 | S45: =GAMEstage1!S15 -> 0 | T45: =GAMEstage1!T15 -> 0 | U45: =GAMEstage1!U15 -> 0 | V45: =GAMEstage1!V15 -> 0 | W45: =GAMEstage1!W15 -> 0 | X45: =GAMEstage1!X15 -> 0 | Y45: =GAMEstage1!Y15 -> 0 | Z45: =GAMEstage1!Z15 -> 0 | AA45: =GAMEstage1!AA15 -> 0 | AB45: =GAMEstage1!AB15 -> 0 | AC45: =GAMEstage1!AC15 -> 0 | AD45: =GAMEstage1!AD15 -> 0 | AE45: =GAMEstage1!AE15 -> 0
B46: 1 | C46: 1 | D46: 1 | E46: 1 | F46: 1 | G46: 1 | H46: 1 | I46: 1 | J46: 1 | K46: 1 | L46: 1 | M46: 1 | N46: 1 | O46: 1 | P46: 1 | Q46: =GAMEstage1!Q16 -> 0 | R46: =GAMEstage1!R16 -> 0 | S46: =GAMEstage1!S16 -> 0 | T46: =GAMEstage1!T16 -> 0 | U46: =GAMEstage1!U16 -> 0 | V46: =GAMEstage1!V16 -> 0 | W46: =GAMEstage1!W16 -> 0 | X46: =GAMEstage1!X16 -> 0 | Y46: =GAMEstage1!Y16 -> 0 | Z46: =GAMEstage1!Z16 -> 0 | AA46: =GAMEstage1!AA16 -> 0 | AB46: =GAMEstage1!AB16 -> 0 | AC46: =GAMEstage1!AC16 -> 0 | AD46: =GAMEstage1!AD16 -> 0 | AE46: =GAMEstage1!AE16 -> 0
B47: 1 | C47: 1 | D47: 1 | E47: 1 | F47: 1 | G47: 1 | H47: 1 | I47: 1 | J47: 1 | K47: 1 | L47: 1 | M47: 1 | N47: 1 | O47: 1 | P47: 1 | Q47: =GAMEstage1!Q17 -> 0 | R47: =GAMEstage1!R17 -> 0 | S47: =GAMEstage1!S17 -> 0 | T47: =GAMEstage1!T17 -> 0 | U47: =GAMEstage1!U17 -> 0 | V47: =GAMEstage1!V17 -> 0 | W47: =GAMEstage1!W17 -> 0 | X47: =GAMEstage1!X17 -> 0 | Y47: =GAMEstage1!Y17 -> 0 | Z47: =GAMEstage1!Z17 -> 0 | AA47: =GAMEstage1!AA17 -> 0 | AB47: =GAMEstage1!AB17 -> 0 | AC47: =GAMEstage1!AC17 -> 0 | AD47: =GAMEstage1!AD17 -> 0 | AE47: =GAMEstage1!AE17 -> 0
B48: 1 | C48: =IF(R17=R48,1,0) -> 1 | D48: 1 | E48: 1 | F48: 1 | G48: 1 | H48: 1 | I48: 1 | J48: 1 | K48: 1 | L48: 1 | M48: 1 | N48: 1 | O48: 1 | P48: 1 | Q48: =GAMEstage1!Q18 -> 0 | R48: =GAMEstage1!R18 -> 0 | S48: =GAMEstage1!S18 -> 0 | T48: =GAMEstage1!T18 -> 0 | U48: =GAMEstage1!U18 -> 0 | V48: =GAMEstage1!V18 -> 0 | W48: =GAMEstage1!W18 -> 0 | X48: =GAMEstage1!X18 -> 0 | Y48: =GAMEstage1!Y18 -> 0 | Z48: =GAMEstage1!Z18 -> 0 | AA48: =GAMEstage1!AA18 -> 0 | AB48: =GAMEstage1!AB18 -> 0 | AC48: =GAMEstage1!AC18 -> 0 | AD48: =GAMEstage1!AD18 -> 0 | AE48: =GAMEstage1!AE18 -> 0
B49: =IF(Q18=Q49,1,0) -> 1 | C49: 1 | D49: 1 | E49: 1 | F49: 1 | G49: 1 | H49: 1 | I49: 1 | J49: 1 | K49: 1 | L49: 1 | M49: 1 | N49: 1 | O49: 1 | P49: 1 | Q49: =GAMEstage1!Q19 -> 0 | R49: =GAMEstage1!R19 -> 0 | S49: =GAMEstage1!S19 -> 0 | T49: =GAMEstage1!T19 -> 0 | U49: =GAMEstage1!U19 -> 0 | V49: =GAMEstage1!V19 -> 0 | W49: =GAMEstage1!W19 -> 0 | X49: =GAMEstage1!X19 -> 0 | Y49: =GAMEstage1!Y19 -> 0 | Z49: =GAMEstage1!Z19 -> 0 | AA49: =GAMEstage1!AA19 -> 0 | AB49: =GAMEstage1!AB19 -> 0 | AC49: =GAMEstage1!AC19 -> 0 | AD49: =GAMEstage1!AD19 -> 0 | AE49: =GAMEstage1!AE19 -> 0
B50: 1 | C50: 1 | D50: 1 | E50: 1 | F50: 1 | G50: 1 | H50: 1 | I50: 1 | J50: 1 | K50: 1 | L50: 1 | M50: 1 | N50: 1 | O50: 1 | P50: 1 | Q50: =GAMEstage1!Q20 -> 0 | R50: =GAMEstage1!R20 -> 0 | S50: =GAMEstage1!S20 -> 0 | T50: =GAMEstage1!T20 -> 0 | U50: =GAMEstage1!U20 -> 0 | V50: =GAMEstage1!V20 -> 0 | W50: =GAMEstage1!W20 -> 0 | X50: =GAMEstage1!X20 -> 0 | Y50: =GAMEstage1!Y20 -> 0 | Z50: =GAMEstage1!Z20 -> 0 | AA50: =GAMEstage1!AA20 -> 0 | AB50: =GAMEstage1!AB20 -> 0 | AC50: =GAMEstage1!AC20 -> 0 | AD50: =GAMEstage1!AD20 -> 0 | AE50: =GAMEstage1!AE20 -> 0
B51: 1 | C51: 1 | D51: 1 | E51: 1 | F51: 1 | G51: 1 | H51: 1 | I51: 1 | J51: 1 | K51: 1 | L51: 1 | M51: 1 | N51: 1 | O51: 1 | P51: 1 | Q51: =GAMEstage1!Q21 -> 0 | R51: =GAMEstage1!R21 -> 0 | S51: =GAMEstage1!S21 -> 0 | T51: =GAMEstage1!T21 -> 0 | U51: =GAMEstage1!U21 -> 0 | V51: =GAMEstage1!V21 -> 0 | W51: =GAMEstage1!W21 -> 0 | X51: =GAMEstage1!X21 -> 0 | Y51: =GAMEstage1!Y21 -> 0 | Z51: =GAMEstage1!Z21 -> 0 | AA51: =GAMEstage1!AA21 -> 0 | AB51: =GAMEstage1!AB21 -> 0 | AC51: =GAMEstage1!AC21 -> 0 | AD51: =GAMEstage1!AD21 -> 0 | AE51: =GAMEstage1!AE21 -> 0
B52: 1 | C52: 1 | D52: 1 | E52: 1 | F52: 1 | G52: 1 | H52: 1 | I52: 1 | J52: 1 | K52: 1 | L52: 1 | M52: 1 | N52: 1 | O52: 1 | P52: 1 | Q52: =GAMEstage1!Q22 -> 0 | R52: =GAMEstage1!R22 -> 0 | S52: =GAMEstage1!S22 -> 0 | T52: =GAMEstage1!T22 -> 0 | U52: =GAMEstage1!U22 -> 0 | V52: =GAMEstage1!V22 -> 0 | W52: =GAMEstage1!W22 -> 0 | X52: =GAMEstage1!X22 -> 0 | Y52: =GAMEstage1!Y22 -> 0 | Z52: =GAMEstage1!Z22 -> 0 | AA52: =GAMEstage1!AA22 -> 0 | AB52: =GAMEstage1!AB22 -> 0 | AC52: =GAMEstage1!AC22 -> 0 | AD52: =GAMEstage1!AD22 -> 0 | AE52: =GAMEstage1!AE22 -> 0
B53: 1 | C53: 1 | D53: 1 | E53: 1 | F53: 1 | G53: 1 | H53: 1 | I53: 1 | J53: 1 | K53: 1 | L53: 1 | M53: 1 | N53: 1 | O53: 1 | P53: 1 | Q53: =GAMEstage1!Q23 -> 0 | R53: =GAMEstage1!R23 -> 0 | S53: =GAMEstage1!S23 -> 0 | T53: =GAMEstage1!T23 -> 0 | U53: =GAMEstage1!U23 -> 0 | V53: =GAMEstage1!V23 -> 0 | W53: =GAMEstage1!W23 -> 0 | X53: =GAMEstage1!X23 -> 0 | Y53: =GAMEstage1!Y23 -> 0 | Z53: =GAMEstage1!Z23 -> 0 | AA53: =GAMEstage1!AA23 -> 0 | AB53: =GAMEstage1!AB23 -> 0 | AC53: =GAMEstage1!AC23 -> 0 | AD53: =GAMEstage1!AD23 -> 0 | AE53: =GAMEstage1!AE23 -> 0
B54: 1 | C54: 1 | D54: 1 | E54: 1 | F54: 1 | G54: 1 | H54: 1 | I54: 1 | J54: 1 | K54: 1 | L54: 1 | M54: 1 | N54: 1 | O54: 1 | P54: 1 | Q54: =GAMEstage1!Q24 -> 0 | R54: =GAMEstage1!R24 -> 0 | S54: =GAMEstage1!S24 -> 0 | T54: =GAMEstage1!T24 -> 0 | U54: =GAMEstage1!U24 -> 0 | V54: =GAMEstage1!V24 -> 0 | W54: =GAMEstage1!W24 -> 0 | X54: =GAMEstage1!X24 -> 0 | Y54: =GAMEstage1!Y24 -> 0 | Z54: =GAMEstage1!Z24 -> 0 | AA54: =GAMEstage1!AA24 -> 0 | AB54: =GAMEstage1!AB24 -> 0 | AC54: =GAMEstage1!AC24 -> 0 | AD54: =GAMEstage1!AD24 -> 0 | AE54: =GAMEstage1!AE24 -> 0
B55: 1 | C55: 1 | D55: 1 | E55: 1 | F55: 1 | G55: 1 | H55: 1 | I55: 1 | J55: 1 | K55: 1 | L55: 1 | M55: 1 | N55: 1 | O55: 1 | P55: 1 | Q55: =GAMEstage1!Q25 -> 0 | R55: =GAMEstage1!R25 -> 0 | S55: =GAMEstage1!S25 -> 0 | T55: =GAMEstage1!T25 -> 0 | U55: =GAMEstage1!U25 -> 0 | V55: =GAMEstage1!V25 -> 0 | W55: =GAMEstage1!W25 -> 0 | X55: =GAMEstage1!X25 -> 0 | Y55: =GAMEstage1!Y25 -> 0 | Z55: =GAMEstage1!Z25 -> 0 | AA55: =GAMEstage1!AA25 -> 0 | AB55: =GAMEstage1!AB25 -> 0 | AC55: =GAMEstage1!AC25 -> 0 | AD55: =GAMEstage1!AD25 -> 0 | AE55: =GAMEstage1!AE25 -> 0
B56: 1 | C56: 1 | D56: 1 | E56: 1 | F56: 1 | G56: 1 | H56: 1 | I56: 1 | J56: 1 | K56: 1 | L56: 1 | M56: 1 | N56: 1 | O56: 1 | P56: 1 | Q56: =GAMEstage1!Q26 -> 0 | R56: =GAMEstage1!R26 -> 0 | S56: =GAMEstage1!S26 -> 0 | T56: =GAMEstage1!T26 -> 0 | U56: =GAMEstage1!U26 -> 0 | V56: =GAMEstage1!V26 -> 0 | W56: =GAMEstage1!W26 -> 0 | X56: =GAMEstage1!X26 -> 0 | Y56: =GAMEstage1!Y26 -> 0 | Z56: =GAMEstage1!Z26 -> 0 | AA56: =GAMEstage1!AA26 -> 0 | AB56: =GAMEstage1!AB26 -> 0 | AC56: =GAMEstage1!AC26 -> 0 | AD56: =GAMEstage1!AD26 -> 0 | AE56: =GAMEstage1!AE26 -> 0
B57: 1 | C57: 1 | D57: 1 | E57: 1 | F57: 1 | G57: 1 | H57: 1 | I57: 1 | J57: 1 | K57: 1 | L57: 1 | M57: 1 | N57: 1 | O57: 1 | P57: 1 | Q57: =GAMEstage1!Q27 -> 0 | R57: =GAMEstage1!R27 -> 0 | S57: =GAMEstage1!S27 -> 0 | T57: =GAMEstage1!T27 -> 0 | U57: =GAMEstage1!U27 -> 0 | V57: =GAMEstage1!V27 -> 0 | W57: =GAMEstage1!W27 -> 0 | X57: =GAMEstage1!X27 -> 0 | Y57: =GAMEstage1!Y27 -> 0 | Z57: =GAMEstage1!Z27 -> 0 | AA57: =GAMEstage1!AA27 -> 0 | AB57: =GAMEstage1!AB27 -> 0 | AC57: =GAMEstage1!AC27 -> 0 | AD57: =GAMEstage1!AD27 -> 0 | AE57: =GAMEstage1!AE27 -> 0
B58: 1 | C58: 1 | D58: 1 | E58: 1 | F58: 1 | G58: 1 | H58: 1 | I58: 1 | J58: 1 | K58: 1 | L58: 1 | M58: 1 | N58: 1 | O58: 1 | P58: 1 | Q58: =GAMEstage1!Q28 -> 0 | R58: =GAMEstage1!R28 -> 0 | S58: =GAMEstage1!S28 -> 0 | T58: =GAMEstage1!T28 -> 0 | U58: =GAMEstage1!U28 -> 0 | V58: =GAMEstage1!V28 -> 0 | W58: =GAMEstage1!W28 -> 0 | X58: =GAMEstage1!X28 -> 0 | Y58: =GAMEstage1!Y28 -> 0 | Z58: =GAMEstage1!Z28 -> 0 | AA58: =GAMEstage1!AA28 -> 0 | AB58: =GAMEstage1!AB28 -> 0 | AC58: =GAMEstage1!AC28 -> 0 | AD58: =GAMEstage1!AD28 -> 0 | AE58: =GAMEstage1!AE28 -> 0
B59: 1 | C59: 1 | D59: 1 | E59: 1 | F59: 1 | G59: 1 | H59: 1 | I59: 1 | J59: 1 | K59: 1 | L59: 1 | M59: 1 | N59: 1 | O59: 1 | P59: 1 | Q59: =GAMEstage1!Q29 -> 0 | R59: =GAMEstage1!R29 -> 0 | S59: =GAMEstage1!S29 -> 0 | T59: =GAMEstage1!T29 -> 0 | U59: =GAMEstage1!U29 -> 0 | V59: =GAMEstage1!V29 -> 0 | W59: =GAMEstage1!W29 -> 0 | X59: =GAMEstage1!X29 -> 0 | Y59: =GAMEstage1!Y29 -> 0 | Z59: =GAMEstage1!Z29 -> 0 | AA59: =GAMEstage1!AA29 -> 0 | AB59: =GAMEstage1!AB29 -> 0 | AC59: =GAMEstage1!AC29 -> 0 | AD59: =GAMEstage1!AD29 -> 0 | AE59: =GAMEstage1!AE29 -> 0
B60: 1 | C60: 1 | D60: 1 | E60: 1 | F60: 1 | G60: 1 | H60: 1 | I60: 1 | J60: 1 | K60: 1 | L60: 1 | M60: 1 | N60: 1 | O60: 1 | P60: 1 | Q60: =GAMEstage1!Q30 -> 0 | R60: =GAMEstage1!R30 -> 0 | S60: =GAMEstage1!S30 -> 0 | T60: =GAMEstage1!T30 -> 0 | U60: =GAMEstage1!U30 -> 0 | V60: =GAMEstage1!V30 -> 0 | W60: =GAMEstage1!W30 -> 0 | X60: =GAMEstage1!X30 -> 0 | Y60: =GAMEstage1!Y30 -> 0 | Z60: =GAMEstage1!Z30 -> 0 | AA60: =GAMEstage1!AA30 -> 0 | AB60: =GAMEstage1!AB30 -> 0 | AC60: =GAMEstage1!AC30 -> 0 | AD60: =GAMEstage1!AD30 -> 0 | AE60: =GAMEstage1!AE30 -> 0
B61: 1 | C61: 1 | D61: 1 | E61: 1 | F61: 1 | G61: 1 | H61: 1 | I61: 1 | J61: 1 | K61: 1 | L61: 1 | M61: 1 | N61: 1 | O61: 1 | P61: 1 | Q61: =GAMEstage1!Q31 -> 0 | R61: =GAMEstage1!R31 -> 0 | S61: =GAMEstage1!S31 -> 0 | T61: =GAMEstage1!T31 -> 0 | U61: =GAMEstage1!U31 -> 0 | V61: =GAMEstage1!V31 -> 0 | W61: =GAMEstage1!W31 -> 0 | X61: =GAMEstage1!X31 -> 0 | Y61: =GAMEstage1!Y31 -> 0 | Z61: =GAMEstage1!Z31 -> 0 | AA61: =GAMEstage1!AA31 -> 0 | AB61: =GAMEstage1!AB31 -> 0 | AC61: =GAMEstage1!AC31 -> 0 | AD61: =GAMEstage1!AD31 -> 0 | AE61: =GAMEstage1!AE31 -> 0
G65: =SUM(B32:P61) -> 450

Sheet GAMEtools
BN2: Weight | BP2: Cost
BH3: BODY | BZ3: WEIGHT | CC3: COST
BA5: Capacity | BE5: =COUNTIF(GAMEstage1!O2:R30,"sb")*3+COUNTIF(GAMEstage1!O2:R30,"tb")+COUNTIF(GAMEstage1!O2:R30,"btb") -> 0 | BH5: Squares | BL5: =COUNTIF(GAMEstage1!B2:AE31,"sb") -> 0 | BN5: =BL5*CA7 -> 0 | BP5: =BL5*CC7 -> 0 | BW5: Body
BA7: Length | BE7: =BL13+BL27 -> 0 | BH7: Big triangles | BL7: =COUNTIF(GAMEstage1!B2:AE31,"btb") -> 0 | BN7: =BL7*CA9 -> 0 | BP7: =BL7*CC9 -> 0 | BW7: Squares | CA7: 11.5 | CC7: 130
BA9: Wing span | BE9: ='Calculate wingSpam'!$C$15 -> 2 | BH9: Triangles | BL9: =COUNTIF(GAMEstage1!B2:AE31,"tb") -> 0 | BN9: =BL9*CA11 -> 0 | BP9: =BL9*CC11 -> 0 | BW9: Big triangles | CA9: 8 | CC9: 170
BA11: Range | BE11: =I33*I35 -> 0 | BH11: Npb | BL11: =SUM(BL5:BL9) -> 0 | BW11: Triangles | CA11: 6 | CC11: 70
BA13: Cost | BE13: =SUM(BP5:BQ65) -> 0 | BH13: NpbL | BL13: =COUNTIF(GAMEstage1!N2:S31,"btb")+COUNTIF(GAMEstage1!P2:P31,"sb")+COUNTIF(GAMEstage1!P2:P31,"tb") -> 0 | BW13: Wing & Tail
BA15: Weight | BE15: =SUM(BN5:BO65) -> 0 | BH15: NpbW | BL15: ='Calculate Wight Body'!$B$19 -> 0 | BW15: Squares | CA15: 10 | CC15: 100
BA17: Ratio of power | BE17: =R35/BE15*100 ->  | BW17: Big Triangles | CA17: 7 | CC17: 160
BH19: COCKPIT | BW19: Triangles | CA19: 5 | CC19: 60
BH21: Squares | BL21: =COUNTIF(GAMEstage1!B2:AE31,"sc") -> 0 | BW21: Power Plant
BH23: Big triangles | BL23: =COUNTIF(GAMEstage1!B2:AE31,"btc") -> 0 | BW23: Engine | CA23: 50 | CC23: 500
BH25: Triangles | BL25: =COUNTIF(GAMEstage1!B2:AE31,"tc") -> 0
BH27: Lc | BL27: =BL15 -> 0
BH31: TAIL
B33: Consume of fuel | I33: =IF(BL55=2,200,0)+IF(BL55=4,150,0)+IF(BL55=6,100,0) -> 0 | M33: Power | R33: =BL55*500 -> 0 | W33: Total Surface | AC33: =SUM(I35,BL33,BL35,BL37/2) -> 0 | BH33: Squares | BL33: =COUNTIF(GAMEstage1!B2:AE31,"st")/2 -> 0 | BN33: =BL33*CA15 -> 0 | BP33: =BL33*CC15 -> 0
B35: Fuel | I35: =SUM(BL21,BL23,BL25/2) -> 0 | M35: Free power | R35: =R33-BE15 -> 0 | BH35: Big triangles | BL35: =COUNTIF(GAMEstage1!B2:AE31,"btt")/2 -> 0 | BN35: =BL35*CA17 -> 0 | BP35: =BL35*CC17 -> 0
BH37: Triangles | BL37: =COUNTIF(GAMEstage1!B2:AE30,"tt")/2 -> 0 | BN37: =BL37*CA19 -> 0 | BP37: =BL37*CC19 -> 0
BH39: NptW | BL39: ='Calculate wingSpam of the tail'!$C$15 -> 0
BH40: NptL | BL40: =ROUNDDOWN(2*SUM(BL33:BL37)/(BL39),0) -> 
BH41: NpT | BL41: =SUM(BL33:BL37) -> 0
BH43: WING
BH45: Squares | BL45: =COUNTIF(GAMEstage1!B2:AE31,"sw")/2 -> 0 | BN45: =BL45*CA29 -> 0 | BP45: =BL45*CC29 -> 0
BH47: Big triangles | BL47: =COUNTIF(GAMEstage1!B2:AE31,"btw")/2 -> 0 | BN47: =BL47*CA31 -> 0 | BP47: =BL47*CC31 -> 0
BH49: Triangles | BL49: =COUNTIF(GAMEstage1!B2:AE31,"tw")/2 -> 0 | BN49: =BL49*CA33 -> 0 | BP49: =BL49*CC33 -> 0
BH51: NpwL | BL51: =ROUNDDOWN(2*SUM(BL45:BL49)/(BL52),0) -> 0
BH52: NpwW | BL52: =(BE9-BL15)/2 -> 1
BH53: NpW | BL53: =BL52*BL51/2 -> 0
BH55: POWER PLANT | BL55: =COUNTIF(GAMEstage1!B2:AE31,"e") -> 0 | BN55: =BL55*CA23 -> 0 | BP55: =BL55*CC23 -> 0

Sheet Calculate Wight Body
A1: =COUNTIF(GAMEstage2!B2:AE2,"btb")+COUNTIF(GAMEstage2!B2:AE2,"sb")+COUNTIF(GAMEstage2!B2:AE2,"tb") -> 0
A2: =COUNTIF(GAMEstage2!B3:AE3,"btb")+COUNTIF(GAMEstage2!B3:AE3,"sb")+COUNTIF(GAMEstage2!B3:AE3,"tb") -> 0
A3: =COUNTIF(GAMEstage1!B4:AE4,"btb")+COUNTIF(GAMEstage1!B4:AE4,"sb")+COUNTIF(GAMEstage1!B4:AE4,"tb") -> 0
A4: =COUNTIF(GAMEstage1!B5:AE5,"btb")+COUNTIF(GAMEstage1!B5:AE5,"sb")+COUNTIF(GAMEstage1!B5:AE5,"tb") -> 0
A5: =COUNTIF(GAMEstage1!B6:AE6,"btb")+COUNTIF(GAMEstage1!B6:AE6,"sb")+COUNTIF(GAMEstage1!B6:AE6,"tb") -> 0
A6: =COUNTIF(GAMEstage1!B7:AE7,"btb")+COUNTIF(GAMEstage1!B7:AE7,"sb")+COUNTIF(GAMEstage1!B7:AE7,"tb") -> 0
A7: =COUNTIF(GAMEstage1!B8:AE8,"btb")+COUNTIF(GAMEstage1!B8:AE8,"sb")+COUNTIF(GAMEstage1!B8:AE8,"tb") -> 0
A8: =COUNTIF(GAMEstage1!B9:AE9,"btb")+COUNTIF(GAMEstage1!B9:AE9,"sb")+COUNTIF(GAMEstage1!B9:AE9,"tb") -> 0
A9: =COUNTIF(GAMEstage1!B10:AE10,"btb")+COUNTIF(GAMEstage1!B10:AE10,"sb")+COUNTIF(GAMEstage1!B10:AE10,"tb") -> 0
A10: =COUNTIF(GAMEstage1!B11:AE11,"btb")+COUNTIF(GAMEstage1!B11:AE11,"sb")+COUNTIF(GAMEstage1!B11:AE11,"tb") -> 0
A11: =COUNTIF(GAMEstage1!B12:AE12,"btb")+COUNTIF(GAMEstage1!B12:AE12,"sb")+COUNTIF(GAMEstage1!B12:AE12,"tb") -> 0
A12: =COUNTIF(GAMEstage1!B13:AE13,"btb")+COUNTIF(GAMEstage1!B13:AE13,"sb")+COUNTIF(GAMEstage1!B13:AE13,"tb") -> 0
A13: =COUNTIF(GAMEstage1!B14:AE14,"btb")+COUNTIF(GAMEstage1!B14:AE14,"sb")+COUNTIF(GAMEstage1!B14:AE14,"tb") -> 0
A14: =COUNTIF(GAMEstage1!B15:AE15,"btb")+COUNTIF(GAMEstage1!B15:AE15,"sb")+COUNTIF(GAMEstage1!B15:AE15,"tb") -> 0
A15: =COUNTIF(GAMEstage1!B16:AE16,"btb")+COUNTIF(GAMEstage1!B16:AE16,"sb")+COUNTIF(GAMEstage1!B16:AE16,"tb") -> 0
A16: =COUNTIF(GAMEstage1!B17:AE17,"btb")+COUNTIF(GAMEstage1!B17:AE17,"sb")+COUNTIF(GAMEstage1!B17:AE17,"tb") -> 0
A17: =COUNTIF(GAMEstage1!B18:AE18,"btb")+COUNTIF(GAMEstage1!B18:AE18,"sb")+COUNTIF(GAMEstage1!B18:AE18,"tb") -> 0
A18: =COUNTIF(GAMEstage1!B19:AE19,"btb")+COUNTIF(GAMEstage1!B19:AE19,"sb")+COUNTIF(GAMEstage1!B19:AE19,"tb") -> 0 | B18: Wight of the body
A19: =COUNTIF(GAMEstage1!B20:AE20,"btb")+COUNTIF(GAMEstage1!B20:AE20,"sb")+COUNTIF(GAMEstage1!B20:AE20,"tb") -> 0 | B19: =MAX(A1:A30) -> 0
A20: =COUNTIF(GAMEstage1!B21:AE21,"btb")+COUNTIF(GAMEstage1!B21:AE21,"sb")+COUNTIF(GAMEstage1!B21:AE21,"tb") -> 0
A21: =COUNTIF(GAMEstage1!B22:AE22,"btb")+COUNTIF(GAMEstage1!B22:AE22,"sb")+COUNTIF(GAMEstage1!B22:AE22,"tb") -> 0
A22: =COUNTIF(GAMEstage1!B23:AE23,"btb")+COUNTIF(GAMEstage1!B23:AE23,"sb")+COUNTIF(GAMEstage1!B23:AE23,"tb") -> 0
A23: =COUNTIF(GAMEstage1!B24:AE24,"btb")+COUNTIF(GAMEstage1!B24:AE24,"sb")+COUNTIF(GAMEstage1!B24:AE24,"tb") -> 0
A24: =COUNTIF(GAMEstage1!B25:AE25,"btb")+COUNTIF(GAMEstage1!B25:AE25,"sb")+COUNTIF(GAMEstage1!B25:AE25,"tb") -> 0
A25: =COUNTIF(GAMEstage1!B26:AE26,"btb")+COUNTIF(GAMEstage1!B26:AE26,"sb")+COUNTIF(GAMEstage1!B26:AE26,"tb") -> 0
A26: =COUNTIF(GAMEstage1!B27:AE27,"btb")+COUNTIF(GAMEstage1!B27:AE27,"sb")+COUNTIF(GAMEstage1!B27:AE27,"tb") -> 0
A27: =COUNTIF(GAMEstage1!B28:AE28,"btb")+COUNTIF(GAMEstage1!B28:AE28,"sb")+COUNTIF(GAMEstage1!B28:AE28,"tb") -> 0
A28: =COUNTIF(GAMEstage1!B29:AE29,"btb")+COUNTIF(GAMEstage1!B29:AE29,"sb")+COUNTIF(GAMEstage1!B29:AE29,"tb") -> 0
A29: =COUNTIF(GAMEstage1!B30:AE30,"btb")+COUNTIF(GAMEstage1!B30:AE30,"sb")+COUNTIF(GAMEstage1!B30:AE30,"tb") -> 0
A30: =COUNTIF(GAMEstage1!B31:AE31,"btb")+COUNTIF(GAMEstage1!B31:AE31,"sb")+COUNTIF(GAMEstage1!B31:AE31,"tb") -> 0

Sheet Calculate wingSpam
A1: =COUNTIF(GAMEstage1!B2:AE2,"sb")+COUNTIF(GAMEstage1!B2:AE2,"bt")+COUNTIF(GAMEstage1!B2:AE2,"btb")+COUNTIF(GAMEstage1!B2:AE2,"btw")+COUNTIF(GAMEstage1!B2:AE2,"sw")+COUNTIF(GAMEstage1!B2:AE2,"tw") -> 0 | B1: =IF(A1=0,100,A1) -> 100
A2: =COUNTIF(GAMEstage1!B3:AE3,"sb")+COUNTIF(GAMEstage1!B3:AE3,"bt")+COUNTIF(GAMEstage1!B3:AE3,"btb")+COUNTIF(GAMEstage1!B3:AE3,"btw")+COUNTIF(GAMEstage1!B3:AE3,"sw")+COUNTIF(GAMEstage1!B3:AE3,"tw") -> 0 | B2: =IF(A2=0,100,A2) -> 100
A3: =COUNTIF(GAMEstage1!B4:AE4,"sb")+COUNTIF(GAMEstage1!B4:AE4,"bt")+COUNTIF(GAMEstage1!B4:AE4,"btb")+COUNTIF(GAMEstage1!B4:AE4,"btw")+COUNTIF(GAMEstage1!B4:AE4,"sw")+COUNTIF(GAMEstage1!B4:AE4,"tw") -> 0 | B3: 100
A4: =COUNTIF(GAMEstage1!B5:AE5,"sb")+COUNTIF(GAMEstage1!B5:AE5,"bt")+COUNTIF(GAMEstage1!B5:AE5,"btb")+COUNTIF(GAMEstage1!B5:AE5,"btw")+COUNTIF(GAMEstage1!B5:AE5,"sw")+COUNTIF(GAMEstage1!B5:AE5,"tw") -> 0 | B4: 100
A5: =COUNTIF(GAMEstage1!B6:AE6,"sb")+COUNTIF(GAMEstage1!B6:AE6,"bt")+COUNTIF(GAMEstage1!B6:AE6,"btb")+COUNTIF(GAMEstage1!B6:AE6,"btw")+COUNTIF(GAMEstage1!B6:AE6,"sw")+COUNTIF(GAMEstage1!B6:AE6,"tw") -> 0 | B5: 100
A6: =COUNTIF(GAMEstage1!B7:AE7,"sb")+COUNTIF(GAMEstage1!B7:AE7,"bt")+COUNTIF(GAMEstage1!B7:AE7,"btb")+COUNTIF(GAMEstage1!B7:AE7,"btw")+COUNTIF(GAMEstage1!B7:AE7,"sw")+COUNTIF(GAMEstage1!B7:AE7,"tw") -> 0 | B6: 100
A7: =COUNTIF(GAMEstage1!B8:AE8,"sb")+COUNTIF(GAMEstage1!B8:AE8,"bt")+COUNTIF(GAMEstage1!B8:AE8,"btb")+COUNTIF(GAMEstage1!B8:AE8,"btw")+COUNTIF(GAMEstage1!B8:AE8,"sw")+COUNTIF(GAMEstage1!B8:AE8,"tw") -> 0 | B7: 100
A8: =COUNTIF(GAMEstage1!B9:AE9,"sb")+COUNTIF(GAMEstage1!B9:AE9,"bt")+COUNTIF(GAMEstage1!B9:AE9,"btb")+COUNTIF(GAMEstage1!B9:AE9,"btw")+COUNTIF(GAMEstage1!B9:AE9,"sw")+COUNTIF(GAMEstage1!B9:AE9,"tw") -> 0 | B8: 100
A9: =COUNTIF(GAMEstage1!B10:AE10,"sb")+COUNTIF(GAMEstage1!B10:AE10,"bt")+COUNTIF(GAMEstage1!B10:AE10,"btb")+COUNTIF(GAMEstage1!B10:AE10,"btw")+COUNTIF(GAMEstage1!B10:AE10,"sw")+COUNTIF(GAMEstage1!B10:AE10,"tw") -> 0 | B9: 100
A10: =COUNTIF(GAMEstage1!B11:AE11,"sb")+COUNTIF(GAMEstage1!B11:AE11,"bt")+COUNTIF(GAMEstage1!B11:AE11,"btb")+COUNTIF(GAMEstage1!B11:AE11,"btw")+COUNTIF(GAMEstage1!B11:AE11,"sw")+COUNTIF(GAMEstage1!B11:AE11,"tw") -> 0 | B10: 100
A11: =COUNTIF(GAMEstage1!B12:AE12,"sb")+COUNTIF(GAMEstage1!B12:AE12,"bt")+COUNTIF(GAMEstage1!B12:AE12,"btb")+COUNTIF(GAMEstage1!B12:AE12,"btw")+COUNTIF(GAMEstage1!B12:AE12,"sw")+COUNTIF(GAMEstage1!B12:AE12,"tw") -> 0 | B11: 100
A12: =COUNTIF(GAMEstage1!B13:AE13,"sb")+COUNTIF(GAMEstage1!B13:AE13,"bt")+COUNTIF(GAMEstage1!B13:AE13,"btb")+COUNTIF(GAMEstage1!B13:AE13,"btw")+COUNTIF(GAMEstage1!B13:AE13,"sw")+COUNTIF(GAMEstage1!B13:AE13,"tw") -> 0 | B12: 100
A13: =COUNTIF(GAMEstage1!B14:AE14,"sb")+COUNTIF(GAMEstage1!B14:AE14,"bt")+COUNTIF(GAMEstage1!B14:AE14,"btb")+COUNTIF(GAMEstage1!B14:AE14,"btw")+COUNTIF(GAMEstage1!B14:AE14,"sw")+COUNTIF(GAMEstage1!B14:AE14,"tw") -> 0 | B13: 100
A14: =COUNTIF(GAMEstage1!B15:AE15,"sb")+COUNTIF(GAMEstage1!B15:AE15,"bt")+COUNTIF(GAMEstage1!B15:AE15,"btb")+COUNTIF(GAMEstage1!B15:AE15,"btw")+COUNTIF(GAMEstage1!B15:AE15,"sw")+COUNTIF(GAMEstage1!B15:AE15,"tw") -> 0 | B14: 100 | C14: Wing Span
A15: =COUNTIF(GAMEstage1!B16:AE16,"sb")+COUNTIF(GAMEstage1!B16:AE16,"bt")+COUNTIF(GAMEstage1!B16:AE16,"btb")+COUNTIF(GAMEstage1!B16:AE16,"btw")+COUNTIF(GAMEstage1!B16:AE16,"sw")+COUNTIF(GAMEstage1!B16:AE16,"tw") -> 0 | B15: 100 | C15: =MAX(A1:A30)+2 -> 2
A16: =COUNTIF(GAMEstage1!B17:AE17,"sb")+COUNTIF(GAMEstage1!B17:AE17,"bt")+COUNTIF(GAMEstage1!B17:AE17,"btb")+COUNTIF(GAMEstage1!B17:AE17,"btw")+COUNTIF(GAMEstage1!B17:AE17,"sw")+COUNTIF(GAMEstage1!B17:AE17,"tw") -> 0 | B16: 100
A17: =COUNTIF(GAMEstage1!B18:AE18,"sb")+COUNTIF(GAMEstage1!B18:AE18,"bt")+COUNTIF(GAMEstage1!B18:AE18,"btb")+COUNTIF(GAMEstage1!B18:AE18,"btw")+COUNTIF(GAMEstage1!B18:AE18,"sw")+COUNTIF(GAMEstage1!B18:AE18,"tw") -> 0 | B17: 100
A18: =COUNTIF(GAMEstage1!B19:AE19,"sb")+COUNTIF(GAMEstage1!B19:AE19,"bt")+COUNTIF(GAMEstage1!B19:AE19,"btb")+COUNTIF(GAMEstage1!B19:AE19,"btw")+COUNTIF(GAMEstage1!B19:AE19,"sw")+COUNTIF(GAMEstage1!B19:AE19,"tw") -> 0 | B18: 100
A19: =COUNTIF(GAMEstage1!B20:AE20,"sb")+COUNTIF(GAMEstage1!B20:AE20,"bt")+COUNTIF(GAMEstage1!B20:AE20,"btb")+COUNTIF(GAMEstage1!B20:AE20,"btw")+COUNTIF(GAMEstage1!B20:AE20,"sw")+COUNTIF(GAMEstage1!B20:AE20,"tw") -> 0 | B19: 100
A20: =COUNTIF(GAMEstage1!B21:AE21,"sb")+COUNTIF(GAMEstage1!B21:AE21,"bt")+COUNTIF(GAMEstage1!B21:AE21,"btb")+COUNTIF(GAMEstage1!B21:AE21,"btw")+COUNTIF(GAMEstage1!B21:AE21,"sw")+COUNTIF(GAMEstage1!B21:AE21,"tw") -> 0 | B20: 100
A21: =COUNTIF(GAMEstage1!B22:AE22,"sb")+COUNTIF(GAMEstage1!B22:AE22,"bt")+COUNTIF(GAMEstage1!B22:AE22,"btb")+COUNTIF(GAMEstage1!B22:AE22,"btw")+COUNTIF(GAMEstage1!B22:AE22,"sw")+COUNTIF(GAMEstage1!B22:AE22,"tw") -> 0 | B21: 100
A22: =COUNTIF(GAMEstage1!B23:AE23,"sb")+COUNTIF(GAMEstage1!B23:AE23,"bt")+COUNTIF(GAMEstage1!B23:AE23,"btb")+COUNTIF(GAMEstage1!B23:AE23,"btw")+COUNTIF(GAMEstage1!B23:AE23,"sw")+COUNTIF(GAMEstage1!B23:AE23,"tw") -> 0 | B22: 100
A23: =COUNTIF(GAMEstage1!B24:AE24,"sb")+COUNTIF(GAMEstage1!B24:AE24,"bt")+COUNTIF(GAMEstage1!B24:AE24,"btb")+COUNTIF(GAMEstage1!B24:AE24,"btw")+COUNTIF(GAMEstage1!B24:AE24,"sw")+COUNTIF(GAMEstage1!B24:AE24,"tw") -> 0 | B23: 100
A24: =COUNTIF(GAMEstage1!B25:AE25,"sb")+COUNTIF(GAMEstage1!B25:AE25,"bt")+COUNTIF(GAMEstage1!B25:AE25,"btb")+COUNTIF(GAMEstage1!B25:AE25,"btw")+COUNTIF(GAMEstage1!B25:AE25,"sw")+COUNTIF(GAMEstage1!B25:AE25,"tw") -> 0 | B24: 100
A25: =COUNTIF(GAMEstage1!B26:AE26,"sb")+COUNTIF(GAMEstage1!B26:AE26,"bt")+COUNTIF(GAMEstage1!B26:AE26,"btb")+COUNTIF(GAMEstage1!B26:AE26,"btw")+COUNTIF(GAMEstage1!B26:AE26,"sw")+COUNTIF(GAMEstage1!B26:AE26,"tw") -> 0 | B25: 100
A26: =COUNTIF(GAMEstage1!B27:AE27,"sb")+COUNTIF(GAMEstage1!B27:AE27,"bt")+COUNTIF(GAMEstage1!B27:AE27,"btb")+COUNTIF(GAMEstage1!B27:AE27,"btw")+COUNTIF(GAMEstage1!B27:AE27,"sw")+COUNTIF(GAMEstage1!B27:AE27,"tw") -> 0 | B26: 100
A27: =COUNTIF(GAMEstage1!B28:AE28,"sb")+COUNTIF(GAMEstage1!B28:AE28,"bt")+COUNTIF(GAMEstage1!B28:AE28,"btb")+COUNTIF(GAMEstage1!B28:AE28,"btw")+COUNTIF(GAMEstage1!B28:AE28,"sw")+COUNTIF(GAMEstage1!B28:AE28,"tw") -> 0 | B27: 100
A28: =COUNTIF(GAMEstage1!B29:AE29,"sb")+COUNTIF(GAMEstage1!B29:AE29,"bt")+COUNTIF(GAMEstage1!B29:AE29,"btb")+COUNTIF(GAMEstage1!B29:AE29,"btw")+COUNTIF(GAMEstage1!B29:AE29,"sw")+COUNTIF(GAMEstage1!B29:AE29,"tw") -> 0 | B28: 100
A29: =COUNTIF(GAMEstage1!B30:AE30,"sb")+COUNTIF(GAMEstage1!B30:AE30,"bt")+COUNTIF(GAMEstage1!B30:AE30,"btb")+COUNTIF(GAMEstage1!B30:AE30,"btw")+COUNTIF(GAMEstage1!B30:AE30,"sw")+COUNTIF(GAMEstage1!B30:AE30,"tw") -> 0 | B29: 100
A30: =COUNTIF(GAMEstage1!B31:AE31,"sb")+COUNTIF(GAMEstage1!B31:AE31,"bt")+COUNTIF(GAMEstage1!B31:AE31,"btb")+COUNTIF(GAMEstage1!B31:AE31,"btw")+COUNTIF(GAMEstage1!B31:AE31,"sw")+COUNTIF(GAMEstage1!B31:AE31,"tw") -> 0 | B30: 100

Sheet Calculate wingSpam of the tail
A1: =COUNTIF(GAMEstage1!B2:AE2,"sb")+COUNTIF(GAMEstage1!B2:AE2,"bt")+COUNTIF(GAMEstage1!B2:AE2,"btb")+COUNTIF(GAMEstage1!B2:AE2,"btw")+COUNTIF(GAMEstage1!B2:AE2,"sw")+COUNTIF(GAMEstage1!B2:AE2,"tw") -> 0
A2: =COUNTIF(GAMEstage1!B3:AE3,"sb")+COUNTIF(GAMEstage1!B3:AE3,"bt")+COUNTIF(GAMEstage1!B3:AE3,"btb")+COUNTIF(GAMEstage1!B3:AE3,"btw")+COUNTIF(GAMEstage1!B3:AE3,"sw")+COUNTIF(GAMEstage1!B3:AE3,"tw") -> 0
A3: =COUNTIF(GAMEstage1!B4:AE4,"sb")+COUNTIF(GAMEstage1!B4:AE4,"bt")+COUNTIF(GAMEstage1!B4:AE4,"btb")+COUNTIF(GAMEstage1!B4:AE4,"btw")+COUNTIF(GAMEstage1!B4:AE4,"sw")+COUNTIF(GAMEstage1!B4:AE4,"tw") -> 0
C14: Wing Span of the tail
C15: =((MAX(A16:A30)+2)-2)/2 -> 0
A16: =COUNTIF(GAMEstage1!B17:AE17,"sb")+COUNTIF(GAMEstage1!B17:AE17,"bt")+COUNTIF(GAMEstage1!B17:AE17,"btb")+COUNTIF(GAMEstage1!B17:AE17,"btt")+COUNTIF(GAMEstage1!B17:AE17,"st")+COUNTIF(GAMEstage1!B17:AE17,"tt") -> 0
A17: =COUNTIF(GAMEstage1!B18:AE18,"sb")+COUNTIF(GAMEstage1!B18:AE18,"bt")+COUNTIF(GAMEstage1!B18:AE18,"btb")+COUNTIF(GAMEstage1!B18:AE18,"btt")+COUNTIF(GAMEstage1!B18:AE18,"st")+COUNTIF(GAMEstage1!B18:AE18,"tt") -> 0
A18: =COUNTIF(GAMEstage1!B19:AE19,"sb")+COUNTIF(GAMEstage1!B19:AE19,"bt")+COUNTIF(GAMEstage1!B19:AE19,"btb")+COUNTIF(GAMEstage1!B19:AE19,"btt")+COUNTIF(GAMEstage1!B19:AE19,"st")+COUNTIF(GAMEstage1!B19:AE19,"tt") -> 0 | D18: =$C$15 -> 0
A19: =COUNTIF(GAMEstage1!B20:AE20,"sb")+COUNTIF(GAMEstage1!B20:AE20,"bt")+COUNTIF(GAMEstage1!B20:AE20,"btb")+COUNTIF(GAMEstage1!B20:AE20,"btt")+COUNTIF(GAMEstage1!B20:AE20,"st")+COUNTIF(GAMEstage1!B20:AE20,"tt") -> 0
A20: =COUNTIF(GAMEstage1!B21:AE21,"sb")+COUNTIF(GAMEstage1!B21:AE21,"bt")+COUNTIF(GAMEstage1!B21:AE21,"btb")+COUNTIF(GAMEstage1!B21:AE21,"btt")+COUNTIF(GAMEstage1!B21:AE21,"st")+COUNTIF(GAMEstage1!B21:AE21,"tt") -> 0
A21: =COUNTIF(GAMEstage1!B22:AE22,"sb")+COUNTIF(GAMEstage1!B22:AE22,"bt")+COUNTIF(GAMEstage1!B22:AE22,"btb")+COUNTIF(GAMEstage1!B22:AE22,"btt")+COUNTIF(GAMEstage1!B22:AE22,"st")+COUNTIF(GAMEstage1!B22:AE22,"tt") -> 0
A22: =COUNTIF(GAMEstage1!B23:AE23,"sb")+COUNTIF(GAMEstage1!B23:AE23,"bt")+COUNTIF(GAMEstage1!B23:AE23,"btb")+COUNTIF(GAMEstage1!B23:AE23,"btt")+COUNTIF(GAMEstage1!B23:AE23,"st")+COUNTIF(GAMEstage1!B23:AE23,"tt") -> 0
A23: =COUNTIF(GAMEstage1!B24:AE24,"sb")+COUNTIF(GAMEstage1!B24:AE24,"bt")+COUNTIF(GAMEstage1!B24:AE24,"btb")+COUNTIF(GAMEstage1!B24:AE24,"btt")+COUNTIF(GAMEstage1!B24:AE24,"st")+COUNTIF(GAMEstage1!B24:AE24,"tt") -> 0
A24: =COUNTIF(GAMEstage1!B25:AE25,"sb")+COUNTIF(GAMEstage1!B25:AE25,"bt")+COUNTIF(GAMEstage1!B25:AE25,"btb")+COUNTIF(GAMEstage1!B25:AE25,"btt")+COUNTIF(GAMEstage1!B25:AE25,"st")+COUNTIF(GAMEstage1!B25:AE25,"tt") -> 0
A25: =COUNTIF(GAMEstage1!B26:AE26,"sb")+COUNTIF(GAMEstage1!B26:AE26,"bt")+COUNTIF(GAMEstage1!B26:AE26,"btb")+COUNTIF(GAMEstage1!B26:AE26,"btt")+COUNTIF(GAMEstage1!B26:AE26,"st")+COUNTIF(GAMEstage1!B26:AE26,"tt") -> 0
A26: =COUNTIF(GAMEstage1!B27:AE27,"sb")+COUNTIF(GAMEstage1!B27:AE27,"bt")+COUNTIF(GAMEstage1!B27:AE27,"btb")+COUNTIF(GAMEstage1!B27:AE27,"btt")+COUNTIF(GAMEstage1!B27:AE27,"st")+COUNTIF(GAMEstage1!B27:AE27,"tt") -> 0
A27: =COUNTIF(GAMEstage1!B28:AE28,"sb")+COUNTIF(GAMEstage1!B28:AE28,"bt")+COUNTIF(GAMEstage1!B28:AE28,"btb")+COUNTIF(GAMEstage1!B28:AE28,"btt")+COUNTIF(GAMEstage1!B28:AE28,"st")+COUNTIF(GAMEstage1!B28:AE28,"tt") -> 0
A28: =COUNTIF(GAMEstage1!B29:AE29,"sb")+COUNTIF(GAMEstage1!B29:AE29,"bt")+COUNTIF(GAMEstage1!B29:AE29,"btb")+COUNTIF(GAMEstage1!B29:AE29,"btt")+COUNTIF(GAMEstage1!B29:AE29,"st")+COUNTIF(GAMEstage1!B29:AE29,"tt") -> 0
A29: =COUNTIF(GAMEstage1!B30:AE30,"sb")+COUNTIF(GAMEstage1!B30:AE30,"bt")+COUNTIF(GAMEstage1!B30:AE30,"btb")+COUNTIF(GAMEstage1!B30:AE30,"btt")+COUNTIF(GAMEstage1!B30:AE30,"st")+COUNTIF(GAMEstage1!B30:AE30,"tt") -> 0
A30: =COUNTIF(GAMEstage1!B31:AE31,"sb")+COUNTIF(GAMEstage1!B31:AE31,"bt")+COUNTIF(GAMEstage1!B31:AE31,"btb")+COUNTIF(GAMEstage1!B31:AE31,"btt")+COUNTIF(GAMEstage1!B31:AE31,"st")+COUNTIF(GAMEstage1!B31:AE31,"tt") -> 0

Sheet GAMEtools2
BN2: Weight | BP2: Cost
BH3: BODY | BZ3: WEIGHT | CC3: COST
BA5: Capacity | BE5: =COUNTIF(GAMEstage2!O2:R30,"sb")*3+COUNTIF(GAMEstage2!O2:R30,"tb")+COUNTIF(GAMEstage2!O2:R30,"btb") -> 0 | BH5: Squares | BL5: =COUNTIF(GAMEstage2!B2:AE31,"sb") -> 0 | BN5: =BL5*CA7 -> 0 | BP5: =BL5*CC7 -> 0 | BW5: Body
BA7: Length | BE7: =BL13+BL27 -> 0 | BH7: Big triangles | BL7: =COUNTIF(GAMEstage2!B2:AE31,"btb") -> 0 | BN7: =BL7*CA9 -> 0 | BP7: =BL7*CC9 -> 0 | BW7: Squares | CA7: 11.5 | CC7: 130
BA9: Wing span | BE9: ='Calculate wingSpam2'!$C$15 -> 2 | BH9: Triangles | BL9: =COUNTIF(GAMEstage2!B2:AE31,"tb") -> 0 | BN9: =BL9*CA11 -> 0 | BP9: =BL9*CC11 -> 0 | BW9: Big triangles | CA9: 8 | CC9: 170
BA11: Range | BE11: =I33*I35 -> 0 | BH11: Npb | BL11: =SUM(BL5:BL9) -> 0 | BW11: Triangles | CA11: 6 | CC11: 70
BA13: Cost | BE13: =SUM(BP5:BQ65) -> 0 | BH13: NpbL | BL13: =COUNTIF(GAMEstage2!N2:S31,"btb")+COUNTIF(GAMEstage2!P2:P31,"sb")+COUNTIF(GAMEstage2!P2:P31,"tb") -> 0 | BW13: Wing & Tail
BA15: Weight | BE15: =SUM(BN5:BO65) -> 0 | BH15: NpbW | BL15: ='Calculate Wight Body2'!$B$19 -> 0 | BW15: Squares | CA15: 10 | CC15: 100
BA17: Total power | BE17: =BP55 -> 0 | BW17: Big Triangles | CA17: 7 | CC17: 160
BA19: Free Power | BE19: =BE17-BE15 -> 0 | BH19: COCKPIT | BW19: Triangles | CA19: 5 | CC19: 60
BH21: Squares | BL21: =COUNTIF(GAMEstage2!B2:AE31,"sc") -> 0 | BN21: =BL21*$CA$15 -> 0 | BP21: =CC15*BL21 -> 0 | BW21: Power Plant
BA22: Ratio of power | BE22: =ROUND(100*(BE19/BE15), 0) -> 
BH23: Big triangles | BL23: =COUNTIF(GAMEstage2!B2:AE31,"btc") -> 0 | BN23: =BL23*$CA$17 -> 0 | BP23: =CC17*BL23 -> 0 | BW23: Engine | CA23: 50 | CC23: 500
BH25: Triangles | BL25: =COUNTIF(GAMEstage2!B2:AE31,"tc") -> 0 | BN25: =BL25*$CA$19 -> 0 | BP25: =CC19*BL25 -> 0
BB27: DistanceBlock | BE27: =IF(BL55=2,200,IF(BL55=4,150,100)) -> 100 | BH27: Lc | BL27: =BL15 -> 0
BB28: Wing Surface | BE28: =2*(BL45+0.5*BL49+0.5*BL47) -> 0
BB29: Km of travel | BE29: =BE27*BE28 -> 0
BH31: TAIL
B33: Consume of fuel | I33: =IF(BL55=2,200,0)+IF(BL55=4,150,0)+IF(BL55=6,100,0) -> 0 | M33: Power | R33: =BL55*500 -> 0 | W33: Total Surface | AC33: =SUM(I35,BL33,BL35,BL37/2) -> 0 | BH33: Squares | BL33: =COUNTIF(GAMEstage2!B2:AE31,"st")/2 -> 0 | BN33: =BL33*$CA$15 -> 0 | BP33: =2*BL33*CC15 -> 0
B35: Fuel | I35: =SUM(BL21,BL23,BL25/2) -> 0 | M35: Free power | R35: =R33-BE15 -> 0 | BH35: Big triangles | BL35: =COUNTIF(GAMEstage2!B2:AE31,"btt")/2 -> 0 | BN35: =BL35*$CA$17 -> 0 | BP35: =2*BL35*CC1 -> 0
BH37: Triangles | BL37: =COUNTIF(GAMEstage2!B2:AE30,"tt")/2 -> 0 | BN37: =BL37*$CA$19 -> 0 | BP37: =BL37*CC19*2 -> 0
BH39: NptW | BL39: ='Calculate wingSpam of the t 2'!D18 -> 0
BH40: NptL | BL40: =ROUNDDOWN(2*SUM(BL33:BL37)/(BL39),0) -> 
BH41: NpT | BL41: =SUM(BL33:BL37) -> 0
BH43: WING
BH45: Squares | BL45: =COUNTIF(GAMEstage2!B2:AE31,"sw")/2 -> 0 | BN45: =BL45*$CA$15 -> 0 | BP45: =BL45*CC15*2 -> 0
BH47: Big triangles | BL47: =COUNTIF(GAMEstage2!B2:AE31,"btw")/2 -> 0 | BN47: =BL47*$CA$17 -> 0 | BP47: =BL47*CC17*2 -> 0
BH49: Triangles | BL49: =COUNTIF(GAMEstage2!B2:AE31,"tw")/2 -> 0 | BN49: =BL49*$CA$19 -> 0 | BP49: =BL49*CC19*2 -> 0
BH51: NpwL | BL51: =ROUNDDOWN(2*SUM(BL45:BL49)/(BL52),0) -> 0
BH52: NpwW | BL52: =(BE9-BL15)/2 -> 1
BH53: NpW | BL53: =BL52*BL51/2 -> 0
BH55: POWER PLANT | BL55: =COUNTIF(GAMEstage2!B2:AE31,"e") -> 0 | BN55: =BL55*CA23 -> 0 | BP55: =BL55*CC23 -> 0

Sheet Cross-functional
BD30: CROSS-FUNCTIONAL TEAMS
BE34: Estimation of customer needs
BE36: Range of passengers | BF36: =GAMEtools2!BE5 -> 0
BE37: Speed | BF37: =GAMEtools2!BE22 -> 
BE38: Km of Travel | BF38: =GAMEtools2!BE29 -> 0
BE39: Lenght | BF39: =GAMEtools2!BE7 -> 0
BE40: Wing Span | BF40: =GAMEtools2!BE9 -> 2
BE41: Cost | BF41: =GAMEtools2!BE13 -> 0

Sheet Performance
D1: Real customer needs | G1: Design | J1: Rest | K1: Variation | L1: PERCENTAGE | M1: LEAN POINTS | P1: REAL CUSTOMER NEEDS
A2: Capacity (Number pass) | D2: NPC | G2: NP | J2: NPC-NP | K2: Res/NPC | L2: SI(L2>0;0,5;1) | M2: 100-Variation*Percentage | P2: Np | AE2: ='Customer needs'!B33 -> 222 | AI2: 0
A3: Fast/Slow | D3: Ratio of power customer | G3: Ratio of power | P3: Ratio of Power | AE3: ='Customer needs'!B34 -> 32
A4: Km of travel | D4: Km of travel customer | G4: Km of travel | P4: Km of Travel | AE4: ='Customer needs'!B35 -> 13000
A5: Parking requirements | D5: LC | G5: L | P5: Lenght | AE5: ='Customer needs'!B36 -> 27
D6: WsC | G6: Ws | P6: Ws | AE6: ='Customer needs'!B37 -> 30
A7: Cost | D7: Cost of customer | G7: Cost | J7: neg | P7: Cost | AE7: ='Customer needs'!B38 -> 34400
A8: Delivery time | D8: Delivery tim of customer | G8: Delilvery time | J8: neg | P8: Dtc | AE8: ='Customer needs'!B39 -> 9646
D15: Real customer needs | G15: Design | J15: Rest | K15: Variation | L15: Percentage | M15: LEAN POINTS | N15: Iteration PENALITIES
A16: 1.Capacity (Number pass) | D16: =AE2 -> 222 | G16: =Review!R11 -> 116 | J16: =G16-D16 -> -106 | K16: =J16/D16 -> -0.4774774775 | L16: =IF(K16>0,0.5,1) -> 1 | M16: =100-ABS(K16*L16)*100 -> 52.25225225 | O16: Number of Iterations of clock | P16: Number of Iterations of can the airplane fly??
A17: 2.Fast/Slow | D17: =AE3 -> 32 | G17: =Review!R12 -> 32 | J17: =G17-D17 -> 0 | K17: =J17/D17 -> 0 | L17: =IF(K17>0,0.5,1) -> 1 | M17: =100-ABS(K17*L17)*100 -> 100
A18: 3. Km of travel | D18: 13000 | G18: =Review!R13 -> 10800 | J18: =G18-D18 -> -2200 | K18: =J18/D18 -> -0.1692307692 | L18: 1 | M18: =100-ABS(K18*L18)*100 -> 83.07692308 | O18: 0
A19: 4. Parking requirements | D19: 27 | G19: =Review!R14 -> 22 | J19: =MAX(G19-D19,G20-D20) -> -4 | K19: =J19/D19 -> -0.1481481481 | L19: 1 | M19: =100-ABS(K19*L19)*100 -> 85.18518519
D20: 30 | G20: =Review!R15 -> 26
A21: 5. Cost | D21: 34400 | G21: =Review!R16 -> 17480 | J21: =-(G21+O21+P21-D21) -> 16380 | K21: =J21/D21 -> 0.4761627907 | L21: 0.5 | M21: =100-ABS(K21*L21)*100 -> 76.19186047 | N21: Oportunity Cost | O21: =18*30+36*30*O18+G21*0.05*O18 -> 540 | P21: =(P18)*20*5 -> 0
A22: 6. Delivery time | D22: 9646 | G22: =Review!R17 -> 3422 | J22: =-(G22+O22+P22-D22) -> 6224 | K22: =J22/D22 -> 0.6452415509 | L22: 0.5 | M22: =100-ABS(K22*L22)*100 -> 67.73792245 | N22: Time Cost | O22: =O18*30*60 -> 0 | P22: =P18*5*60 -> 0
L23: LEAN POINTS | M23: =SUM(M16:M22)/6 -> 77
N24: hora normal | O24: 18E/min | P24: 20E/min | Q24: Cost de test
N25: Hora extra | O25: 36E/min
N26: Coste opor | O26: 0,05*Coste diseño*nIteraciones
A28: The perfect design is going to have 100 points. In any other case, you will haver penalizations.
A33: Example:
A36: 1.Capacity (Number pass) | D36: 300 | G36: 200 | J36: =G36-D36 -> -100 | K36: =J36/D36 -> -0.3333333333 | L36: =IF(K36>0,0.5,1) -> 1 | M36: =100-ABS(K36*L36)*100 -> 66.66666667
D37: 300 | G37: 201 | J37: =G37-D37 -> -99 | K37: =J37/D37 -> -0.33 | L37: =IF(K37>0,0.5,1) -> 1 | M37: =100-ABS(K37*L37)*100 -> 67
D38: 300 | G38: 202 | J38: -98 | K38: -0.3266666667 | L38: 1 | M38: 67.33333333
D39: 300 | G39: 203 | J39: -97 | K39: -0.3233333333 | L39: 1 | M39: 67.66666667
D40: 300 | G40: 204 | J40: -96 | K40: -0.32 | L40: 1 | M40: 68
D41: 300 | G41: 205 | J41: -95 | K41: -0.3166666667 | L41: 1 | M41: 68.33333333
D42: 300 | G42: 206 | J42: -94 | K42: -0.3133333333 | L42: 1 | M42: 68.66666667
D43: 300 | G43: 207 | J43: -93 | K43: -0.31 | L43: 1 | M43: 69
D44: 300 | G44: 208 | J44: -92 | K44: -0.3066666667 | L44: 1 | M44: 69.33333333
D45: 300 | G45: 209 | J45: -91 | K45: -0.3033333333 | L45: 1 | M45: 69.66666667
D46: 300 | G46: 210 | J46: -90 | K46: -0.3 | L46: 1 | M46: 70
D47: 300 | G47: 211 | J47: -89 | K47: -0.2966666667 | L47: 1 | M47: 70.33333333
D48: 300 | G48: 212 | J48: -88 | K48: -0.2933333333 | L48: 1 | M48: 70.66666667
D49: 300 | G49: 213 | J49: -87 | K49: -0.29 | L49: 1 | M49: 71
D50: 300 | G50: 214 | J50: -86 | K50: -0.2866666667 | L50: 1 | M50: 71.33333333
D51: 300 | G51: 215 | J51: -85 | K51: -0.2833333333 | L51: 1 | M51: 71.66666667
D52: 300 | G52: 216 | J52: -84 | K52: -0.28 | L52: 1 | M52: 72
D53: 300 | G53: 217 | J53: -83 | K53: -0.2766666667 | L53: 1 | M53: 72.33333333
D54: 300 | G54: 218 | J54: -82 | K54: -0.2733333333 | L54: 1 | M54: 72.66666667
D55: 300 | G55: 219 | J55: -81 | K55: -0.27 | L55: 1 | M55: 73
D56: 300 | G56: 220 | J56: -80 | K56: -0.2666666667 | L56: 1 | M56: 73.33333333
D57: 300 | G57: 221 | J57: -79 | K57: -0.2633333333 | L57: 1 | M57: 73.66666667
D58: 300 | G58: 222 | J58: -78 | K58: -0.26 | L58: 1 | M58: 74
D59: 300 | G59: 223 | J59: -77 | K59: -0.2566666667 | L59: 1 | M59: 74.33333333
D60: 300 | G60: 224 | J60: -76 | K60: -0.2533333333 | L60: 1 | M60: 74.66666667
D61: 300 | G61: 225 | J61: -75 | K61: -0.25 | L61: 1 | M61: 75
D62: 300 | G62: 226 | J62: -74 | K62: -0.2466666667 | L62: 1 | M62: 75.33333333
D63: 300 | G63: 227 | J63: -73 | K63: -0.2433333333 | L63: 1 | M63: 75.66666667
D64: 300 | G64: 228 | J64: -72 | K64: -0.24 | L64: 1 | M64: 76
D65: 300 | G65: 229 | J65: -71 | K65: -0.2366666667 | L65: 1 | M65: 76.33333333
D66: 300 | G66: 230 | J66: -70 | K66: -0.2333333333 | L66: 1 | M66: 76.66666667
D67: 300 | G67: 231 | J67: -69 | K67: -0.23 | L67: 1 | M67: 77
D68: 300 | G68: 232 | J68: -68 | K68: -0.2266666667 | L68: 1 | M68: 77.33333333
D69: 300 | G69: 233 | J69: -67 | K69: -0.2233333333 | L69: 1 | M69: 77.66666667
D70: 300 | G70: 234 | J70: -66 | K70: -0.22 | L70: 1 | M70: 78
D71: 300 | G71: 235 | J71: -65 | K71: -0.2166666667 | L71: 1 | M71: 78.33333333
D72: 300 | G72: 236 | J72: -64 | K72: -0.2133333333 | L72: 1 | M72: 78.66666667
D73: 300 | G73: 237 | J73: -63 | K73: -0.21 | L73: 1 | M73: 79
D74: 300 | G74: 238 | J74: -62 | K74: -0.2066666667 | L74: 1 | M74: 79.33333333
D75: 300 | G75: 239 | J75: -61 | K75: -0.2033333333 | L75: 1 | M75: 79.66666667
D76: 300 | G76: 240 | J76: -60 | K76: -0.2 | L76: 1 | M76: 80
D77: 300 | G77: 241 | J77: -59 | K77: -0.1966666667 | L77: 1 | M77: 80.33333333
D78: 300 | G78: 242 | J78: -58 | K78: -0.1933333333 | L78: 1 | M78: 80.66666667
D79: 300 | G79: 243 | J79: -57 | K79: -0.19 | L79: 1 | M79: 81
D80: 300 | G80: 244 | J80: -56 | K80: -0.1866666667 | L80: 1 | M80: 81.33333333
D81: 300 | G81: 245 | J81: -55 | K81: -0.1833333333 | L81: 1 | M81: 81.66666667
D82: 300 | G82: 246 | J82: -54 | K82: -0.18 | L82: 1 | M82: 82
D83: 300 | G83: 247 | J83: -53 | K83: -0.1766666667 | L83: 1 | M83: 82.33333333
D84: 300 | G84: 248 | J84: -52 | K84: -0.1733333333 | L84: 1 | M84: 82.66666667
D85: 300 | G85: 249 | J85: -51 | K85: -0.17 | L85: 1 | M85: 83
D86: 300 | G86: 250 | J86: -50 | K86: -0.1666666667 | L86: 1 | M86: 83.33333333
D87: 300 | G87: 251 | J87: -49 | K87: -0.1633333333 | L87: 1 | M87: 83.66666667
D88: 300 | G88: 252 | J88: -48 | K88: -0.16 | L88: 1 | M88: 84
D89: 300 | G89: 253 | J89: -47 | K89: -0.1566666667 | L89: 1 | M89: 84.33333333
D90: 300 | G90: 254 | J90: -46 | K90: -0.1533333333 | L90: 1 | M90: 84.66666667
D91: 300 | G91: 255 | J91: -45 | K91: -0.15 | L91: 1 | M91: 85
D92: 300 | G92: 256 | J92: -44 | K92: -0.1466666667 | L92: 1 | M92: 85.33333333
D93: 300 | G93: 257 | J93: -43 | K93: -0.1433333333 | L93: 1 | M93: 85.66666667
D94: 300 | G94: 258 | J94: -42 | K94: -0.14 | L94: 1 | M94: 86
D95: 300 | G95: 259 | J95: -41 | K95: -0.1366666667 | L95: 1 | M95: 86.33333333
D96: 300 | G96: 260 | J96: -40 | K96: -0.1333333333 | L96: 1 | M96: 86.66666667
D97: 300 | G97: 261 | J97: -39 | K97: -0.13 | L97: 1 | M97: 87
D98: 300 | G98: 262 | J98: -38 | K98: -0.1266666667 | L98: 1 | M98: 87.33333333
D99: 300 | G99: 263 | J99: -37 | K99: -0.1233333333 | L99: 1 | M99: 87.66666667
D100: 300 | G100: 264 | J100: -36 | K100: -0.12 | L100: 1 | M100: 88
D101: 300 | G101: 265 | J101: =G101-D101 -> -35 | K101: =J101/D101 -> -0.1166666667 | L101: =IF(K101>0,0.5,1) -> 1 | M101: =100-ABS(K101*L101)*100 -> 88.33333333
D102: 300 | G102: 266 | J102: -34 | K102: -0.1133333333 | L102: 1 | M102: 88.66666667
D103: 300 | G103: 267 | J103: -33 | K103: -0.11 | L103: 1 | M103: 89
D104: 300 | G104: 268 | J104: -32 | K104: -0.1066666667 | L104: 1 | M104: 89.33333333
D105: 300 | G105: 269 | J105: -31 | K105: -0.1033333333 | L105: 1 | M105: 89.66666667
D106: 300 | G106: 270 | J106: -30 | K106: -0.1 | L106: 1 | M106: 90
D107: 300 | G107: 271 | J107: -29 | K107: -0.09666666667 | L107: 1 | M107: 90.33333333
D108: 300 | G108: 272 | J108: -28 | K108: -0.09333333333 | L108: 1 | M108: 90.66666667
D109: 300 | G109: 273 | J109: -27 | K109: -0.09 | L109: 1 | M109: 91
D110: 300 | G110: 274 | J110: -26 | K110: -0.08666666667 | L110: 1 | M110: 91.33333333
D111: 300 | G111: 275 | J111: -25 | K111: -0.08333333333 | L111: 1 | M111: 91.66666667
D112: 300 | G112: 276 | J112: -24 | K112: -0.08 | L112: 1 | M112: 92
D113: 300 | G113: 277 | J113: -23 | K113: -0.07666666667 | L113: 1 | M113: 92.33333333
D114: 300 | G114: 278 | J114: -22 | K114: -0.07333333333 | L114: 1 | M114: 92.66666667
D115: 300 | G115: 279 | J115: -21 | K115: -0.07 | L115: 1 | M115: 93
D116: 300 | G116: 280 | J116: -20 | K116: -0.06666666667 | L116: 1 | M116: 93.33333333
D117: 300 | G117: 281 | J117: -19 | K117: -0.06333333333 | L117: 1 | M117: 93.66666667
D118: 300 | G118: 282 | J118: -18 | K118: -0.06 | L118: 1 | M118: 94
D119: 300 | G119: 283 | J119: -17 | K119: -0.05666666667 | L119: 1 | M119: 94.33333333
D120: 300 | G120: 284 | J120: -16 | K120: -0.05333333333 | L120: 1 | M120: 94.66666667
D121: 300 | G121: 285 | J121: -15 | K121: -0.05 | L121: 1 | M121: 95
D122: 300 | G122: 286 | J122: -14 | K122: -0.04666666667 | L122: 1 | M122: 95.33333333
D123: 300 | G123: 287 | J123: -13 | K123: -0.04333333333 | L123: 1 | M123: 95.66666667
D124: 300 | G124: 288 | J124: -12 | K124: -0.04 | L124: 1 | M124: 96
D125: 300 | G125: 289 | J125: -11 | K125: -0.03666666667 | L125: 1 | M125: 96.33333333
D126: 300 | G126: 290 | J126: -10 | K126: -0.03333333333 | L126: 1 | M126: 96.66666667
D127: 300 | G127: 291 | J127: -9 | K127: -0.03 | L127: 1 | M127: 97
D128: 300 | G128: 292 | J128: -8 | K128: -0.02666666667 | L128: 1 | M128: 97.33333333
D129: 300 | G129: 293 | J129: -7 | K129: -0.02333333333 | L129: 1 | M129: 97.66666667
D130: 300 | G130: 294 | J130: -6 | K130: -0.02 | L130: 1 | M130: 98
D131: 300 | G131: 295 | J131: -5 | K131: -0.01666666667 | L131: 1 | M131: 98.33333333
D132: 300 | G132: 296 | J132: -4 | K132: -0.01333333333 | L132: 1 | M132: 98.66666667
D133: 300 | G133: 297 | J133: -3 | K133: -0.01 | L133: 1 | M133: 99
D134: 300 | G134: 298 | J134: -2 | K134: -0.006666666667 | L134: 1 | M134: 99.33333333
D135: 300 | G135: 299 | J135: -1 | K135: -0.003333333333 | L135: 1 | M135: 99.66666667
D136: 300 | G136: 300 | J136: 0 | K136: 0 | L136: 1 | M136: 100
D137: 300 | G137: 301 | J137: 1 | K137: 0.003333333333 | L137: 0.5 | M137: 99.83333333
D138: 300 | G138: 302 | J138: 2 | K138: 0.006666666667 | L138: 0.5 | M138: 99.66666667
D139: 300 | G139: 303 | J139: 3 | K139: 0.01 | L139: 0.5 | M139: 99.5
D140: 300 | G140: 304 | J140: 4 | K140: 0.01333333333 | L140: 0.5 | M140: 99.33333333
D141: 300 | G141: 305 | J141: 5 | K141: 0.01666666667 | L141: 0.5 | M141: 99.16666667
D142: 300 | G142: 306 | J142: 6 | K142: 0.02 | L142: 0.5 | M142: 99
D143: 300 | G143: 307 | J143: 7 | K143: 0.02333333333 | L143: 0.5 | M143: 98.83333333
D144: 300 | G144: 308 | J144: 8 | K144: 0.02666666667 | L144: 0.5 | M144: 98.66666667
D145: 300 | G145: 309 | J145: 9 | K145: 0.03 | L145: 0.5 | M145: 98.5
D146: 300 | G146: 310 | J146: 10 | K146: 0.03333333333 | L146: 0.5 | M146: 98.33333333
D147: 300 | G147: 311 | J147: 11 | K147: 0.03666666667 | L147: 0.5 | M147: 98.16666667
D148: 300 | G148: 312 | J148: 12 | K148: 0.04 | L148: 0.5 | M148: 98
D149: 300 | G149: 313 | J149: 13 | K149: 0.04333333333 | L149: 0.5 | M149: 97.83333333
D150: 300 | G150: 314 | J150: 14 | K150: 0.04666666667 | L150: 0.5 | M150: 97.66666667
D151: 300 | G151: 315 | J151: 15 | K151: 0.05 | L151: 0.5 | M151: 97.5
D152: 300 | G152: 316 | J152: 16 | K152: 0.05333333333 | L152: 0.5 | M152: 97.33333333
D153: 300 | G153: 317 | J153: 17 | K153: 0.05666666667 | L153: 0.5 | M153: 97.16666667
D154: 300 | G154: 318 | J154: 18 | K154: 0.06 | L154: 0.5 | M154: 97
D155: 300 | G155: 319 | J155: 19 | K155: 0.06333333333 | L155: 0.5 | M155: 96.83333333
D156: 300 | G156: 320 | J156: 20 | K156: 0.06666666667 | L156: 0.5 | M156: 96.66666667
D157: 300 | G157: 321 | J157: 21 | K157: 0.07 | L157: 0.5 | M157: 96.5
D158: 300 | G158: 322 | J158: 22 | K158: 0.07333333333 | L158: 0.5 | M158: 96.33333333
D159: 300 | G159: 323 | J159: 23 | K159: 0.07666666667 | L159: 0.5 | M159: 96.16666667
D160: 300 | G160: 324 | J160: 24 | K160: 0.08 | L160: 0.5 | M160: 96
D161: 300 | G161: 325 | J161: 25 | K161: 0.08333333333 | L161: 0.5 | M161: 95.83333333
D162: 300 | G162: 326 | J162: 26 | K162: 0.08666666667 | L162: 0.5 | M162: 95.66666667
D163: 300 | G163: 327 | J163: 27 | K163: 0.09 | L163: 0.5 | M163: 95.5
D164: 300 | G164: 328 | J164: 28 | K164: 0.09333333333 | L164: 0.5 | M164: 95.33333333
D165: 300 | G165: 329 | J165: =G165-D165 -> 29 | K165: =J165/D165 -> 0.09666666667 | L165: =IF(K165>0,0.5,1) -> 0.5 | M165: =100-ABS(K165*L165)*100 -> 95.16666667
D166: 300 | G166: 330 | J166: 30 | K166: 0.1 | L166: 0.5 | M166: 95
D167: 300 | G167: 331 | J167: 31 | K167: 0.1033333333 | L167: 0.5 | M167: 94.83333333
D168: 300 | G168: 332 | J168: 32 | K168: 0.1066666667 | L168: 0.5 | M168: 94.66666667
D169: 300 | G169: 333 | J169: 33 | K169: 0.11 | L169: 0.5 | M169: 94.5
D170: 300 | G170: 334 | J170: 34 | K170: 0.1133333333 | L170: 0.5 | M170: 94.33333333
D171: 300 | G171: 335 | J171: 35 | K171: 0.1166666667 | L171: 0.5 | M171: 94.16666667
D172: 300 | G172: 336 | J172: 36 | K172: 0.12 | L172: 0.5 | M172: 94
D173: 300 | G173: 337 | J173: 37 | K173: 0.1233333333 | L173: 0.5 | M173: 93.83333333
D174: 300 | G174: 338 | J174: 38 | K174: 0.1266666667 | L174: 0.5 | M174: 93.66666667
D175: 300 | G175: 339 | J175: 39 | K175: 0.13 | L175: 0.5 | M175: 93.5
D176: 300 | G176: 340 | J176: 40 | K176: 0.1333333333 | L176: 0.5 | M176: 93.33333333
D177: 300 | G177: 341 | J177: 41 | K177: 0.1366666667 | L177: 0.5 | M177: 93.16666667
D178: 300 | G178: 342 | J178: 42 | K178: 0.14 | L178: 0.5 | M178: 93
D179: 300 | G179: 343 | J179: 43 | K179: 0.1433333333 | L179: 0.5 | M179: 92.83333333
D180: 300 | G180: 344 | J180: 44 | K180: 0.1466666667 | L180: 0.5 | M180: 92.66666667
D181: 300 | G181: 345 | J181: 45 | K181: 0.15 | L181: 0.5 | M181: 92.5
D182: 300 | G182: 346 | J182: 46 | K182: 0.1533333333 | L182: 0.5 | M182: 92.33333333
D183: 300 | G183: 347 | J183: 47 | K183: 0.1566666667 | L183: 0.5 | M183: 92.16666667
D184: 300 | G184: 348 | J184: 48 | K184: 0.16 | L184: 0.5 | M184: 92
D185: 300 | G185: 349 | J185: 49 | K185: 0.1633333333 | L185: 0.5 | M185: 91.83333333
D186: 300 | G186: 350 | J186: 50 | K186: 0.1666666667 | L186: 0.5 | M186: 91.66666667
D187: 300 | G187: 351 | J187: 51 | K187: 0.17 | L187: 0.5 | M187: 91.5
D188: 300 | G188: 352 | J188: 52 | K188: 0.1733333333 | L188: 0.5 | M188: 91.33333333
D189: 300 | G189: 353 | J189: 53 | K189: 0.1766666667 | L189: 0.5 | M189: 91.16666667
D190: 300 | G190: 354 | J190: 54 | K190: 0.18 | L190: 0.5 | M190: 91
D191: 300 | G191: 355 | J191: 55 | K191: 0.1833333333 | L191: 0.5 | M191: 90.83333333
D192: 300 | G192: 356 | J192: 56 | K192: 0.1866666667 | L192: 0.5 | M192: 90.66666667
D193: 300 | G193: 357 | J193: 57 | K193: 0.19 | L193: 0.5 | M193: 90.5
D194: 300 | G194: 358 | J194: 58 | K194: 0.1933333333 | L194: 0.5 | M194: 90.33333333
D195: 300 | G195: 359 | J195: 59 | K195: 0.1966666667 | L195: 0.5 | M195: 90.16666667
D196: 300 | G196: 360 | J196: 60 | K196: 0.2 | L196: 0.5 | M196: 90
D197: 300 | G197: 361 | J197: 61 | K197: 0.2033333333 | L197: 0.5 | M197: 89.83333333
D198: 300 | G198: 362 | J198: 62 | K198: 0.2066666667 | L198: 0.5 | M198: 89.66666667
D199: 300 | G199: 363 | J199: 63 | K199: 0.21 | L199: 0.5 | M199: 89.5
D200: 300 | G200: 364 | J200: 64 | K200: 0.2133333333 | L200: 0.5 | M200: 89.33333333
D201: 300 | G201: 365 | J201: 65 | K201: 0.2166666667 | L201: 0.5 | M201: 89.16666667
D202: 300 | G202: 366 | J202: 66 | K202: 0.22 | L202: 0.5 | M202: 89
D203: 300 | G203: 367 | J203: 67 | K203: 0.2233333333 | L203: 0.5 | M203: 88.83333333
D204: 300 | G204: 368 | J204: 68 | K204: 0.2266666667 | L204: 0.5 | M204: 88.66666667
D205: 300 | G205: 369 | J205: 69 | K205: 0.23 | L205: 0.5 | M205: 88.5
D206: 300 | G206: 370 | J206: 70 | K206: 0.2333333333 | L206: 0.5 | M206: 88.33333333
D207: 300 | G207: 371 | J207: 71 | K207: 0.2366666667 | L207: 0.5 | M207: 88.16666667
D208: 300 | G208: 372 | J208: 72 | K208: 0.24 | L208: 0.5 | M208: 88
D209: 300 | G209: 373 | J209: 73 | K209: 0.2433333333 | L209: 0.5 | M209: 87.83333333
D210: 300 | G210: 374 | J210: 74 | K210: 0.2466666667 | L210: 0.5 | M210: 87.66666667
D211: 300 | G211: 375 | J211: 75 | K211: 0.25 | L211: 0.5 | M211: 87.5
D212: 300 | G212: 376 | J212: 76 | K212: 0.2533333333 | L212: 0.5 | M212: 87.33333333
D213: 300 | G213: 377 | J213: 77 | K213: 0.2566666667 | L213: 0.5 | M213: 87.16666667
... 23 more rows

Sheet Performance2
D1: Real customer needs | G1: Design | J1: Rest | K1: Variation | L1: PERCENTAGE | M1: LEAN POINTS | P1: Real characteristics
A2: Capacity (Number pass) | D2: NPC | G2: NP | J2: NPC-NP | K2: Res/NPC | L2: SI(L2>0;0,5;1) | M2: 100-Variation*Percentage | P2: Np | AE2: =Review2!$R$11 -> 116 | AI2: 0
A3: Fast/Slow | D3: Ratio of power customer | G3: Ratio of power | P3: Ratio of Power | AE3: =Review2!$R$12 -> 32
A4: Km of travel | D4: Km of travel customer | G4: Km of travel | P4: Km of Travel | AE4: =Review2!$R$13 -> 10800
A5: Parking requirements | D5: LC | G5: L | P5: Lenght | AE5: =Review2!$R$14 -> 22
D6: WsC | G6: Ws | P6: Ws | AE6: =Review2!$R$15 -> 26
A7: Cost | D7: Cost of customer | G7: Cost | J7: neg | P7: Cost | AE7: =Review2!$R$16 -> 17480
A8: Delivery time | D8: Delivery tim of customer | G8: Delilvery time | J8: neg | P8: Dtc | AE8: =Review2!$R$17 -> 3422
D15: Real customer needs | G15: Design | J15: Rest | K15: Variation | L15: Percentage | M15: LEAN POINTS | N15: Iteration PENALITIES
A16: 1.Capacity (Number pass) | D16: ='Customer needs2'!$B$33 -> 75 | G16: =Review2!R11 -> 116 | J16: =G16-D16 -> 41 | K16: =J16/D16 -> 0.5466666667 | L16: =IF(K16>0,0.5,1) -> 0.5 | M16: =100-ABS(K16*L16)*100 -> 72.66666667 | O16: Number of Iterations of clock | P16: Number of Iterations of can the airplane fly??
A17: 2.Fast/Slow | D17: ='Customer needs2'!$B$34 -> 22 | G17: =Review2!R12 -> 32 | J17: =G17-D17 -> 10 | K17: =J17/D17 -> 0.4545454545 | L17: =IF(K17>0,0.5,1) -> 0.5 | M17: =100-ABS(K17*L17)*100 -> 77.27272727
A18: 3. Km of travel | D18: ='Customer needs2'!$B$35 -> 14700 | G18: =Review2!R13 -> 10800 | J18: =G18-D18 -> -3900 | K18: =J18/D18 -> -0.2653061224 | L18: 1 | M18: =100-ABS(K18*L18)*100 -> 73.46938776 | O18: 0
A19: 4. Parking requirements | D19: ='Customer needs2'!$B$36 -> 10 | G19: =Review2!R14 -> 22 | J19: =MAX(G19-D19,G20-D20) -> 12 | K19: =J19/D19 -> 1.2 | L19: 0.5 | M19: =100-ABS(K19*L19)*100 -> 40
D20: ='Customer needs2'!$B$37 -> 32 | G20: =Review2!R15 -> 26
A21: 5. Cost | D21: ='Customer needs2'!$B$38 -> 19670 | G21: =Review2!R16 -> 17480 | J21: =-(G21+O21+P21-D21) -> 1650 | K21: =J21/D21 -> 0.08388408744 | L21: 0.5 | M21: =100-ABS(K21*L21)*100 -> 95.80579563 | N21: Oportunity Cost | O21: =18*30+36*30*O18+G21*0.05*O18 -> 540 | P21: =(P18)*20*5 -> 0
A22: 6. Delivery time | D22: ='Customer needs2'!$B$39 -> 5503 | G22: =Review2!R17 -> 3422 | J22: =-(G22+O22+P22-D22) -> 2081 | K22: =J22/D22 -> 0.3781573687 | L22: 0.5 | M22: =100-ABS(K22*L22)*100 -> 81.09213156 | N22: Time Cost | O22: =O18*20*60 -> 0 | P22: =P18*5*60 -> 0
L23: LEAN POINTS | M23: =SUM(M16:M22)/6 -> 73
A28: The perfect design is going to have 100 points. In any other case, you will haver penalizations.
A33: Example:
A36: 1.Capacity (Number pass) | D36: 300 | G36: 200 | J36: =G36-D36 -> -100 | K36: =J36/D36 -> -0.3333333333 | L36: =IF(K36>0,0.5,1) -> 1 | M36: =100-ABS(K36*L36)*100 -> 66.66666667
D37: 300 | G37: 201 | J37: =G37-D37 -> -99 | K37: =J37/D37 -> -0.33 | L37: =IF(K37>0,0.5,1) -> 1 | M37: =100-ABS(K37*L37)*100 -> 67
D38: 300 | G38: 202 | J38: -98 | K38: -0.3266666667 | L38: 1 | M38: 67.33333333
D39: 300 | G39: 203 | J39: -97 | K39: -0.3233333333 | L39: 1 | M39: 67.66666667
D40: 300 | G40: 204 | J40: -96 | K40: -0.32 | L40: 1 | M40: 68
D41: 300 | G41: 205 | J41: -95 | K41: -0.3166666667 | L41: 1 | M41: 68.33333333
D42: 300 | G42: 206 | J42: -94 | K42: -0.3133333333 | L42: 1 | M42: 68.66666667
D43: 300 | G43: 207 | J43: -93 | K43: -0.31 | L43: 1 | M43: 69
D44: 300 | G44: 208 | J44: -92 | K44: -0.3066666667 | L44: 1 | M44: 69.33333333
D45: 300 | G45: 209 | J45: -91 | K45: -0.3033333333 | L45: 1 | M45: 69.66666667
D46: 300 | G46: 210 | J46: -90 | K46: -0.3 | L46: 1 | M46: 70
D47: 300 | G47: 211 | J47: -89 | K47: -0.2966666667 | L47: 1 | M47: 70.33333333
D48: 300 | G48: 212 | J48: -88 | K48: -0.2933333333 | L48: 1 | M48: 70.66666667
D49: 300 | G49: 213 | J49: -87 | K49: -0.29 | L49: 1 | M49: 71
D50: 300 | G50: 214 | J50: -86 | K50: -0.2866666667 | L50: 1 | M50: 71.33333333
D51: 300 | G51: 215 | J51: -85 | K51: -0.2833333333 | L51: 1 | M51: 71.66666667
D52: 300 | G52: 216 | J52: -84 | K52: -0.28 | L52: 1 | M52: 72
D53: 300 | G53: 217 | J53: -83 | K53: -0.2766666667 | L53: 1 | M53: 72.33333333
D54: 300 | G54: 218 | J54: -82 | K54: -0.2733333333 | L54: 1 | M54: 72.66666667
D55: 300 | G55: 219 | J55: -81 | K55: -0.27 | L55: 1 | M55: 73
D56: 300 | G56: 220 | J56: -80 | K56: -0.2666666667 | L56: 1 | M56: 73.33333333
D57: 300 | G57: 221 | J57: -79 | K57: -0.2633333333 | L57: 1 | M57: 73.66666667
D58: 300 | G58: 222 | J58: -78 | K58: -0.26 | L58: 1 | M58: 74
D59: 300 | G59: 223 | J59: -77 | K59: -0.2566666667 | L59: 1 | M59: 74.33333333
D60: 300 | G60: 224 | J60: -76 | K60: -0.2533333333 | L60: 1 | M60: 74.66666667
D61: 300 | G61: 225 | J61: -75 | K61: -0.25 | L61: 1 | M61: 75
D62: 300 | G62: 226 | J62: -74 | K62: -0.2466666667 | L62: 1 | M62: 75.33333333
D63: 300 | G63: 227 | J63: -73 | K63: -0.2433333333 | L63: 1 | M63: 75.66666667
D64: 300 | G64: 228 | J64: -72 | K64: -0.24 | L64: 1 | M64: 76
D65: 300 | G65: 229 | J65: -71 | K65: -0.2366666667 | L65: 1 | M65: 76.33333333
D66: 300 | G66: 230 | J66: -70 | K66: -0.2333333333 | L66: 1 | M66: 76.66666667
D67: 300 | G67: 231 | J67: -69 | K67: -0.23 | L67: 1 | M67: 77
D68: 300 | G68: 232 | J68: -68 | K68: -0.2266666667 | L68: 1 | M68: 77.33333333
D69: 300 | G69: 233 | J69: -67 | K69: -0.2233333333 | L69: 1 | M69: 77.66666667
D70: 300 | G70: 234 | J70: -66 | K70: -0.22 | L70: 1 | M70: 78
D71: 300 | G71: 235 | J71: -65 | K71: -0.2166666667 | L71: 1 | M71: 78.33333333
D72: 300 | G72: 236 | J72: -64 | K72: -0.2133333333 | L72: 1 | M72: 78.66666667
D73: 300 | G73: 237 | J73: -63 | K73: -0.21 | L73: 1 | M73: 79
D74: 300 | G74: 238 | J74: -62 | K74: -0.2066666667 | L74: 1 | M74: 79.33333333
D75: 300 | G75: 239 | J75: -61 | K75: -0.2033333333 | L75: 1 | M75: 79.66666667
D76: 300 | G76: 240 | J76: -60 | K76: -0.2 | L76: 1 | M76: 80
D77: 300 | G77: 241 | J77: -59 | K77: -0.1966666667 | L77: 1 | M77: 80.33333333
D78: 300 | G78: 242 | J78: -58 | K78: -0.1933333333 | L78: 1 | M78: 80.66666667
D79: 300 | G79: 243 | J79: -57 | K79: -0.19 | L79: 1 | M79: 81
D80: 300 | G80: 244 | J80: -56 | K80: -0.1866666667 | L80: 1 | M80: 81.33333333
D81: 300 | G81: 245 | J81: -55 | K81: -0.1833333333 | L81: 1 | M81: 81.66666667
D82: 300 | G82: 246 | J82: -54 | K82: -0.18 | L82: 1 | M82: 82
D83: 300 | G83: 247 | J83: -53 | K83: -0.1766666667 | L83: 1 | M83: 82.33333333
D84: 300 | G84: 248 | J84: -52 | K84: -0.1733333333 | L84: 1 | M84: 82.66666667
D85: 300 | G85: 249 | J85: -51 | K85: -0.17 | L85: 1 | M85: 83
D86: 300 | G86: 250 | J86: -50 | K86: -0.1666666667 | L86: 1 | M86: 83.33333333
D87: 300 | G87: 251 | J87: -49 | K87: -0.1633333333 | L87: 1 | M87: 83.66666667
D88: 300 | G88: 252 | J88: -48 | K88: -0.16 | L88: 1 | M88: 84
D89: 300 | G89: 253 | J89: -47 | K89: -0.1566666667 | L89: 1 | M89: 84.33333333
D90: 300 | G90: 254 | J90: -46 | K90: -0.1533333333 | L90: 1 | M90: 84.66666667
D91: 300 | G91: 255 | J91: -45 | K91: -0.15 | L91: 1 | M91: 85
D92: 300 | G92: 256 | J92: -44 | K92: -0.1466666667 | L92: 1 | M92: 85.33333333
D93: 300 | G93: 257 | J93: -43 | K93: -0.1433333333 | L93: 1 | M93: 85.66666667
D94: 300 | G94: 258 | J94: -42 | K94: -0.14 | L94: 1 | M94: 86
D95: 300 | G95: 259 | J95: -41 | K95: -0.1366666667 | L95: 1 | M95: 86.33333333
D96: 300 | G96: 260 | J96: -40 | K96: -0.1333333333 | L96: 1 | M96: 86.66666667
D97: 300 | G97: 261 | J97: -39 | K97: -0.13 | L97: 1 | M97: 87
D98: 300 | G98: 262 | J98: -38 | K98: -0.1266666667 | L98: 1 | M98: 87.33333333
D99: 300 | G99: 263 | J99: -37 | K99: -0.1233333333 | L99: 1 | M99: 87.66666667
D100: 300 | G100: 264 | J100: -36 | K100: -0.12 | L100: 1 | M100: 88
D101: 300 | G101: 265 | J101: =G101-D101 -> -35 | K101: =J101/D101 -> -0.1166666667 | L101: =IF(K101>0,0.5,1) -> 1 | M101: =100-ABS(K101*L101)*100 -> 88.33333333
D102: 300 | G102: 266 | J102: -34 | K102: -0.1133333333 | L102: 1 | M102: 88.66666667
D103: 300 | G103: 267 | J103: -33 | K103: -0.11 | L103: 1 | M103: 89
D104: 300 | G104: 268 | J104: -32 | K104: -0.1066666667 | L104: 1 | M104: 89.33333333
D105: 300 | G105: 269 | J105: -31 | K105: -0.1033333333 | L105: 1 | M105: 89.66666667
D106: 300 | G106: 270 | J106: -30 | K106: -0.1 | L106: 1 | M106: 90
D107: 300 | G107: 271 | J107: -29 | K107: -0.09666666667 | L107: 1 | M107: 90.33333333
D108: 300 | G108: 272 | J108: -28 | K108: -0.09333333333 | L108: 1 | M108: 90.66666667
D109: 300 | G109: 273 | J109: -27 | K109: -0.09 | L109: 1 | M109: 91
D110: 300 | G110: 274 | J110: -26 | K110: -0.08666666667 | L110: 1 | M110: 91.33333333
D111: 300 | G111: 275 | J111: -25 | K111: -0.08333333333 | L111: 1 | M111: 91.66666667
D112: 300 | G112: 276 | J112: -24 | K112: -0.08 | L112: 1 | M112: 92
D113: 300 | G113: 277 | J113: -23 | K113: -0.07666666667 | L113: 1 | M113: 92.33333333
D114: 300 | G114: 278 | J114: -22 | K114: -0.07333333333 | L114: 1 | M114: 92.66666667
D115: 300 | G115: 279 | J115: -21 | K115: -0.07 | L115: 1 | M115: 93
D116: 300 | G116: 280 | J116: -20 | K116: -0.06666666667 | L116: 1 | M116: 93.33333333
D117: 300 | G117: 281 | J117: -19 | K117: -0.06333333333 | L117: 1 | M117: 93.66666667
D118: 300 | G118: 282 | J118: -18 | K118: -0.06 | L118: 1 | M118: 94
D119: 300 | G119: 283 | J119: -17 | K119: -0.05666666667 | L119: 1 | M119: 94.33333333
D120: 300 | G120: 284 | J120: -16 | K120: -0.05333333333 | L120: 1 | M120: 94.66666667
D121: 300 | G121: 285 | J121: -15 | K121: -0.05 | L121: 1 | M121: 95
D122: 300 | G122: 286 | J122: -14 | K122: -0.04666666667 | L122: 1 | M122: 95.33333333
D123: 300 | G123: 287 | J123: -13 | K123: -0.04333333333 | L123: 1 | M123: 95.66666667
D124: 300 | G124: 288 | J124: -12 | K124: -0.04 | L124: 1 | M124: 96
D125: 300 | G125: 289 | J125: -11 | K125: -0.03666666667 | L125: 1 | M125: 96.33333333
D126: 300 | G126: 290 | J126: -10 | K126: -0.03333333333 | L126: 1 | M126: 96.66666667
D127: 300 | G127: 291 | J127: -9 | K127: -0.03 | L127: 1 | M127: 97
D128: 300 | G128: 292 | J128: -8 | K128: -0.02666666667 | L128: 1 | M128: 97.33333333
D129: 300 | G129: 293 | J129: -7 | K129: -0.02333333333 | L129: 1 | M129: 97.66666667
D130: 300 | G130: 294 | J130: -6 | K130: -0.02 | L130: 1 | M130: 98
D131: 300 | G131: 295 | J131: -5 | K131: -0.01666666667 | L131: 1 | M131: 98.33333333
D132: 300 | G132: 296 | J132: -4 | K132: -0.01333333333 | L132: 1 | M132: 98.66666667
D133: 300 | G133: 297 | J133: -3 | K133: -0.01 | L133: 1 | M133: 99
D134: 300 | G134: 298 | J134: -2 | K134: -0.006666666667 | L134: 1 | M134: 99.33333333
D135: 300 | G135: 299 | J135: -1 | K135: -0.003333333333 | L135: 1 | M135: 99.66666667
D136: 300 | G136: 300 | J136: 0 | K136: 0 | L136: 1 | M136: 100
D137: 300 | G137: 301 | J137: 1 | K137: 0.003333333333 | L137: 0.5 | M137: 99.83333333
D138: 300 | G138: 302 | J138: 2 | K138: 0.006666666667 | L138: 0.5 | M138: 99.66666667
D139: 300 | G139: 303 | J139: 3 | K139: 0.01 | L139: 0.5 | M139: 99.5
D140: 300 | G140: 304 | J140: 4 | K140: 0.01333333333 | L140: 0.5 | M140: 99.33333333
D141: 300 | G141: 305 | J141: 5 | K141: 0.01666666667 | L141: 0.5 | M141: 99.16666667
D142: 300 | G142: 306 | J142: 6 | K142: 0.02 | L142: 0.5 | M142: 99
D143: 300 | G143: 307 | J143: 7 | K143: 0.02333333333 | L143: 0.5 | M143: 98.83333333
D144: 300 | G144: 308 | J144: 8 | K144: 0.02666666667 | L144: 0.5 | M144: 98.66666667
D145: 300 | G145: 309 | J145: 9 | K145: 0.03 | L145: 0.5 | M145: 98.5
D146: 300 | G146: 310 | J146: 10 | K146: 0.03333333333 | L146: 0.5 | M146: 98.33333333
D147: 300 | G147: 311 | J147: 11 | K147: 0.03666666667 | L147: 0.5 | M147: 98.16666667
D148: 300 | G148: 312 | J148: 12 | K148: 0.04 | L148: 0.5 | M148: 98
D149: 300 | G149: 313 | J149: 13 | K149: 0.04333333333 | L149: 0.5 | M149: 97.83333333
D150: 300 | G150: 314 | J150: 14 | K150: 0.04666666667 | L150: 0.5 | M150: 97.66666667
D151: 300 | G151: 315 | J151: 15 | K151: 0.05 | L151: 0.5 | M151: 97.5
D152: 300 | G152: 316 | J152: 16 | K152: 0.05333333333 | L152: 0.5 | M152: 97.33333333
D153: 300 | G153: 317 | J153: 17 | K153: 0.05666666667 | L153: 0.5 | M153: 97.16666667
D154: 300 | G154: 318 | J154: 18 | K154: 0.06 | L154: 0.5 | M154: 97
D155: 300 | G155: 319 | J155: 19 | K155: 0.06333333333 | L155: 0.5 | M155: 96.83333333
D156: 300 | G156: 320 | J156: 20 | K156: 0.06666666667 | L156: 0.5 | M156: 96.66666667
D157: 300 | G157: 321 | J157: 21 | K157: 0.07 | L157: 0.5 | M157: 96.5
D158: 300 | G158: 322 | J158: 22 | K158: 0.07333333333 | L158: 0.5 | M158: 96.33333333
D159: 300 | G159: 323 | J159: 23 | K159: 0.07666666667 | L159: 0.5 | M159: 96.16666667
D160: 300 | G160: 324 | J160: 24 | K160: 0.08 | L160: 0.5 | M160: 96
D161: 300 | G161: 325 | J161: 25 | K161: 0.08333333333 | L161: 0.5 | M161: 95.83333333
D162: 300 | G162: 326 | J162: 26 | K162: 0.08666666667 | L162: 0.5 | M162: 95.66666667
D163: 300 | G163: 327 | J163: 27 | K163: 0.09 | L163: 0.5 | M163: 95.5
D164: 300 | G164: 328 | J164: 28 | K164: 0.09333333333 | L164: 0.5 | M164: 95.33333333
D165: 300 | G165: 329 | J165: =G165-D165 -> 29 | K165: =J165/D165 -> 0.09666666667 | L165: =IF(K165>0,0.5,1) -> 0.5 | M165: =100-ABS(K165*L165)*100 -> 95.16666667
D166: 300 | G166: 330 | J166: 30 | K166: 0.1 | L166: 0.5 | M166: 95
D167: 300 | G167: 331 | J167: 31 | K167: 0.1033333333 | L167: 0.5 | M167: 94.83333333
D168: 300 | G168: 332 | J168: 32 | K168: 0.1066666667 | L168: 0.5 | M168: 94.66666667
D169: 300 | G169: 333 | J169: 33 | K169: 0.11 | L169: 0.5 | M169: 94.5
D170: 300 | G170: 334 | J170: 34 | K170: 0.1133333333 | L170: 0.5 | M170: 94.33333333
D171: 300 | G171: 335 | J171: 35 | K171: 0.1166666667 | L171: 0.5 | M171: 94.16666667
D172: 300 | G172: 336 | J172: 36 | K172: 0.12 | L172: 0.5 | M172: 94
D173: 300 | G173: 337 | J173: 37 | K173: 0.1233333333 | L173: 0.5 | M173: 93.83333333
D174: 300 | G174: 338 | J174: 38 | K174: 0.1266666667 | L174: 0.5 | M174: 93.66666667
D175: 300 | G175: 339 | J175: 39 | K175: 0.13 | L175: 0.5 | M175: 93.5
D176: 300 | G176: 340 | J176: 40 | K176: 0.1333333333 | L176: 0.5 | M176: 93.33333333
D177: 300 | G177: 341 | J177: 41 | K177: 0.1366666667 | L177: 0.5 | M177: 93.16666667
D178: 300 | G178: 342 | J178: 42 | K178: 0.14 | L178: 0.5 | M178: 93
D179: 300 | G179: 343 | J179: 43 | K179: 0.1433333333 | L179: 0.5 | M179: 92.83333333
D180: 300 | G180: 344 | J180: 44 | K180: 0.1466666667 | L180: 0.5 | M180: 92.66666667
D181: 300 | G181: 345 | J181: 45 | K181: 0.15 | L181: 0.5 | M181: 92.5
D182: 300 | G182: 346 | J182: 46 | K182: 0.1533333333 | L182: 0.5 | M182: 92.33333333
D183: 300 | G183: 347 | J183: 47 | K183: 0.1566666667 | L183: 0.5 | M183: 92.16666667
D184: 300 | G184: 348 | J184: 48 | K184: 0.16 | L184: 0.5 | M184: 92
D185: 300 | G185: 349 | J185: 49 | K185: 0.1633333333 | L185: 0.5 | M185: 91.83333333
D186: 300 | G186: 350 | J186: 50 | K186: 0.1666666667 | L186: 0.5 | M186: 91.66666667
D187: 300 | G187: 351 | J187: 51 | K187: 0.17 | L187: 0.5 | M187: 91.5
D188: 300 | G188: 352 | J188: 52 | K188: 0.1733333333 | L188: 0.5 | M188: 91.33333333
D189: 300 | G189: 353 | J189: 53 | K189: 0.1766666667 | L189: 0.5 | M189: 91.16666667
D190: 300 | G190: 354 | J190: 54 | K190: 0.18 | L190: 0.5 | M190: 91
D191: 300 | G191: 355 | J191: 55 | K191: 0.1833333333 | L191: 0.5 | M191: 90.83333333
D192: 300 | G192: 356 | J192: 56 | K192: 0.1866666667 | L192: 0.5 | M192: 90.66666667
D193: 300 | G193: 357 | J193: 57 | K193: 0.19 | L193: 0.5 | M193: 90.5
D194: 300 | G194: 358 | J194: 58 | K194: 0.1933333333 | L194: 0.5 | M194: 90.33333333
D195: 300 | G195: 359 | J195: 59 | K195: 0.1966666667 | L195: 0.5 | M195: 90.16666667
D196: 300 | G196: 360 | J196: 60 | K196: 0.2 | L196: 0.5 | M196: 90
D197: 300 | G197: 361 | J197: 61 | K197: 0.2033333333 | L197: 0.5 | M197: 89.83333333
D198: 300 | G198: 362 | J198: 62 | K198: 0.2066666667 | L198: 0.5 | M198: 89.66666667
D199: 300 | G199: 363 | J199: 63 | K199: 0.21 | L199: 0.5 | M199: 89.5
D200: 300 | G200: 364 | J200: 64 | K200: 0.2133333333 | L200: 0.5 | M200: 89.33333333
D201: 300 | G201: 365 | J201: 65 | K201: 0.2166666667 | L201: 0.5 | M201: 89.16666667
D202: 300 | G202: 366 | J202: 66 | K202: 0.22 | L202: 0.5 | M202: 89
D203: 300 | G203: 367 | J203: 67 | K203: 0.2233333333 | L203: 0.5 | M203: 88.83333333
D204: 300 | G204: 368 | J204: 68 | K204: 0.2266666667 | L204: 0.5 | M204: 88.66666667
D205: 300 | G205: 369 | J205: 69 | K205: 0.23 | L205: 0.5 | M205: 88.5
D206: 300 | G206: 370 | J206: 70 | K206: 0.2333333333 | L206: 0.5 | M206: 88.33333333
D207: 300 | G207: 371 | J207: 71 | K207: 0.2366666667 | L207: 0.5 | M207: 88.16666667
D208: 300 | G208: 372 | J208: 72 | K208: 0.24 | L208: 0.5 | M208: 88
D209: 300 | G209: 373 | J209: 73 | K209: 0.2433333333 | L209: 0.5 | M209: 87.83333333
D210: 300 | G210: 374 | J210: 74 | K210: 0.2466666667 | L210: 0.5 | M210: 87.66666667
D211: 300 | G211: 375 | J211: 75 | K211: 0.25 | L211: 0.5 | M211: 87.5
D212: 300 | G212: 376 | J212: 76 | K212: 0.2533333333 | L212: 0.5 | M212: 87.33333333
D213: 300 | G213: 377 | J213: 77 | K213: 0.2566666667 | L213: 0.5 | M213: 87.16666667
D214: 300 | G214: 378 | J214: 78 | K214: 0.26 | L214: 0.5 | M214: 87
D215: 300 | G215: 379 | J215: 79 | K215: 0.2633333333 | L215: 0.5 | M215: 86.83333333
D216: 300 | G216: 380 | J216: 80 | K216: 0.2666666667 | L216: 0.5 | M216: 86.66666667
... 20 more rows

Sheet Customer needs2
A1: BODY
A2: NpbL | B2: 9
A3: NpbW | B3: =EVEN(C3) -> 4 | C3: 4
A4: Npb | B4: 36
A5: nsb | B5: 14 | D5: 3.888888889 | E5: 6.111111111
A6: ntb | B6: 22 | D6: 3
A7: ntbt | B7: 11
A8: COCKPIT
A9: random | B9: 15
A10: nsc | B10: 0
A11: ntc | B11: 0
A12: nbtc | B12: 2
A13: Lc | B13: 1
R14: 23
A15: WING
A16: nsw | B16: 21 | C16: 2 | R16: 18900
A17: ntw | B17: 40 | R17: 3866
A18: nbtw | B18: 8
A19: NpwL | B19: 14
A21: TAIL
A22: nst | B22: 0 | C22: 1
A23: ntt | B23: 0
A24: nbtt | B24: 8
A25: NptL | B25: 4
A27: ENGINE
A28: ne | B28: 4
J31: Estimation of customer needs
A32: Customer needs | K32: Minimum | L32: Maximum
A33: Np | B33: 75 | J33: Range of passengers | K33: 67 | L33: 83
A34: Ratio of Power | B34: 22 | J34: Speed | K34: Slow
A35: Km of Travel | B35: 14700 | J35: Km of Travel | K35: Transatlantic
A36: Lenght | B36: 10 | J36: Lenght | K36: 9 | L36: 12
A37: Ws | B37: 32 | J37: Wing Span | K37: 26 | L37: 35
A38: Cost | B38: 19670 | J38: Cost | K38: 17703 | L38: 21637
A39: Dtc | B39: 5503 | J39: Delivery time to customer | K39: 5503 | L39: 6604
J42: Estimation of customer needs with Chief Engineer
K43: Minimum | L43: Maximum
J44: Range of passengers | K44: 75 | L44: 83
J45: Speed | K45: Slow
J46: Km of Travel | K46: Transatlantic
J47: Lenght | K47: 9 | L47: 10
J48: Wing Span | K48: 29 | L48: 32
J49: Cost | K49: 17703 | L49: 19670
J50: Delivery time to customer | K50: 4953 | L50: 5503

Sheet Review2
A6: CHEK HOW GOOD IS YOUR DESIGN.
C10: Design characteristics
C11: Np | R11: 116
C12: Ratio of Power | R12: 32
C13: Km of Travel | R13: 10800
C14: Lenght | R14: 22
C15: Ws | R15: 26
C16: Cost | R16: 17480
C17: Dtc | R17: 3422

Sheet Customer needs
A1: BODY
A2: NpbL | B2: 24
A3: NpbW | B3: =EVEN(C3) -> 4 | C3: 3
A4: Npb | B4: 96 | C4: 7
A5: nsb | B5: 58 | D5: 6.041666667 | E5: 3.958333333
A6: ntb | B6: 19 | D6: 1
A7: ntbt | B7: 29 | C7: 22
A8: COCKPIT
A9: random | B9: 13
A10: nsc | B10: 4
A11: ntc | B11: 2
A12: nbtc | B12: 2
A13: Lc | B13: 3
R14: 23
A15: WING
A16: nsw | B16: 26 | C16: 1 | R16: 18900
A17: ntw | B17: 78 | R17: 3866
A18: nbtw | B18: 0
A19: NpwL | B19: 13
A21: TAIL
A22: nst | B22: 19 | C22: 3
A23: ntt | B23: 1
A24: nbtt | B24: 4
A25: NptL | B25: 8
A27: ENGINE
A28: ne | B28: 8
J31: Estimation of customer needs
A32: Customer needs | K32: Minimum | L32: Maximum
A33: Np | B33: 222 | J33: Range of passengers | K33: 178 | L33: 222
A34: Ratio of Power | B34: 32 | J34: Speed | K34: Slow
A35: Km of Travel | B35: 13000 | J35: Km of Travel | K35: Transatlantic
A36: Lenght | B36: 27 | J36: Lenght | K36: 19 | L36: 27
A37: Ws | B37: 30 | J37: Wing Span | K37: 24 | L37: 33
A38: Cost | B38: 34400 | J38: Cost | K38: 34400 | L38: 41280
A39: Dtc | B39: 9646 | J39: Delivery time to customer | K39: 8681 | L39: 10611
J42: Estimation of customer needs with Chief Engineer
K43: Minimum | L43: Maximum
J44: Range of passengers | K44: 200 | L44: 222
J45: Speed | K45: Slow
J46: Km of Travel | K46: Transatlantic
J47: Lenght | K47: 24 | L47: 27
J48: Wing Span | K48: 30 | L48: 33
J49: Cost | K49: 30960 | L49: 34400
J50: Delivery time to customer | K50: 8681 | L50: 9646

Sheet Review
A6: CHEK HOW GOOD IS YOUR DESIGN.
C10: Design characteristics
C11: Np | R11: 116
C12: Ratio of Power | R12: 32
C13: Km of Travel | R13: 10800
C14: Lenght | R14: 22
C15: Ws | R15: 26
C16: Cost | R16: 17480
C17: Dtc | R17: 3422

Sheet FRONTLOADING
AK2: Estimation of customer needs
AV3: Don´t forget, you can COPY and PASTE the designs!!!!
AK4: Range of passengers | AL4: 116
AK5: Speed | AL5: 32
P6: btc | Q6: btc | AK6: Km of Travel | AL6: 10800
P7: sb | Q7: sb | AK7: Lenght | AL7: 22
P8: sb | Q8: sb | AK8: Wing Span | AL8: 26
P9: sb | Q9: sb | AK9: Cost | AL9: 15480
P10: sb | Q10: sb | AK10: Delivery time to customer | AL10: 3422
O11: btw | P11: sb | Q11: sb | R11: btw
M12: btw | N12: sw | O12: sw | P12: sb | Q12: sb | R12: sw | S12: sw | T12: btw
K13: btw | L13: sw | M13: sw | N13: sw | O13: sw | P13: sb | Q13: sb | R13: sw | S13: sw | T13: sw | U13: sw | V13: btw
I14: btw | J14: sw | K14: sw | L14: sw | M14: sw | N14: sw | O14: sw | P14: sb | Q14: sb | R14: sw | S14: sw | T14: sw | U14: sw | V14: sw | W14: sw | X14: btw
G15: btw | H15: sw | I15: sw | J15: sw | K15: sw | L15: sw | M15: sw | N15: sw | O15: sw | P15: sb | Q15: sb | R15: sw | S15: sw | T15: sw | U15: sw | V15: sw | W15: sw | X15: sw | Y15: sw | Z15: btw
E16: btw | F16: sw | G16: sw | H16: sw | I16: sw | J16: sw | K16: sw | L16: sw | M16: sw | N16: sw | O16: sw | P16: sb | Q16: sb | R16: sw | S16: sw | T16: sw | U16: sw | V16: sw | W16: sw | X16: sw | Y16: sw | Z16: sw | AA16: sw | AB16: btw
I17: e | M17: e | P17: sb | Q17: sb | T17: e | X17: e
P18: sb | Q18: sb
P19: sb | Q19: sb
P20: sb | Q20: sb
P21: sb | Q21: sb
P22: sb | Q22: sb
O23: btt | P23: sb | Q23: sb | R23: btt
M24: btt | N24: st | O24: st | P24: sb | Q24: sb | R24: st | S24: st | T24: btt
K25: btt | L25: st | M25: st | N25: st | O25: st | P25: sb | Q25: sb | R25: st | S25: st | T25: st | U25: st | V25: btt
P26: tb | Q26: tb
AK33: Estimation of customer needs
AK35: Range of passengers | AL35: 68
AK36: Speed | AL36: 43
AK37: Km of Travel | AL37: 6400
AK38: Lenght | AL38: 14
AK39: Wing Span | AL39: 18
P40: btc | Q40: btc | AK40: Cost | AL40: 7200
P41: sb | Q41: sb | AK41: Delivery time to customer | AL41: 1652
P42: sb | Q42: sb
P43: sb | Q43: sb
O44: btw | P44: sb | Q44: sb | R44: btw
M45: btw | N45: sw | O45: sw | P45: sb | Q45: sb | R45: sw | S45: sw | T45: btw
K46: btw | L46: sw | M46: sw | N46: sw | O46: sw | P46: sb | Q46: sb | R46: sw | S46: sw | T46: sw | U46: sw | V46: btw
I47: btw | J47: sw | K47: sw | L47: sw | M47: sw | N47: sw | O47: sw | P47: sb | Q47: sb | R47: sw | S47: sw | T47: sw | U47: sw | V47: sw | W47: sw | X47: btw
M48: e | P48: sb | Q48: sb | T48: e
P49: sb | Q49: sb
O50: btt | P50: sb | Q50: sb | R50: btt
M51: btt | N51: st | O51: st | P51: sb | Q51: sb | R51: st | S51: st | T51: btt
P52: tb | Q52: tb
AK64: Estimation of customer needs
P65: btc | Q65: btc
P66: sc | Q66: sc | AK66: Range of passengers | AL66: 290
O67: btc | P67: sc | Q67: sc | R67: btc | AK67: Speed | AL67: 12
O68: sb | P68: sb | Q68: sb | R68: sb | AK68: Km of Travel | AL68: 9500
O69: sb | P69: sb | Q69: sb | R69: sb | AK69: Lenght | AL69: 29
O70: sb | P70: sb | Q70: sb | R70: sb | AK70: Wing Span | AL70: 28
O71: sb | P71: sb | Q71: sb | R71: sb | AK71: Cost | AL71: 27380
O72: sb | P72: sb | Q72: sb | R72: sb | AK72: Delivery time to customer | AL72: 5660
N73: btw | O73: sb | P73: sb | Q73: sb | R73: sb | S73: btw
L74: btw | M74: sw | N74: sw | O74: sb | P74: sb | Q74: sb | R74: sb | S74: sw | T74: sw | U74: btw
J75: btw | K75: sw | L75: sw | M75: sw | N75: sw | O75: sb | P75: sb | Q75: sb | R75: sb | S75: sw | T75: sw | U75: sw | V75: sw | W75: btw
H76: btw | I76: sw | J76: sw | K76: sw | L76: sw | M76: sw | N76: sw | O76: sb | P76: sb | Q76: sb | R76: sb | S76: sw | T76: sw | U76: sw | V76: sw | W76: sw | X76: sw | Y76: btw
F77: btw | G77: sw | H77: sw | I77: sw | J77: sw | K77: sw | L77: sw | M77: sw | N77: sw | O77: sb | P77: sb | Q77: sb | R77: sb | S77: sw | T77: sw | U77: sw | V77: sw | W77: sw | X77: sw | Y77: sw | Z77: sw | AA77: btw
D78: btw | E78: sw | F78: sw | G78: sw | H78: sw | I78: sw | J78: sw | K78: sw | L78: sw | M78: sw | N78: sw | O78: sb | P78: sb | Q78: sb | R78: sb | S78: sw | T78: sw | U78: sw | V78: sw | W78: sw | X78: sw | Y78: sw | Z78: sw | AA78: sw | AB78: sw | AC78: btw
C79: tw | D79: sw | E79: sw | F79: sw | G79: sw | H79: sw | I79: sw | J79: sw | K79: sw | L79: sw | M79: sw | N79: sw | O79: sb | P79: sb | Q79: sb | R79: sb | S79: sw | T79: sw | U79: sw | V79: sw | W79: sw | X79: sw | Y79: sw | Z79: sw | AA79: sw | AB79: sw | AC79: sw | AD79: tw
E80: e | I80: e | M80: e | O80: sb | P80: sb | Q80: sb | R80: sb | T80: e | X80: e | AB80: e
O81: sb | P81: sb | Q81: sb | R81: sb
O82: sb | P82: sb | Q82: sb | R82: sb
O83: sb | P83: sb | Q83: sb | R83: sb
O84: sb | P84: sb | Q84: sb | R84: sb
O85: sb | P85: sb | Q85: sb | R85: sb
O86: sb | P86: sb | Q86: sb | R86: sb
O87: sb | P87: sb | Q87: sb | R87: sb
N88: btt | O88: sb | P88: sb | Q88: sb | R88: sb | S88: btt
L89: btt | M89: st | N89: st | O89: sb | P89: sb | Q89: sb | R89: sb | S89: st | T89: st | U89: btt
J90: btt | K90: st | L90: st | M90: st | N90: st | O90: sb | P90: sb | Q90: sb | R90: sb | S90: st | T90: st | U90: st | V90: st | W90: btt
I91: tt | J91: st | K91: st | L91: st | M91: st | N91: st | O91: sb | P91: sb | Q91: sb | R91: sb | S91: st | T91: st | U91: st | V91: st | W91: st | X91: tt
P92: btb | Q92: btb
AK95: Estimation of customer needs
P97: btc | Q97: btc | AK97: Range of passengers | AL97: 134
P98: sb | Q98: sb | AK98: Speed | AL98: 12
P99: sb | Q99: sb | AK99: Km of Travel | AL99: 14250
P100: sb | Q100: sb | AK100: Lenght | AL100: 25
P101: sb | Q101: sb | AK101: Wing Span | AL101: 26
P102: sb | Q102: sb | AK102: Cost | AL102: 18180
O103: btw | P103: sb | Q103: sb | R103: btw | AK103: Delivery time to customer | AL103: 3824
M104: btw | N104: sw | O104: sw | P104: sb | Q104: sb | R104: sw | S104: sw | T104: btw
K105: btw | L105: sw | M105: sw | N105: sw | O105: sw | P105: sb | Q105: sb | R105: sw | S105: sw | T105: sw | U105: sw | V105: btw
I106: btw | J106: sw | K106: sw | L106: sw | M106: sw | N106: sw | O106: sw | P106: sb | Q106: sb | R106: sw | S106: sw | T106: sw | U106: sw | V106: sw | W106: sw | X106: btw
G107: btw | H107: sw | I107: sw | J107: sw | K107: sw | L107: sw | M107: sw | N107: sw | O107: sw | P107: sb | Q107: sb | R107: sw | S107: sw | T107: sw | U107: sw | V107: sw | W107: sw | X107: sw | Y107: sw | Z107: btw
E108: btw | F108: sw | G108: sw | H108: sw | I108: sw | J108: sw | K108: sw | L108: sw | M108: sw | N108: sw | O108: sw | P108: sb | Q108: sb | R108: sw | S108: sw | T108: sw | U108: sw | V108: sw | W108: sw | X108: sw | Y108: sw | Z108: sw | AA108: sw | AB108: btw
D109: tw | E109: sw | F109: sw | G109: sw | H109: sw | I109: sw | J109: sw | K109: sw | L109: sw | M109: sw | N109: sw | O109: sw | P109: sb | Q109: sb | R109: sw | S109: sw | T109: sw | U109: sw | V109: sw | W109: sw | X109: sw | Y109: sw | Z109: sw | AA109: sw | AB109: sw | AC109: tw
G110: e | L110: e | P110: sb | Q110: sb | U110: e | Z110: e
P111: sb | Q111: sb
P112: sb | Q112: sb
P113: sb | Q113: sb
P114: sb | Q114: sb
P115: sb | Q115: sb
P116: sb | Q116: sb
O117: btt | P117: sb | Q117: sb | R117: btt
M118: btt | N118: st | O118: st | P118: sb | Q118: sb | R118: st | S118: st | T118: btt
L119: tt | M119: st | N119: st | O119: st | P119: sb | Q119: sb | R119: st | S119: st | T119: st | U119: tt
P120: tb | Q120: tb
AK126: Estimation of customer needs
P127: btc | Q127: btc
P128: sb | Q128: sb | AK128: Range of passengers | AL128: 158
P129: sb | Q129: sb | AK129: Speed | AL129: 21
P130: sb | Q130: sb | AK130: Km of Travel | AL130: 12000
P131: sb | Q131: sb | AK131: Lenght | AL131: 29
P132: sb | Q132: sb | AK132: Wing Span | AL132: 26
P133: sb | Q133: sb | AK133: Cost | AL133: 22820
P134: sb | Q134: sb | AK134: Delivery time to customer | AL134: 5048
P135: sb | Q135: sb
P136: sb | Q136: sb
D137: sw | E137: sw | F137: sw | G137: sw | H137: sw | I137: sw | J137: sw | K137: sw | L137: sw | M137: sw | N137: sw | O137: sw | P137: sb | Q137: sb | R137: sw | S137: sw | T137: sw | U137: sw | V137: sw | W137: sw | X137: sw | Y137: sw | Z137: sw | AA137: sw | AB137: sw | AC137: sw
D138: sw | E138: sw | F138: sw | G138: sw | H138: sw | I138: sw | J138: sw | K138: sw | L138: sw | M138: sw | N138: sw | O138: sw | P138: sb | Q138: sb | R138: sw | S138: sw | T138: sw | U138: sw | V138: sw | W138: sw | X138: sw | Y138: sw | Z138: sw | AA138: sw | AB138: sw | AC138: sw
D139: sw | E139: sw | F139: sw | G139: sw | H139: sw | I139: sw | J139: sw | K139: sw | L139: sw | M139: sw | N139: sw | O139: sw | P139: sb | Q139: sb | R139: sw | S139: sw | T139: sw | U139: sw | V139: sw | W139: sw | X139: sw | Y139: sw | Z139: sw | AA139: sw | AB139: sw | AC139: sw
D140: sw | E140: sw | F140: sw | G140: sw | H140: sw | I140: sw | J140: sw | K140: sw | L140: sw | M140: sw | N140: sw | O140: sw | P140: sb | Q140: sb | R140: sw | S140: sw | T140: sw | U140: sw | V140: sw | W140: sw | X140: sw | Y140: sw | Z140: sw | AA140: sw | AB140: sw | AC140: sw
D141: sw | E141: sw | F141: sw | G141: sw | H141: sw | I141: sw | J141: sw | K141: sw | L141: sw | M141: sw | N141: sw | O141: sw | P141: sb | Q141: sb | R141: sw | S141: sw | T141: sw | U141: sw | V141: sw | W141: sw | X141: sw | Y141: sw | Z141: sw | AA141: sw | AB141: sw | AC141: sw
E142: e | I142: e | M142: e | P142: sb | Q142: sb | T142: e | X142: e | AB142: e
P143: sb | Q143: sb
P144: sb | Q144: sb
P145: sb | Q145: sb
P146: sb | Q146: sb
P147: sb | Q147: sb
P148: sb | Q148: sb
P149: sb | Q149: sb
P150: sb | Q150: sb
J151: st | K151: st | L151: st | M151: st | N151: st | O151: st | P151: sb | Q151: sb | R151: st | S151: st | T151: st | U151: st | V151: st | W151: st
J152: st | K152: st | L152: st | M152: st | N152: st | O152: st | P152: sb | Q152: sb | R152: st | S152: st | T152: st | U152: st | V152: st | W152: st
J153: st | K153: st | L153: st | M153: st | N153: st | O153: st | P153: sb | Q153: sb | R153: st | S153: st | T153: st | U153: st | V153: st | W153: st
P154: tb | Q154: tb

Sheet Trade of Curves
B2: TRADE OF CURVES
A50: Weight | B50: Ratioof Power | C50: Free Power | D50: Total Power (ne=2) | F50: Weight | G50: Ratioof Power | H50: Free Power | I50: Total Power (ne=4) | K50: Weight | L50: Ratioof Power | M50: Free Power | N50: Total Power (ne=6) | P50: Kmof Travel | Q50: Wing Surface | R50: DistanceBlock (ne=2) | U50: Kmof Travel | V50: Wing Surface | W50: DistanceBlock (ne=4) | Y50: Kmof Travel | Z50: Wing Surface | AA50: DistanceBlock (ne=2)
P51: =Q51*$R$51 -> 200 | Q51: 1 | R51: 200 | U51: =V51*$W$51 -> 150 | V51: 1 | W51: 150 | Y51: =Z51*$AA$51 -> 100 | Z51: 1 | AA51: 100
A52: 1 | B52: =ROUND(100*(C52/A52),0) -> 99900 | C52: =D52-A52 -> 999 | D52: 1000 | F52: 1 | G52: =ROUND(100*(H52/F52),0) -> 199900 | H52: =I52-F52 -> 1999 | I52: 2000 | K52: 1 | L52: =ROUND(100*(M52/K52),0) -> 299900 | M52: =N52-K52 -> 2999 | N52: 3000 | P52: =Q52*$R$51 -> 400 | Q52: 2 | U52: =V52*$W$51 -> 300 | V52: 2 | Y52: =Z52*$AA$51 -> 200 | Z52: 2
A53: 2 | B53: 49900 | C53: 998 | D53: 1000 | F53: 2 | G53: 99900 | H53: 1998 | I53: 2000 | K53: 2 | L53: 149900 | M53: 2998 | N53: 3000 | P53: 600 | Q53: 3 | U53: 450 | V53: 3 | Y53: 300 | Z53: 3
A54: 3 | B54: 33233 | C54: 997 | D54: 1000 | F54: 3 | G54: 66567 | H54: 1997 | I54: 2000 | K54: 3 | L54: 99900 | M54: 2997 | N54: 3000 | P54: 800 | Q54: 4 | U54: 600 | V54: 4 | Y54: 400 | Z54: 4
A55: 4 | B55: 24900 | C55: 996 | D55: 1000 | F55: 4 | G55: 49900 | H55: 1996 | I55: 2000 | K55: 4 | L55: 74900 | M55: 2996 | N55: 3000 | P55: 1000 | Q55: 5 | U55: 750 | V55: 5 | Y55: 500 | Z55: 5
A56: 5 | B56: 19900 | C56: 995 | D56: 1000 | F56: 5 | G56: 39900 | H56: 1995 | I56: 2000 | K56: 5 | L56: 59900 | M56: 2995 | N56: 3000 | P56: 1200 | Q56: 6 | U56: 900 | V56: 6 | Y56: 600 | Z56: 6
A57: 6 | B57: 16567 | C57: 994 | D57: 1000 | F57: 6 | G57: 33233 | H57: 1994 | I57: 2000 | K57: 6 | L57: 49900 | M57: 2994 | N57: 3000 | P57: 1400 | Q57: 7 | U57: 1050 | V57: 7 | Y57: 700 | Z57: 7
A58: 7 | B58: 14186 | C58: 993 | D58: 1000 | F58: 7 | G58: 28471 | H58: 1993 | I58: 2000 | K58: 7 | L58: 42757 | M58: 2993 | N58: 3000 | P58: 1600 | Q58: 8 | U58: 1200 | V58: 8 | Y58: 800 | Z58: 8
A59: 8 | B59: 12400 | C59: 992 | D59: 1000 | F59: 8 | G59: 24900 | H59: 1992 | I59: 2000 | K59: 8 | L59: 37400 | M59: 2992 | N59: 3000 | P59: 1800 | Q59: 9 | U59: 1350 | V59: 9 | Y59: 900 | Z59: 9
A60: 9 | B60: 11011 | C60: 991 | D60: 1000 | F60: 9 | G60: 22122 | H60: 1991 | I60: 2000 | K60: 9 | L60: 33233 | M60: 2991 | N60: 3000 | P60: 2000 | Q60: 10 | U60: 1500 | V60: 10 | Y60: 1000 | Z60: 10
A61: 10 | B61: 9900 | C61: 990 | D61: 1000 | F61: 10 | G61: 19900 | H61: 1990 | I61: 2000 | K61: 10 | L61: 29900 | M61: 2990 | N61: 3000 | P61: 2200 | Q61: 11 | U61: 1650 | V61: 11 | Y61: 1100 | Z61: 11
A62: 11 | B62: 8991 | C62: 989 | D62: 1000 | F62: 11 | G62: 18082 | H62: 1989 | I62: 2000 | K62: 11 | L62: 27173 | M62: 2989 | N62: 3000 | P62: 2400 | Q62: 12 | U62: 1800 | V62: 12 | Y62: 1200 | Z62: 12
A63: 12 | B63: 8233 | C63: 988 | D63: 1000 | F63: 12 | G63: 16567 | H63: 1988 | I63: 2000 | K63: 12 | L63: 24900 | M63: 2988 | N63: 3000 | P63: 2600 | Q63: 13 | U63: 1950 | V63: 13 | Y63: 1300 | Z63: 13
A64: 13 | B64: 7592 | C64: 987 | D64: 1000 | F64: 13 | G64: 15285 | H64: 1987 | I64: 2000 | K64: 13 | L64: 22977 | M64: 2987 | N64: 3000 | P64: 2800 | Q64: 14 | U64: 2100 | V64: 14 | Y64: 1400 | Z64: 14
A65: 14 | B65: 7043 | C65: 986 | D65: 1000 | F65: 14 | G65: 14186 | H65: 1986 | I65: 2000 | K65: 14 | L65: 21329 | M65: 2986 | N65: 3000 | P65: 3000 | Q65: 15 | U65: 2250 | V65: 15 | Y65: 1500 | Z65: 15
A66: 15 | B66: 6567 | C66: 985 | D66: 1000 | F66: 15 | G66: 13233 | H66: 1985 | I66: 2000 | K66: 15 | L66: 19900 | M66: 2985 | N66: 3000 | P66: 3200 | Q66: 16 | U66: 2400 | V66: 16 | Y66: 1600 | Z66: 16
A67: 16 | B67: 6150 | C67: 984 | D67: 1000 | F67: 16 | G67: 12400 | H67: 1984 | I67: 2000 | K67: 16 | L67: 18650 | M67: 2984 | N67: 3000 | P67: 3400 | Q67: 17 | U67: 2550 | V67: 17 | Y67: 1700 | Z67: 17
A68: 17 | B68: 5782 | C68: 983 | D68: 1000 | F68: 17 | G68: 11665 | H68: 1983 | I68: 2000 | K68: 17 | L68: 17547 | M68: 2983 | N68: 3000 | P68: 3600 | Q68: 18 | U68: 2700 | V68: 18 | Y68: 1800 | Z68: 18
A69: 18 | B69: 5456 | C69: 982 | D69: 1000 | F69: 18 | G69: 11011 | H69: 1982 | I69: 2000 | K69: 18 | L69: 16567 | M69: 2982 | N69: 3000 | P69: 3800 | Q69: 19 | U69: 2850 | V69: 19 | Y69: 1900 | Z69: 19
A70: 19 | B70: 5163 | C70: 981 | D70: 1000 | F70: 19 | G70: 10426 | H70: 1981 | I70: 2000 | K70: 19 | L70: 15689 | M70: 2981 | N70: 3000 | P70: 4000 | Q70: 20 | U70: 3000 | V70: 20 | Y70: 2000 | Z70: 20
A71: 20 | B71: 4900 | C71: 980 | D71: 1000 | F71: 20 | G71: 9900 | H71: 1980 | I71: 2000 | K71: 20 | L71: 14900 | M71: 2980 | N71: 3000 | P71: 4200 | Q71: 21 | U71: 3150 | V71: 21 | Y71: 2100 | Z71: 21
A72: 21 | B72: 4662 | C72: 979 | D72: 1000 | F72: 21 | G72: 9424 | H72: 1979 | I72: 2000 | K72: 21 | L72: 14186 | M72: 2979 | N72: 3000 | P72: 4400 | Q72: 22 | U72: 3300 | V72: 22 | Y72: 2200 | Z72: 22
A73: 22 | B73: 4445 | C73: 978 | D73: 1000 | F73: 22 | G73: 8991 | H73: 1978 | I73: 2000 | K73: 22 | L73: 13536 | M73: 2978 | N73: 3000 | P73: 4600 | Q73: 23 | U73: 3450 | V73: 23 | Y73: 2300 | Z73: 23
A74: 23 | B74: 4248 | C74: 977 | D74: 1000 | F74: 23 | G74: 8596 | H74: 1977 | I74: 2000 | K74: 23 | L74: 12943 | M74: 2977 | N74: 3000 | P74: 4800 | Q74: 24 | U74: 3600 | V74: 24 | Y74: 2400 | Z74: 24
A75: 24 | B75: 4067 | C75: 976 | D75: 1000 | F75: 24 | G75: 8233 | H75: 1976 | I75: 2000 | K75: 24 | L75: 12400 | M75: 2976 | N75: 3000 | P75: 5000 | Q75: 25 | U75: 3750 | V75: 25 | Y75: 2500 | Z75: 25
A76: 25 | B76: 3900 | C76: 975 | D76: 1000 | F76: 25 | G76: 7900 | H76: 1975 | I76: 2000 | K76: 25 | L76: 11900 | M76: 2975 | N76: 3000 | P76: 5200 | Q76: 26 | U76: 3900 | V76: 26 | Y76: 2600 | Z76: 26
A77: 26 | B77: 3746 | C77: 974 | D77: 1000 | F77: 26 | G77: 7592 | H77: 1974 | I77: 2000 | K77: 26 | L77: 11438 | M77: 2974 | N77: 3000 | P77: 5400 | Q77: 27 | U77: 4050 | V77: 27 | Y77: 2700 | Z77: 27
A78: 27 | B78: 3604 | C78: 973 | D78: 1000 | F78: 27 | G78: 7307 | H78: 1973 | I78: 2000 | K78: 27 | L78: 11011 | M78: 2973 | N78: 3000 | P78: 5600 | Q78: 28 | U78: 4200 | V78: 28 | Y78: 2800 | Z78: 28
A79: 28 | B79: 3471 | C79: 972 | D79: 1000 | F79: 28 | G79: 7043 | H79: 1972 | I79: 2000 | K79: 28 | L79: 10614 | M79: 2972 | N79: 3000 | P79: 5800 | Q79: 29 | U79: 4350 | V79: 29 | Y79: 2900 | Z79: 29
A80: 29 | B80: 3348 | C80: 971 | D80: 1000 | F80: 29 | G80: 6797 | H80: 1971 | I80: 2000 | K80: 29 | L80: 10245 | M80: 2971 | N80: 3000 | P80: 6000 | Q80: 30 | U80: 4500 | V80: 30 | Y80: 3000 | Z80: 30
A81: 30 | B81: 3233 | C81: 970 | D81: 1000 | F81: 30 | G81: 6567 | H81: 1970 | I81: 2000 | K81: 30 | L81: 9900 | M81: 2970 | N81: 3000 | P81: 6200 | Q81: 31 | U81: 4650 | V81: 31 | Y81: 3100 | Z81: 31
A82: 31 | B82: 3126 | C82: 969 | D82: 1000 | F82: 31 | G82: 6352 | H82: 1969 | I82: 2000 | K82: 31 | L82: 9577 | M82: 2969 | N82: 3000 | P82: 6400 | Q82: 32 | U82: 4800 | V82: 32 | Y82: 3200 | Z82: 32
A83: 32 | B83: 3025 | C83: 968 | D83: 1000 | F83: 32 | G83: 6150 | H83: 1968 | I83: 2000 | K83: 32 | L83: 9275 | M83: 2968 | N83: 3000 | P83: 6600 | Q83: 33 | U83: 4950 | V83: 33 | Y83: 3300 | Z83: 33
A84: 33 | B84: 2930 | C84: 967 | D84: 1000 | F84: 33 | G84: 5961 | H84: 1967 | I84: 2000 | K84: 33 | L84: 8991 | M84: 2967 | N84: 3000 | P84: 6800 | Q84: 34 | U84: 5100 | V84: 34 | Y84: 3400 | Z84: 34
A85: 34 | B85: 2841 | C85: 966 | D85: 1000 | F85: 34 | G85: 5782 | H85: 1966 | I85: 2000 | K85: 34 | L85: 8724 | M85: 2966 | N85: 3000 | P85: 7000 | Q85: 35 | U85: 5250 | V85: 35 | Y85: 3500 | Z85: 35
A86: 35 | B86: 2757 | C86: 965 | D86: 1000 | F86: 35 | G86: 5614 | H86: 1965 | I86: 2000 | K86: 35 | L86: 8471 | M86: 2965 | N86: 3000 | P86: 7200 | Q86: 36 | U86: 5400 | V86: 36 | Y86: 3600 | Z86: 36
A87: 36 | B87: 2678 | C87: 964 | D87: 1000 | F87: 36 | G87: 5456 | H87: 1964 | I87: 2000 | K87: 36 | L87: 8233 | M87: 2964 | N87: 3000 | P87: 7400 | Q87: 37 | U87: 5550 | V87: 37 | Y87: 3700 | Z87: 37
A88: 37 | B88: 2603 | C88: 963 | D88: 1000 | F88: 37 | G88: 5305 | H88: 1963 | I88: 2000 | K88: 37 | L88: 8008 | M88: 2963 | N88: 3000 | P88: 7600 | Q88: 38 | U88: 5700 | V88: 38 | Y88: 3800 | Z88: 38
A89: 38 | B89: 2532 | C89: 962 | D89: 1000 | F89: 38 | G89: 5163 | H89: 1962 | I89: 2000 | K89: 38 | L89: 7795 | M89: 2962 | N89: 3000 | P89: 7800 | Q89: 39 | U89: 5850 | V89: 39 | Y89: 3900 | Z89: 39
A90: 39 | B90: 2464 | C90: 961 | D90: 1000 | F90: 39 | G90: 5028 | H90: 1961 | I90: 2000 | K90: 39 | L90: 7592 | M90: 2961 | N90: 3000 | P90: 8000 | Q90: 40 | U90: 6000 | V90: 40 | Y90: 4000 | Z90: 40
A91: 40 | B91: 2400 | C91: 960 | D91: 1000 | F91: 40 | G91: 4900 | H91: 1960 | I91: 2000 | K91: 40 | L91: 7400 | M91: 2960 | N91: 3000 | P91: 8200 | Q91: 41 | U91: 6150 | V91: 41 | Y91: 4100 | Z91: 41
A92: 41 | B92: 2339 | C92: 959 | D92: 1000 | F92: 41 | G92: 4778 | H92: 1959 | I92: 2000 | K92: 41 | L92: 7217 | M92: 2959 | N92: 3000 | P92: 8400 | Q92: 42 | U92: 6300 | V92: 42 | Y92: 4200 | Z92: 42
A93: 42 | B93: 2281 | C93: 958 | D93: 1000 | F93: 42 | G93: 4662 | H93: 1958 | I93: 2000 | K93: 42 | L93: 7043 | M93: 2958 | N93: 3000 | P93: 8600 | Q93: 43 | U93: 6450 | V93: 43 | Y93: 4300 | Z93: 43
A94: 43 | B94: 2226 | C94: 957 | D94: 1000 | F94: 43 | G94: 4551 | H94: 1957 | I94: 2000 | K94: 43 | L94: 6877 | M94: 2957 | N94: 3000 | P94: 8800 | Q94: 44 | U94: 6600 | V94: 44 | Y94: 4400 | Z94: 44
A95: 44 | B95: 2173 | C95: 956 | D95: 1000 | F95: 44 | G95: 4445 | H95: 1956 | I95: 2000 | K95: 44 | L95: 6718 | M95: 2956 | N95: 3000 | P95: 9000 | Q95: 45 | U95: 6750 | V95: 45 | Y95: 4500 | Z95: 45
A96: 45 | B96: 2122 | C96: 955 | D96: 1000 | F96: 45 | G96: 4344 | H96: 1955 | I96: 2000 | K96: 45 | L96: 6567 | M96: 2955 | N96: 3000 | P96: 9200 | Q96: 46 | U96: 6900 | V96: 46 | Y96: 4600 | Z96: 46
A97: 46 | B97: 2074 | C97: 954 | D97: 1000 | F97: 46 | G97: 4248 | H97: 1954 | I97: 2000 | K97: 46 | L97: 6422 | M97: 2954 | N97: 3000 | P97: 9400 | Q97: 47 | U97: 7050 | V97: 47 | Y97: 4700 | Z97: 47
A98: 47 | B98: 2028 | C98: 953 | D98: 1000 | F98: 47 | G98: 4155 | H98: 1953 | I98: 2000 | K98: 47 | L98: 6283 | M98: 2953 | N98: 3000 | P98: 9600 | Q98: 48 | U98: 7200 | V98: 48 | Y98: 4800 | Z98: 48
A99: 48 | B99: 1983 | C99: 952 | D99: 1000 | F99: 48 | G99: 4067 | H99: 1952 | I99: 2000 | K99: 48 | L99: 6150 | M99: 2952 | N99: 3000 | P99: 9800 | Q99: 49 | U99: 7350 | V99: 49 | Y99: 4900 | Z99: 49
A100: 49 | B100: 1941 | C100: 951 | D100: 1000 | F100: 49 | G100: 3982 | H100: 1951 | I100: 2000 | K100: 49 | L100: 6022 | M100: 2951 | N100: 3000 | P100: 10000 | Q100: 50 | U100: 7500 | V100: 50 | Y100: 5000 | Z100: 50
A101: 50 | B101: 1900 | C101: 950 | D101: 1000 | F101: 50 | G101: 3900 | H101: 1950 | I101: 2000 | K101: 50 | L101: 5900 | M101: 2950 | N101: 3000 | P101: 10200 | Q101: 51 | U101: 7650 | V101: 51 | Y101: 5100 | Z101: 51
A102: 51 | B102: 1861 | C102: 949 | D102: 1000 | F102: 51 | G102: 3822 | H102: 1949 | I102: 2000 | K102: 51 | L102: 5782 | M102: 2949 | N102: 3000 | P102: 10400 | Q102: 52 | U102: 7800 | V102: 52 | Y102: 5200 | Z102: 52
A103: 52 | B103: 1823 | C103: 948 | D103: 1000 | F103: 52 | G103: 3746 | H103: 1948 | I103: 2000 | K103: 52 | L103: 5669 | M103: 2948 | N103: 3000 | P103: 10600 | Q103: 53 | U103: 7950 | V103: 53 | Y103: 5300 | Z103: 53
A104: 53 | B104: 1787 | C104: 947 | D104: 1000 | F104: 53 | G104: 3674 | H104: 1947 | I104: 2000 | K104: 53 | L104: 5560 | M104: 2947 | N104: 3000 | P104: 10800 | Q104: 54 | U104: 8100 | V104: 54 | Y104: 5400 | Z104: 54
A105: 54 | B105: 1752 | C105: 946 | D105: 1000 | F105: 54 | G105: 3604 | H105: 1946 | I105: 2000 | K105: 54 | L105: 5456 | M105: 2946 | N105: 3000 | P105: 11000 | Q105: 55 | U105: 8250 | V105: 55 | Y105: 5500 | Z105: 55
A106: 55 | B106: 1718 | C106: 945 | D106: 1000 | F106: 55 | G106: 3536 | H106: 1945 | I106: 2000 | K106: 55 | L106: 5355 | M106: 2945 | N106: 3000 | P106: 11200 | Q106: 56 | U106: 8400 | V106: 56 | Y106: 5600 | Z106: 56
A107: 56 | B107: 1686 | C107: 944 | D107: 1000 | F107: 56 | G107: 3471 | H107: 1944 | I107: 2000 | K107: 56 | L107: 5257 | M107: 2944 | N107: 3000 | P107: 11400 | Q107: 57 | U107: 8550 | V107: 57 | Y107: 5700 | Z107: 57
A108: 57 | B108: 1654 | C108: 943 | D108: 1000 | F108: 57 | G108: 3409 | H108: 1943 | I108: 2000 | K108: 57 | L108: 5163 | M108: 2943 | N108: 3000 | P108: 11600 | Q108: 58 | U108: 8700 | V108: 58 | Y108: 5800 | Z108: 58
A109: 58 | B109: 1624 | C109: 942 | D109: 1000 | F109: 58 | G109: 3348 | H109: 1942 | I109: 2000 | K109: 58 | L109: 5072 | M109: 2942 | N109: 3000 | P109: 11800 | Q109: 59 | U109: 8850 | V109: 59 | Y109: 5900 | Z109: 59
A110: 59 | B110: 1595 | C110: 941 | D110: 1000 | F110: 59 | G110: 3290 | H110: 1941 | I110: 2000 | K110: 59 | L110: 4985 | M110: 2941 | N110: 3000 | P110: 12000 | Q110: 60 | U110: 9000 | V110: 60 | Y110: 6000 | Z110: 60
A111: 60 | B111: 1567 | C111: 940 | D111: 1000 | F111: 60 | G111: 3233 | H111: 1940 | I111: 2000 | K111: 60 | L111: 4900 | M111: 2940 | N111: 3000 | P111: 12200 | Q111: 61 | U111: 9150 | V111: 61 | Y111: 6100 | Z111: 61
A112: 61 | B112: 1539 | C112: 939 | D112: 1000 | F112: 61 | G112: 3179 | H112: 1939 | I112: 2000 | K112: 61 | L112: 4818 | M112: 2939 | N112: 3000 | P112: 12400 | Q112: 62 | U112: 9300 | V112: 62 | Y112: 6200 | Z112: 62
A113: 62 | B113: 1513 | C113: 938 | D113: 1000 | F113: 62 | G113: 3126 | H113: 1938 | I113: 2000 | K113: 62 | L113: 4739 | M113: 2938 | N113: 3000 | P113: 12600 | Q113: 63 | U113: 9450 | V113: 63 | Y113: 6300 | Z113: 63
A114: 63 | B114: 1487 | C114: 937 | D114: 1000 | F114: 63 | G114: 3075 | H114: 1937 | I114: 2000 | K114: 63 | L114: 4662 | M114: 2937 | N114: 3000 | P114: 12800 | Q114: 64 | U114: 9600 | V114: 64 | Y114: 6400 | Z114: 64
A115: 64 | B115: 1463 | C115: 936 | D115: 1000 | F115: 64 | G115: 3025 | H115: 1936 | I115: 2000 | K115: 64 | L115: 4588 | M115: 2936 | N115: 3000 | P115: 13000 | Q115: 65 | U115: 9750 | V115: 65 | Y115: 6500 | Z115: 65
A116: 65 | B116: =ROUND(100*(C116/A116),0) -> 1438 | C116: =D116-A116 -> 935 | D116: 1000 | F116: 65 | G116: =ROUND(100*(H116/F116),0) -> 2977 | H116: =I116-F116 -> 1935 | I116: 2000 | K116: 65 | L116: =ROUND(100*(M116/K116),0) -> 4515 | M116: =N116-K116 -> 2935 | N116: 3000 | P116: =Q116*$R$51 -> 13200 | Q116: 66 | U116: =V116*$W$51 -> 9900 | V116: 66 | Y116: =Z116*$AA$51 -> 6600 | Z116: 66
A117: 66 | B117: 1415 | C117: 934 | D117: 1000 | F117: 66 | G117: 2930 | H117: 1934 | I117: 2000 | K117: 66 | L117: 4445 | M117: 2934 | N117: 3000 | P117: 13400 | Q117: 67 | U117: 10050 | V117: 67 | Y117: 6700 | Z117: 67
A118: 67 | B118: 1393 | C118: 933 | D118: 1000 | F118: 67 | G118: 2885 | H118: 1933 | I118: 2000 | K118: 67 | L118: 4378 | M118: 2933 | N118: 3000 | P118: 13600 | Q118: 68 | U118: 10200 | V118: 68 | Y118: 6800 | Z118: 68
A119: 68 | B119: 1371 | C119: 932 | D119: 1000 | F119: 68 | G119: 2841 | H119: 1932 | I119: 2000 | K119: 68 | L119: 4312 | M119: 2932 | N119: 3000 | P119: 13800 | Q119: 69 | U119: 10350 | V119: 69 | Y119: 6900 | Z119: 69
A120: 69 | B120: 1349 | C120: 931 | D120: 1000 | F120: 69 | G120: 2799 | H120: 1931 | I120: 2000 | K120: 69 | L120: 4248 | M120: 2931 | N120: 3000 | P120: 14000 | Q120: 70 | U120: 10500 | V120: 70 | Y120: 7000 | Z120: 70
A121: 70 | B121: 1329 | C121: 930 | D121: 1000 | F121: 70 | G121: 2757 | H121: 1930 | I121: 2000 | K121: 70 | L121: 4186 | M121: 2930 | N121: 3000 | P121: 14200 | Q121: 71 | U121: 10650 | V121: 71 | Y121: 7100 | Z121: 71
A122: 71 | B122: 1308 | C122: 929 | D122: 1000 | F122: 71 | G122: 2717 | H122: 1929 | I122: 2000 | K122: 71 | L122: 4125 | M122: 2929 | N122: 3000 | P122: 14400 | Q122: 72 | U122: 10800 | V122: 72 | Y122: 7200 | Z122: 72
A123: 72 | B123: 1289 | C123: 928 | D123: 1000 | F123: 72 | G123: 2678 | H123: 1928 | I123: 2000 | K123: 72 | L123: 4067 | M123: 2928 | N123: 3000 | P123: 14600 | Q123: 73 | U123: 10950 | V123: 73 | Y123: 7300 | Z123: 73
A124: 73 | B124: 1270 | C124: 927 | D124: 1000 | F124: 73 | G124: 2640 | H124: 1927 | I124: 2000 | K124: 73 | L124: 4010 | M124: 2927 | N124: 3000 | P124: 14800 | Q124: 74 | U124: 11100 | V124: 74 | Y124: 7400 | Z124: 74
A125: 74 | B125: 1251 | C125: 926 | D125: 1000 | F125: 74 | G125: 2603 | H125: 1926 | I125: 2000 | K125: 74 | L125: 3954 | M125: 2926 | N125: 3000 | P125: 15000 | Q125: 75 | U125: 11250 | V125: 75 | Y125: 7500 | Z125: 75
A126: 75 | B126: 1233 | C126: 925 | D126: 1000 | F126: 75 | G126: 2567 | H126: 1925 | I126: 2000 | K126: 75 | L126: 3900 | M126: 2925 | N126: 3000 | P126: 15200 | Q126: 76 | U126: 11400 | V126: 76 | Y126: 7600 | Z126: 76
A127: 76 | B127: 1216 | C127: 924 | D127: 1000 | F127: 76 | G127: 2532 | H127: 1924 | I127: 2000 | K127: 76 | L127: 3847 | M127: 2924 | N127: 3000 | P127: 15400 | Q127: 77 | U127: 11550 | V127: 77 | Y127: 7700 | Z127: 77
A128: 77 | B128: 1199 | C128: 923 | D128: 1000 | F128: 77 | G128: 2497 | H128: 1923 | I128: 2000 | K128: 77 | L128: 3796 | M128: 2923 | N128: 3000 | P128: 15600 | Q128: 78 | U128: 11700 | V128: 78 | Y128: 7800 | Z128: 78
A129: 78 | B129: 1182 | C129: 922 | D129: 1000 | F129: 78 | G129: 2464 | H129: 1922 | I129: 2000 | K129: 78 | L129: 3746 | M129: 2922 | N129: 3000 | P129: 15800 | Q129: 79 | U129: 11850 | V129: 79 | Y129: 7900 | Z129: 79
A130: 79 | B130: 1166 | C130: 921 | D130: 1000 | F130: 79 | G130: 2432 | H130: 1921 | I130: 2000 | K130: 79 | L130: 3697 | M130: 2921 | N130: 3000 | P130: 16000 | Q130: 80 | U130: 12000 | V130: 80 | Y130: 8000 | Z130: 80
A131: 80 | B131: 1150 | C131: 920 | D131: 1000 | F131: 80 | G131: 2400 | H131: 1920 | I131: 2000 | K131: 80 | L131: 3650 | M131: 2920 | N131: 3000 | P131: 16200 | Q131: 81 | U131: 12150 | V131: 81 | Y131: 8100 | Z131: 81
A132: 81 | B132: 1135 | C132: 919 | D132: 1000 | F132: 81 | G132: 2369 | H132: 1919 | I132: 2000 | K132: 81 | L132: 3604 | M132: 2919 | N132: 3000 | P132: 16400 | Q132: 82 | U132: 12300 | V132: 82 | Y132: 8200 | Z132: 82
A133: 82 | B133: 1120 | C133: 918 | D133: 1000 | F133: 82 | G133: 2339 | H133: 1918 | I133: 2000 | K133: 82 | L133: 3559 | M133: 2918 | N133: 3000 | P133: 16600 | Q133: 83 | U133: 12450 | V133: 83 | Y133: 8300 | Z133: 83
A134: 83 | B134: 1105 | C134: 917 | D134: 1000 | F134: 83 | G134: 2310 | H134: 1917 | I134: 2000 | K134: 83 | L134: 3514 | M134: 2917 | N134: 3000 | P134: 16800 | Q134: 84 | U134: 12600 | V134: 84 | Y134: 8400 | Z134: 84
A135: 84 | B135: 1090 | C135: 916 | D135: 1000 | F135: 84 | G135: 2281 | H135: 1916 | I135: 2000 | K135: 84 | L135: 3471 | M135: 2916 | N135: 3000 | P135: 17000 | Q135: 85 | U135: 12750 | V135: 85 | Y135: 8500 | Z135: 85
A136: 85 | B136: 1076 | C136: 915 | D136: 1000 | F136: 85 | G136: 2253 | H136: 1915 | I136: 2000 | K136: 85 | L136: 3429 | M136: 2915 | N136: 3000 | P136: 17200 | Q136: 86 | U136: 12900 | V136: 86 | Y136: 8600 | Z136: 86
A137: 86 | B137: 1063 | C137: 914 | D137: 1000 | F137: 86 | G137: 2226 | H137: 1914 | I137: 2000 | K137: 86 | L137: 3388 | M137: 2914 | N137: 3000 | P137: 17400 | Q137: 87 | U137: 13050 | V137: 87 | Y137: 8700 | Z137: 87
A138: 87 | B138: 1049 | C138: 913 | D138: 1000 | F138: 87 | G138: 2199 | H138: 1913 | I138: 2000 | K138: 87 | L138: 3348 | M138: 2913 | N138: 3000 | P138: 17600 | Q138: 88 | U138: 13200 | V138: 88 | Y138: 8800 | Z138: 88
A139: 88 | B139: 1036 | C139: 912 | D139: 1000 | F139: 88 | G139: 2173 | H139: 1912 | I139: 2000 | K139: 88 | L139: 3309 | M139: 2912 | N139: 3000 | P139: 17800 | Q139: 89 | U139: 13350 | V139: 89 | Y139: 8900 | Z139: 89
A140: 89 | B140: 1024 | C140: 911 | D140: 1000 | F140: 89 | G140: 2147 | H140: 1911 | I140: 2000 | K140: 89 | L140: 3271 | M140: 2911 | N140: 3000 | P140: 18000 | Q140: 90 | U140: 13500 | V140: 90 | Y140: 9000 | Z140: 90
A141: 90 | B141: 1011 | C141: 910 | D141: 1000 | F141: 90 | G141: 2122 | H141: 1910 | I141: 2000 | K141: 90 | L141: 3233 | M141: 2910 | N141: 3000 | P141: 18200 | Q141: 91 | U141: 13650 | V141: 91 | Y141: 9100 | Z141: 91
A142: 91 | B142: 999 | C142: 909 | D142: 1000 | F142: 91 | G142: 2098 | H142: 1909 | I142: 2000 | K142: 91 | L142: 3197 | M142: 2909 | N142: 3000 | P142: 18400 | Q142: 92 | U142: 13800 | V142: 92 | Y142: 9200 | Z142: 92
A143: 92 | B143: 987 | C143: 908 | D143: 1000 | F143: 92 | G143: 2074 | H143: 1908 | I143: 2000 | K143: 92 | L143: 3161 | M143: 2908 | N143: 3000 | P143: 18600 | Q143: 93 | U143: 13950 | V143: 93 | Y143: 9300 | Z143: 93
A144: 93 | B144: 975 | C144: 907 | D144: 1000 | F144: 93 | G144: 2051 | H144: 1907 | I144: 2000 | K144: 93 | L144: 3126 | M144: 2907 | N144: 3000 | P144: 18800 | Q144: 94 | U144: 14100 | V144: 94 | Y144: 9400 | Z144: 94
A145: 94 | B145: 964 | C145: 906 | D145: 1000 | F145: 94 | G145: 2028 | H145: 1906 | I145: 2000 | K145: 94 | L145: 3091 | M145: 2906 | N145: 3000 | P145: 19000 | Q145: 95 | U145: 14250 | V145: 95 | Y145: 9500 | Z145: 95
A146: 95 | B146: 953 | C146: 905 | D146: 1000 | F146: 95 | G146: 2005 | H146: 1905 | I146: 2000 | K146: 95 | L146: 3058 | M146: 2905 | N146: 3000 | P146: 19200 | Q146: 96 | U146: 14400 | V146: 96 | Y146: 9600 | Z146: 96
A147: 96 | B147: 942 | C147: 904 | D147: 1000 | F147: 96 | G147: 1983 | H147: 1904 | I147: 2000 | K147: 96 | L147: 3025 | M147: 2904 | N147: 3000 | P147: 19400 | Q147: 97 | U147: 14550 | V147: 97 | Y147: 9700 | Z147: 97
A148: 97 | B148: 931 | C148: 903 | D148: 1000 | F148: 97 | G148: 1962 | H148: 1903 | I148: 2000 | K148: 97 | L148: 2993 | M148: 2903 | N148: 3000 | P148: 19600 | Q148: 98 | U148: 14700 | V148: 98 | Y148: 9800 | Z148: 98
A149: 98 | B149: 920 | C149: 902 | D149: 1000 | F149: 98 | G149: 1941 | H149: 1902 | I149: 2000 | K149: 98 | L149: 2961 | M149: 2902 | N149: 3000 | P149: 19800 | Q149: 99 | U149: 14850 | V149: 99 | Y149: 9900 | Z149: 99
A150: 99 | B150: 910 | C150: 901 | D150: 1000 | F150: 99 | G150: 1920 | H150: 1901 | I150: 2000 | K150: 99 | L150: 2930 | M150: 2901 | N150: 3000 | P150: 20000 | Q150: 100 | U150: 15000 | V150: 100 | Y150: 10000 | Z150: 100
A151: 100 | B151: 900 | C151: 900 | D151: 1000 | F151: 100 | G151: 1900 | H151: 1900 | I151: 2000 | K151: 100 | L151: 2900 | M151: 2900 | N151: 3000 | P151: 20200 | Q151: 101 | U151: 15150 | V151: 101 | Y151: 10100 | Z151: 101
A152: 101 | B152: 890 | C152: 899 | D152: 1000 | F152: 101 | G152: 1880 | H152: 1899 | I152: 2000 | K152: 101 | L152: 2870 | M152: 2899 | N152: 3000 | P152: 20400 | Q152: 102 | U152: 15300 | V152: 102 | Y152: 10200 | Z152: 102
A153: 102 | B153: 880 | C153: 898 | D153: 1000 | F153: 102 | G153: 1861 | H153: 1898 | I153: 2000 | K153: 102 | L153: 2841 | M153: 2898 | N153: 3000 | P153: 20600 | Q153: 103 | U153: 15450 | V153: 103 | Y153: 10300 | Z153: 103
A154: 103 | B154: 871 | C154: 897 | D154: 1000 | F154: 103 | G154: 1842 | H154: 1897 | I154: 2000 | K154: 103 | L154: 2813 | M154: 2897 | N154: 3000 | P154: 20800 | Q154: 104 | U154: 15600 | V154: 104 | Y154: 10400 | Z154: 104
A155: 104 | B155: 862 | C155: 896 | D155: 1000 | F155: 104 | G155: 1823 | H155: 1896 | I155: 2000 | K155: 104 | L155: 2785 | M155: 2896 | N155: 3000 | P155: 21000 | Q155: 105 | U155: 15750 | V155: 105 | Y155: 10500 | Z155: 105
A156: 105 | B156: 852 | C156: 895 | D156: 1000 | F156: 105 | G156: 1805 | H156: 1895 | I156: 2000 | K156: 105 | L156: 2757 | M156: 2895 | N156: 3000 | P156: 21200 | Q156: 106 | U156: 15900 | V156: 106 | Y156: 10600 | Z156: 106
A157: 106 | B157: 843 | C157: 894 | D157: 1000 | F157: 106 | G157: 1787 | H157: 1894 | I157: 2000 | K157: 106 | L157: 2730 | M157: 2894 | N157: 3000 | P157: 21400 | Q157: 107 | U157: 16050 | V157: 107 | Y157: 10700 | Z157: 107
A158: 107 | B158: 835 | C158: 893 | D158: 1000 | F158: 107 | G158: 1769 | H158: 1893 | I158: 2000 | K158: 107 | L158: 2704 | M158: 2893 | N158: 3000 | P158: 21600 | Q158: 108 | U158: 16200 | V158: 108 | Y158: 10800 | Z158: 108
A159: 108 | B159: 826 | C159: 892 | D159: 1000 | F159: 108 | G159: 1752 | H159: 1892 | I159: 2000 | K159: 108 | L159: 2678 | M159: 2892 | N159: 3000 | P159: 21800 | Q159: 109 | U159: 16350 | V159: 109 | Y159: 10900 | Z159: 109
A160: 109 | B160: 817 | C160: 891 | D160: 1000 | F160: 109 | G160: 1735 | H160: 1891 | I160: 2000 | K160: 109 | L160: 2652 | M160: 2891 | N160: 3000 | P160: 22000 | Q160: 110 | U160: 16500 | V160: 110 | Y160: 11000 | Z160: 110
A161: 110 | B161: 809 | C161: 890 | D161: 1000 | F161: 110 | G161: 1718 | H161: 1890 | I161: 2000 | K161: 110 | L161: 2627 | M161: 2890 | N161: 3000 | P161: 22200 | Q161: 111 | U161: 16650 | V161: 111 | Y161: 11100 | Z161: 111
A162: 111 | B162: 801 | C162: 889 | D162: 1000 | F162: 111 | G162: 1702 | H162: 1889 | I162: 2000 | K162: 111 | L162: 2603 | M162: 2889 | N162: 3000 | P162: 22400 | Q162: 112 | U162: 16800 | V162: 112 | Y162: 11200 | Z162: 112
A163: 112 | B163: 793 | C163: 888 | D163: 1000 | F163: 112 | G163: 1686 | H163: 1888 | I163: 2000 | K163: 112 | L163: 2579 | M163: 2888 | N163: 3000 | P163: 22600 | Q163: 113 | U163: 16950 | V163: 113 | Y163: 11300 | Z163: 113
A164: 113 | B164: 785 | C164: 887 | D164: 1000 | F164: 113 | G164: 1670 | H164: 1887 | I164: 2000 | K164: 113 | L164: 2555 | M164: 2887 | N164: 3000 | P164: 22800 | Q164: 114 | U164: 17100 | V164: 114 | Y164: 11400 | Z164: 114
A165: 114 | B165: 777 | C165: 886 | D165: 1000 | F165: 114 | G165: 1654 | H165: 1886 | I165: 2000 | K165: 114 | L165: 2532 | M165: 2886 | N165: 3000 | P165: 23000 | Q165: 115 | U165: 17250 | V165: 115 | Y165: 11500 | Z165: 115
A166: 115 | B166: 770 | C166: 885 | D166: 1000 | F166: 115 | G166: 1639 | H166: 1885 | I166: 2000 | K166: 115 | L166: 2509 | M166: 2885 | N166: 3000 | P166: 23200 | Q166: 116 | U166: 17400 | V166: 116 | Y166: 11600 | Z166: 116
A167: 116 | B167: 762 | C167: 884 | D167: 1000 | F167: 116 | G167: 1624 | H167: 1884 | I167: 2000 | K167: 116 | L167: 2486 | M167: 2884 | N167: 3000 | P167: 23400 | Q167: 117 | U167: 17550 | V167: 117 | Y167: 11700 | Z167: 117
A168: 117 | B168: 755 | C168: 883 | D168: 1000 | F168: 117 | G168: 1609 | H168: 1883 | I168: 2000 | K168: 117 | L168: 2464 | M168: 2883 | N168: 3000 | P168: 23600 | Q168: 118 | U168: 17700 | V168: 118 | Y168: 11800 | Z168: 118
A169: 118 | B169: 747 | C169: 882 | D169: 1000 | F169: 118 | G169: 1595 | H169: 1882 | I169: 2000 | K169: 118 | L169: 2442 | M169: 2882 | N169: 3000 | P169: 23800 | Q169: 119 | U169: 17850 | V169: 119 | Y169: 11900 | Z169: 119
A170: 119 | B170: 740 | C170: 881 | D170: 1000 | F170: 119 | G170: 1581 | H170: 1881 | I170: 2000 | K170: 119 | L170: 2421 | M170: 2881 | N170: 3000 | P170: 24000 | Q170: 120 | U170: 18000 | V170: 120 | Y170: 12000 | Z170: 120
A171: 120 | B171: 733 | C171: 880 | D171: 1000 | F171: 120 | G171: 1567 | H171: 1880 | I171: 2000 | K171: 120 | L171: 2400 | M171: 2880 | N171: 3000 | P171: 24200 | Q171: 121 | U171: 18150 | V171: 121 | Y171: 12100 | Z171: 121
A172: 121 | B172: 726 | C172: 879 | D172: 1000 | F172: 121 | G172: 1553 | H172: 1879 | I172: 2000 | K172: 121 | L172: 2379 | M172: 2879 | N172: 3000 | P172: 24400 | Q172: 122 | U172: 18300 | V172: 122 | Y172: 12200 | Z172: 122
A173: 122 | B173: 720 | C173: 878 | D173: 1000 | F173: 122 | G173: 1539 | H173: 1878 | I173: 2000 | K173: 122 | L173: 2359 | M173: 2878 | N173: 3000 | P173: 24600 | Q173: 123 | U173: 18450 | V173: 123 | Y173: 12300 | Z173: 123
A174: 123 | B174: 713 | C174: 877 | D174: 1000 | F174: 123 | G174: 1526 | H174: 1877 | I174: 2000 | K174: 123 | L174: 2339 | M174: 2877 | N174: 3000 | P174: 24800 | Q174: 124 | U174: 18600 | V174: 124 | Y174: 12400 | Z174: 124
A175: 124 | B175: 706 | C175: 876 | D175: 1000 | F175: 124 | G175: 1513 | H175: 1876 | I175: 2000 | K175: 124 | L175: 2319 | M175: 2876 | N175: 3000 | P175: 25000 | Q175: 125 | U175: 18750 | V175: 125 | Y175: 12500 | Z175: 125
A176: 125 | B176: 700 | C176: 875 | D176: 1000 | F176: 125 | G176: 1500 | H176: 1875 | I176: 2000 | K176: 125 | L176: 2300 | M176: 2875 | N176: 3000 | P176: 25200 | Q176: 126 | U176: 18900 | V176: 126 | Y176: 12600 | Z176: 126
A177: 126 | B177: 694 | C177: 874 | D177: 1000 | F177: 126 | G177: 1487 | H177: 1874 | I177: 2000 | K177: 126 | L177: 2281 | M177: 2874 | N177: 3000 | P177: 25400 | Q177: 127 | U177: 19050 | V177: 127 | Y177: 12700 | Z177: 127
A178: 127 | B178: 687 | C178: 873 | D178: 1000 | F178: 127 | G178: 1475 | H178: 1873 | I178: 2000 | K178: 127 | L178: 2262 | M178: 2873 | N178: 3000 | P178: 25600 | Q178: 128 | U178: 19200 | V178: 128 | Y178: 12800 | Z178: 128
A179: 128 | B179: 681 | C179: 872 | D179: 1000 | F179: 128 | G179: 1463 | H179: 1872 | I179: 2000 | K179: 128 | L179: 2244 | M179: 2872 | N179: 3000 | P179: 25800 | Q179: 129 | U179: 19350 | V179: 129 | Y179: 12900 | Z179: 129
A180: 129 | B180: =ROUND(100*(C180/A180),0) -> 675 | C180: =D180-A180 -> 871 | D180: 1000 | F180: 129 | G180: =ROUND(100*(H180/F180),0) -> 1450 | H180: =I180-F180 -> 1871 | I180: 2000 | K180: 129 | L180: =ROUND(100*(M180/K180),0) -> 2226 | M180: =N180-K180 -> 2871 | N180: 3000 | P180: =Q180*$R$51 -> 26000 | Q180: 130 | U180: =V180*$W$51 -> 19500 | V180: 130 | Y180: =Z180*$AA$51 -> 13000 | Z180: 130
A181: 130 | B181: 669 | C181: 870 | D181: 1000 | F181: 130 | G181: 1438 | H181: 1870 | I181: 2000 | K181: 130 | L181: 2208 | M181: 2870 | N181: 3000 | P181: 26200 | Q181: 131 | U181: 19650 | V181: 131 | Y181: 13100 | Z181: 131
A182: 131 | B182: 663 | C182: 869 | D182: 1000 | F182: 131 | G182: 1427 | H182: 1869 | I182: 2000 | K182: 131 | L182: 2190 | M182: 2869 | N182: 3000 | P182: 26400 | Q182: 132 | U182: 19800 | V182: 132 | Y182: 13200 | Z182: 132
A183: 132 | B183: 658 | C183: 868 | D183: 1000 | F183: 132 | G183: 1415 | H183: 1868 | I183: 2000 | K183: 132 | L183: 2173 | M183: 2868 | N183: 3000 | P183: 26600 | Q183: 133 | U183: 19950 | V183: 133 | Y183: 13300 | Z183: 133
A184: 133 | B184: 652 | C184: 867 | D184: 1000 | F184: 133 | G184: 1404 | H184: 1867 | I184: 2000 | K184: 133 | L184: 2156 | M184: 2867 | N184: 3000 | P184: 26800 | Q184: 134 | U184: 20100 | V184: 134 | Y184: 13400 | Z184: 134
A185: 134 | B185: 646 | C185: 866 | D185: 1000 | F185: 134 | G185: 1393 | H185: 1866 | I185: 2000 | K185: 134 | L185: 2139 | M185: 2866 | N185: 3000 | P185: 27000 | Q185: 135 | U185: 20250 | V185: 135 | Y185: 13500 | Z185: 135
A186: 135 | B186: 641 | C186: 865 | D186: 1000 | F186: 135 | G186: 1381 | H186: 1865 | I186: 2000 | K186: 135 | L186: 2122 | M186: 2865 | N186: 3000 | P186: 27200 | Q186: 136 | U186: 20400 | V186: 136 | Y186: 13600 | Z186: 136
A187: 136 | B187: 635 | C187: 864 | D187: 1000 | F187: 136 | G187: 1371 | H187: 1864 | I187: 2000 | K187: 136 | L187: 2106 | M187: 2864 | N187: 3000 | P187: 27400 | Q187: 137 | U187: 20550 | V187: 137 | Y187: 13700 | Z187: 137
A188: 137 | B188: 630 | C188: 863 | D188: 1000 | F188: 137 | G188: 1360 | H188: 1863 | I188: 2000 | K188: 137 | L188: 2090 | M188: 2863 | N188: 3000 | P188: 27600 | Q188: 138 | U188: 20700 | V188: 138 | Y188: 13800 | Z188: 138
A189: 138 | B189: 625 | C189: 862 | D189: 1000 | F189: 138 | G189: 1349 | H189: 1862 | I189: 2000 | K189: 138 | L189: 2074 | M189: 2862 | N189: 3000 | P189: 27800 | Q189: 139 | U189: 20850 | V189: 139 | Y189: 13900 | Z189: 139
A190: 139 | B190: 619 | C190: 861 | D190: 1000 | F190: 139 | G190: 1339 | H190: 1861 | I190: 2000 | K190: 139 | L190: 2058 | M190: 2861 | N190: 3000 | P190: 28000 | Q190: 140 | U190: 21000 | V190: 140 | Y190: 14000 | Z190: 140
A191: 140 | B191: 614 | C191: 860 | D191: 1000 | F191: 140 | G191: 1329 | H191: 1860 | I191: 2000 | K191: 140 | L191: 2043 | M191: 2860 | N191: 3000 | P191: 28200 | Q191: 141 | U191: 21150 | V191: 141 | Y191: 14100 | Z191: 141
A192: 141 | B192: 609 | C192: 859 | D192: 1000 | F192: 141 | G192: 1318 | H192: 1859 | I192: 2000 | K192: 141 | L192: 2028 | M192: 2859 | N192: 3000 | P192: 28400 | Q192: 142 | U192: 21300 | V192: 142 | Y192: 14200 | Z192: 142
A193: 142 | B193: 604 | C193: 858 | D193: 1000 | F193: 142 | G193: 1308 | H193: 1858 | I193: 2000 | K193: 142 | L193: 2013 | M193: 2858 | N193: 3000 | P193: 28600 | Q193: 143 | U193: 21450 | V193: 143 | Y193: 14300 | Z193: 143
A194: 143 | B194: 599 | C194: 857 | D194: 1000 | F194: 143 | G194: 1299 | H194: 1857 | I194: 2000 | K194: 143 | L194: 1998 | M194: 2857 | N194: 3000 | P194: 28800 | Q194: 144 | U194: 21600 | V194: 144 | Y194: 14400 | Z194: 144
A195: 144 | B195: 594 | C195: 856 | D195: 1000 | F195: 144 | G195: 1289 | H195: 1856 | I195: 2000 | K195: 144 | L195: 1983 | M195: 2856 | N195: 3000 | P195: 29000 | Q195: 145 | U195: 21750 | V195: 145 | Y195: 14500 | Z195: 145
A196: 145 | B196: 590 | C196: 855 | D196: 1000 | F196: 145 | G196: 1279 | H196: 1855 | I196: 2000 | K196: 145 | L196: 1969 | M196: 2855 | N196: 3000 | P196: 29200 | Q196: 146 | U196: 21900 | V196: 146 | Y196: 14600 | Z196: 146
A197: 146 | B197: 585 | C197: 854 | D197: 1000 | F197: 146 | G197: 1270 | H197: 1854 | I197: 2000 | K197: 146 | L197: 1955 | M197: 2854 | N197: 3000 | P197: 29400 | Q197: 147 | U197: 22050 | V197: 147 | Y197: 14700 | Z197: 147
A198: 147 | B198: 580 | C198: 853 | D198: 1000 | F198: 147 | G198: 1261 | H198: 1853 | I198: 2000 | K198: 147 | L198: 1941 | M198: 2853 | N198: 3000 | P198: 29600 | Q198: 148 | U198: 22200 | V198: 148 | Y198: 14800 | Z198: 148
A199: 148 | B199: 576 | C199: 852 | D199: 1000 | F199: 148 | G199: 1251 | H199: 1852 | I199: 2000 | K199: 148 | L199: 1927 | M199: 2852 | N199: 3000 | P199: 29800 | Q199: 149 | U199: 22350 | V199: 149 | Y199: 14900 | Z199: 149
A200: 149 | B200: 571 | C200: 851 | D200: 1000 | F200: 149 | G200: 1242 | H200: 1851 | I200: 2000 | K200: 149 | L200: 1913 | M200: 2851 | N200: 3000 | P200: 30000 | Q200: 150 | U200: 22500 | V200: 150 | Y200: 15000 | Z200: 150
A201: 150 | B201: 567 | C201: 850 | D201: 1000 | F201: 150 | G201: 1233 | H201: 1850 | I201: 2000 | K201: 150 | L201: 1900 | M201: 2850 | N201: 3000 | P201: 30200 | Q201: 151 | U201: 22650 | V201: 151 | Y201: 15100 | Z201: 151
A202: 151 | B202: 562 | C202: 849 | D202: 1000 | F202: 151 | G202: 1225 | H202: 1849 | I202: 2000 | K202: 151 | L202: 1887 | M202: 2849 | N202: 3000 | P202: 30400 | Q202: 152 | U202: 22800 | V202: 152 | Y202: 15200 | Z202: 152
A203: 152 | B203: 558 | C203: 848 | D203: 1000 | F203: 152 | G203: 1216 | H203: 1848 | I203: 2000 | K203: 152 | L203: 1874 | M203: 2848 | N203: 3000 | P203: 30600 | Q203: 153 | U203: 22950 | V203: 153 | Y203: 15300 | Z203: 153
A204: 153 | B204: 554 | C204: 847 | D204: 1000 | F204: 153 | G204: 1207 | H204: 1847 | I204: 2000 | K204: 153 | L204: 1861 | M204: 2847 | N204: 3000 | P204: 30800 | Q204: 154 | U204: 23100 | V204: 154 | Y204: 15400 | Z204: 154
A205: 154 | B205: 549 | C205: 846 | D205: 1000 | F205: 154 | G205: 1199 | H205: 1846 | I205: 2000 | K205: 154 | L205: 1848 | M205: 2846 | N205: 3000 | P205: 31000 | Q205: 155 | U205: 23250 | V205: 155 | Y205: 15500 | Z205: 155
A206: 155 | B206: 545 | C206: 845 | D206: 1000 | F206: 155 | G206: 1190 | H206: 1845 | I206: 2000 | K206: 155 | L206: 1835 | M206: 2845 | N206: 3000 | P206: 31200 | Q206: 156 | U206: 23400 | V206: 156 | Y206: 15600 | Z206: 156
A207: 156 | B207: 541 | C207: 844 | D207: 1000 | F207: 156 | G207: 1182 | H207: 1844 | I207: 2000 | K207: 156 | L207: 1823 | M207: 2844 | N207: 3000 | P207: 31400 | Q207: 157 | U207: 23550 | V207: 157 | Y207: 15700 | Z207: 157
A208: 157 | B208: 537 | C208: 843 | D208: 1000 | F208: 157 | G208: 1174 | H208: 1843 | I208: 2000 | K208: 157 | L208: 1811 | M208: 2843 | N208: 3000 | P208: 31600 | Q208: 158 | U208: 23700 | V208: 158 | Y208: 15800 | Z208: 158
A209: 158 | B209: 533 | C209: 842 | D209: 1000 | F209: 158 | G209: 1166 | H209: 1842 | I209: 2000 | K209: 158 | L209: 1799 | M209: 2842 | N209: 3000 | P209: 31800 | Q209: 159 | U209: 23850 | V209: 159 | Y209: 15900 | Z209: 159
A210: 159 | B210: 529 | C210: 841 | D210: 1000 | F210: 159 | G210: 1158 | H210: 1841 | I210: 2000 | K210: 159 | L210: 1787 | M210: 2841 | N210: 3000 | P210: 32000 | Q210: 160 | U210: 24000 | V210: 160 | Y210: 16000 | Z210: 160
A211: 160 | B211: 525 | C211: 840 | D211: 1000 | F211: 160 | G211: 1150 | H211: 1840 | I211: 2000 | K211: 160 | L211: 1775 | M211: 2840 | N211: 3000 | P211: 32200 | Q211: 161 | U211: 24150 | V211: 161 | Y211: 16100 | Z211: 161
A212: 161 | B212: 521 | C212: 839 | D212: 1000 | F212: 161 | G212: 1142 | H212: 1839 | I212: 2000 | K212: 161 | L212: 1763 | M212: 2839 | N212: 3000 | P212: 32400 | Q212: 162 | U212: 24300 | V212: 162 | Y212: 16200 | Z212: 162
A213: 162 | B213: 517 | C213: 838 | D213: 1000 | F213: 162 | G213: 1135 | H213: 1838 | I213: 2000 | K213: 162 | L213: 1752 | M213: 2838 | N213: 3000 | P213: 32600 | Q213: 163 | U213: 24450 | V213: 163 | Y213: 16300 | Z213: 163
A214: 163 | B214: 513 | C214: 837 | D214: 1000 | F214: 163 | G214: 1127 | H214: 1837 | I214: 2000 | K214: 163 | L214: 1740 | M214: 2837 | N214: 3000 | P214: 32800 | Q214: 164 | U214: 24600 | V214: 164 | Y214: 16400 | Z214: 164
A215: 164 | B215: 510 | C215: 836 | D215: 1000 | F215: 164 | G215: 1120 | H215: 1836 | I215: 2000 | K215: 164 | L215: 1729 | M215: 2836 | N215: 3000 | P215: 33000 | Q215: 165 | U215: 24750 | V215: 165 | Y215: 16500 | Z215: 165
A216: 165 | B216: 506 | C216: 835 | D216: 1000 | F216: 165 | G216: 1112 | H216: 1835 | I216: 2000 | K216: 165 | L216: 1718 | M216: 2835 | N216: 3000 | P216: 33200 | Q216: 166 | U216: 24900 | V216: 166 | Y216: 16600 | Z216: 166
A217: 166 | B217: 502 | C217: 834 | D217: 1000 | F217: 166 | G217: 1105 | H217: 1834 | I217: 2000 | K217: 166 | L217: 1707 | M217: 2834 | N217: 3000 | P217: 33400 | Q217: 167 | U217: 25050 | V217: 167 | Y217: 16700 | Z217: 167
A218: 167 | B218: 499 | C218: 833 | D218: 1000 | F218: 167 | G218: 1098 | H218: 1833 | I218: 2000 | K218: 167 | L218: 1696 | M218: 2833 | N218: 3000 | P218: 33600 | Q218: 168 | U218: 25200 | V218: 168 | Y218: 16800 | Z218: 168
A219: 168 | B219: 495 | C219: 832 | D219: 1000 | F219: 168 | G219: 1090 | H219: 1832 | I219: 2000 | K219: 168 | L219: 1686 | M219: 2832 | N219: 3000 | P219: 33800 | Q219: 169 | U219: 25350 | V219: 169 | Y219: 16900 | Z219: 169
A220: 169 | B220: 492 | C220: 831 | D220: 1000 | F220: 169 | G220: 1083 | H220: 1831 | I220: 2000 | K220: 169 | L220: 1675 | M220: 2831 | N220: 3000 | P220: 34000 | Q220: 170 | U220: 25500 | V220: 170 | Y220: 17000 | Z220: 170
A221: 170 | B221: 488 | C221: 830 | D221: 1000 | F221: 170 | G221: 1076 | H221: 1830 | I221: 2000 | K221: 170 | L221: 1665 | M221: 2830 | N221: 3000 | P221: 34200 | Q221: 171 | U221: 25650 | V221: 171 | Y221: 17100 | Z221: 171
A222: 171 | B222: 485 | C222: 829 | D222: 1000 | F222: 171 | G222: 1070 | H222: 1829 | I222: 2000 | K222: 171 | L222: 1654 | M222: 2829 | N222: 3000 | P222: 34400 | Q222: 172 | U222: 25800 | V222: 172 | Y222: 17200 | Z222: 172
A223: 172 | B223: 481 | C223: 828 | D223: 1000 | F223: 172 | G223: 1063 | H223: 1828 | I223: 2000 | K223: 172 | L223: 1644 | M223: 2828 | N223: 3000 | P223: 34600 | Q223: 173 | U223: 25950 | V223: 173 | Y223: 17300 | Z223: 173
A224: 173 | B224: 478 | C224: 827 | D224: 1000 | F224: 173 | G224: 1056 | H224: 1827 | I224: 2000 | K224: 173 | L224: 1634 | M224: 2827 | N224: 3000 | P224: 34800 | Q224: 174 | U224: 26100 | V224: 174 | Y224: 17400 | Z224: 174
A225: 174 | B225: 475 | C225: 826 | D225: 1000 | F225: 174 | G225: 1049 | H225: 1826 | I225: 2000 | K225: 174 | L225: 1624 | M225: 2826 | N225: 3000 | P225: 35000 | Q225: 175 | U225: 26250 | V225: 175 | Y225: 17500 | Z225: 175
A226: 175 | B226: 471 | C226: 825 | D226: 1000 | F226: 175 | G226: 1043 | H226: 1825 | I226: 2000 | K226: 175 | L226: 1614 | M226: 2825 | N226: 3000 | P226: 35200 | Q226: 176 | U226: 26400 | V226: 176 | Y226: 17600 | Z226: 176
A227: 176 | B227: 468 | C227: 824 | D227: 1000 | F227: 176 | G227: 1036 | H227: 1824 | I227: 2000 | K227: 176 | L227: 1605 | M227: 2824 | N227: 3000 | P227: 35400 | Q227: 177 | U227: 26550 | V227: 177 | Y227: 17700 | Z227: 177
A228: 177 | B228: 465 | C228: 823 | D228: 1000 | F228: 177 | G228: 1030 | H228: 1823 | I228: 2000 | K228: 177 | L228: 1595 | M228: 2823 | N228: 3000 | P228: 35600 | Q228: 178 | U228: 26700 | V228: 178 | Y228: 17800 | Z228: 178
A229: 178 | B229: 462 | C229: 822 | D229: 1000 | F229: 178 | G229: 1024 | H229: 1822 | I229: 2000 | K229: 178 | L229: 1585 | M229: 2822 | N229: 3000 | P229: 35800 | Q229: 179 | U229: 26850 | V229: 179 | Y229: 17900 | Z229: 179
A230: 179 | B230: 459 | C230: 821 | D230: 1000 | F230: 179 | G230: 1017 | H230: 1821 | I230: 2000 | K230: 179 | L230: 1576 | M230: 2821 | N230: 3000 | P230: 36000 | Q230: 180 | U230: 27000 | V230: 180 | Y230: 18000 | Z230: 180
A231: 180 | B231: 456 | C231: 820 | D231: 1000 | F231: 180 | G231: 1011 | H231: 1820 | I231: 2000 | K231: 180 | L231: 1567 | M231: 2820 | N231: 3000 | P231: 36200 | Q231: 181 | U231: 27150 | V231: 181 | Y231: 18100 | Z231: 181
A232: 181 | B232: 452 | C232: 819 | D232: 1000 | F232: 181 | G232: 1005 | H232: 1819 | I232: 2000 | K232: 181 | L232: 1557 | M232: 2819 | N232: 3000 | P232: 36400 | Q232: 182 | U232: 27300 | V232: 182 | Y232: 18200 | Z232: 182
A233: 182 | B233: 449 | C233: 818 | D233: 1000 | F233: 182 | G233: 999 | H233: 1818 | I233: 2000 | K233: 182 | L233: 1548 | M233: 2818 | N233: 3000 | P233: 36600 | Q233: 183 | U233: 27450 | V233: 183 | Y233: 18300 | Z233: 183
A234: 183 | B234: 446 | C234: 817 | D234: 1000 | F234: 183 | G234: 993 | H234: 1817 | I234: 2000 | K234: 183 | L234: 1539 | M234: 2817 | N234: 3000 | P234: 36800 | Q234: 184 | U234: 27600 | V234: 184 | Y234: 18400 | Z234: 184
A235: 184 | B235: 443 | C235: 816 | D235: 1000 | F235: 184 | G235: 987 | H235: 1816 | I235: 2000 | K235: 184 | L235: 1530 | M235: 2816 | N235: 3000 | P235: 37000 | Q235: 185 | U235: 27750 | V235: 185 | Y235: 18500 | Z235: 185
A236: 185 | B236: 441 | C236: 815 | D236: 1000 | F236: 185 | G236: 981 | H236: 1815 | I236: 2000 | K236: 185 | L236: 1522 | M236: 2815 | N236: 3000 | P236: 37200 | Q236: 186 | U236: 27900 | V236: 186 | Y236: 18600 | Z236: 186
A237: 186 | B237: 438 | C237: 814 | D237: 1000 | F237: 186 | G237: 975 | H237: 1814 | I237: 2000 | K237: 186 | L237: 1513 | M237: 2814 | N237: 3000 | P237: 37400 | Q237: 187 | U237: 28050 | V237: 187 | Y237: 18700 | Z237: 187
A238: 187 | B238: 435 | C238: 813 | D238: 1000 | F238: 187 | G238: 970 | H238: 1813 | I238: 2000 | K238: 187 | L238: 1504 | M238: 2813 | N238: 3000 | P238: 37600 | Q238: 188 | U238: 28200 | V238: 188 | Y238: 18800 | Z238: 188
A239: 188 | B239: 432 | C239: 812 | D239: 1000 | F239: 188 | G239: 964 | H239: 1812 | I239: 2000 | K239: 188 | L239: 1496 | M239: 2812 | N239: 3000 | P239: 37800 | Q239: 189 | U239: 28350 | V239: 189 | Y239: 18900 | Z239: 189
A240: 189 | B240: 429 | C240: 811 | D240: 1000 | F240: 189 | G240: 958 | H240: 1811 | I240: 2000 | K240: 189 | L240: 1487 | M240: 2811 | N240: 3000 | P240: 38000 | Q240: 190 | U240: 28500 | V240: 190 | Y240: 19000 | Z240: 190
A241: 190 | B241: 426 | C241: 810 | D241: 1000 | F241: 190 | G241: 953 | H241: 1810 | I241: 2000 | K241: 190 | L241: 1479 | M241: 2810 | N241: 3000 | P241: 38200 | Q241: 191 | U241: 28650 | V241: 191 | Y241: 19100 | Z241: 191
A242: 191 | B242: 424 | C242: 809 | D242: 1000 | F242: 191 | G242: 947 | H242: 1809 | I242: 2000 | K242: 191 | L242: 1471 | M242: 2809 | N242: 3000 | P242: 38400 | Q242: 192 | U242: 28800 | V242: 192 | Y242: 19200 | Z242: 192
A243: 192 | B243: 421 | C243: 808 | D243: 1000 | F243: 192 | G243: 942 | H243: 1808 | I243: 2000 | K243: 192 | L243: 1463 | M243: 2808 | N243: 3000 | P243: 38600 | Q243: 193 | U243: 28950 | V243: 193 | Y243: 19300 | Z243: 193
A244: 193 | B244: =ROUND(100*(C244/A244),0) -> 418 | C244: =D244-A244 -> 807 | D244: 1000 | F244: 193 | G244: =ROUND(100*(H244/F244),0) -> 936 | H244: =I244-F244 -> 1807 | I244: 2000 | K244: 193 | L244: =ROUND(100*(M244/K244),0) -> 1454 | M244: =N244-K244 -> 2807 | N244: 3000 | P244: =Q244*$R$51 -> 38800 | Q244: 194 | U244: =V244*$W$51 -> 29100 | V244: 194 | Y244: =Z244*$AA$51 -> 19400 | Z244: 194
A245: 194 | B245: 415 | C245: 806 | D245: 1000 | F245: 194 | G245: 931 | H245: 1806 | I245: 2000 | K245: 194 | L245: 1446 | M245: 2806 | N245: 3000 | P245: 39000 | Q245: 195 | U245: 29250 | V245: 195 | Y245: 19500 | Z245: 195
A246: 195 | B246: 413 | C246: 805 | D246: 1000 | F246: 195 | G246: 926 | H246: 1805 | I246: 2000 | K246: 195 | L246: 1438 | M246: 2805 | N246: 3000 | P246: 39200 | Q246: 196 | U246: 29400 | V246: 196 | Y246: 19600 | Z246: 196
A247: 196 | B247: 410 | C247: 804 | D247: 1000 | F247: 196 | G247: 920 | H247: 1804 | I247: 2000 | K247: 196 | L247: 1431 | M247: 2804 | N247: 3000 | P247: 39400 | Q247: 197 | U247: 29550 | V247: 197 | Y247: 19700 | Z247: 197
A248: 197 | B248: 408 | C248: 803 | D248: 1000 | F248: 197 | G248: 915 | H248: 1803 | I248: 2000 | K248: 197 | L248: 1423 | M248: 2803 | N248: 3000 | P248: 39600 | Q248: 198 | U248: 29700 | V248: 198 | Y248: 19800 | Z248: 198
... 1003 more rows

Sheet Calculate Wight Body2
A1: =COUNTIF(GAMEstage2!B2:AE2,"btb")+COUNTIF(GAMEstage2!B2:AE2,"sb")+COUNTIF(GAMEstage2!B2:AE2,"tb") -> 0
A2: =COUNTIF(GAMEstage2!B3:AE3,"btb")+COUNTIF(GAMEstage2!B3:AE3,"sb")+COUNTIF(GAMEstage2!B3:AE3,"tb") -> 0
A3: =COUNTIF(GAMEstage2!B4:AE4,"btb")+COUNTIF(GAMEstage2!B4:AE4,"sb")+COUNTIF(GAMEstage2!B4:AE4,"tb") -> 0
A4: =COUNTIF(GAMEstage2!B5:AE5,"btb")+COUNTIF(GAMEstage2!B5:AE5,"sb")+COUNTIF(GAMEstage2!B5:AE5,"tb") -> 0
A5: =COUNTIF(GAMEstage2!B6:AE6,"btb")+COUNTIF(GAMEstage2!B6:AE6,"sb")+COUNTIF(GAMEstage2!B6:AE6,"tb") -> 0
A6: =COUNTIF(GAMEstage2!B7:AE7,"btb")+COUNTIF(GAMEstage2!B7:AE7,"sb")+COUNTIF(GAMEstage2!B7:AE7,"tb") -> 0
A7: =COUNTIF(GAMEstage2!B8:AE8,"btb")+COUNTIF(GAMEstage2!B8:AE8,"sb")+COUNTIF(GAMEstage2!B8:AE8,"tb") -> 0
A8: =COUNTIF(GAMEstage2!B9:AE9,"btb")+COUNTIF(GAMEstage2!B9:AE9,"sb")+COUNTIF(GAMEstage2!B9:AE9,"tb") -> 0
A9: =COUNTIF(GAMEstage2!B10:AE10,"btb")+COUNTIF(GAMEstage2!B10:AE10,"sb")+COUNTIF(GAMEstage2!B10:AE10,"tb") -> 0
A10: =COUNTIF(GAMEstage2!B11:AE11,"btb")+COUNTIF(GAMEstage2!B11:AE11,"sb")+COUNTIF(GAMEstage2!B11:AE11,"tb") -> 0
A11: =COUNTIF(GAMEstage2!B12:AE12,"btb")+COUNTIF(GAMEstage2!B12:AE12,"sb")+COUNTIF(GAMEstage2!B12:AE12,"tb") -> 0
A12: =COUNTIF(GAMEstage2!B13:AE13,"btb")+COUNTIF(GAMEstage2!B13:AE13,"sb")+COUNTIF(GAMEstage2!B13:AE13,"tb") -> 0
A13: =COUNTIF(GAMEstage2!B14:AE14,"btb")+COUNTIF(GAMEstage2!B14:AE14,"sb")+COUNTIF(GAMEstage2!B14:AE14,"tb") -> 0
A14: =COUNTIF(GAMEstage2!B15:AE15,"btb")+COUNTIF(GAMEstage2!B15:AE15,"sb")+COUNTIF(GAMEstage2!B15:AE15,"tb") -> 0
A15: =COUNTIF(GAMEstage2!B16:AE16,"btb")+COUNTIF(GAMEstage2!B16:AE16,"sb")+COUNTIF(GAMEstage2!B16:AE16,"tb") -> 0
A16: =COUNTIF(GAMEstage2!B17:AE17,"btb")+COUNTIF(GAMEstage2!B17:AE17,"sb")+COUNTIF(GAMEstage2!B17:AE17,"tb") -> 0
A17: =COUNTIF(GAMEstage2!B18:AE18,"btb")+COUNTIF(GAMEstage2!B18:AE18,"sb")+COUNTIF(GAMEstage2!B18:AE18,"tb") -> 0
A18: =COUNTIF(GAMEstage2!B19:AE19,"btb")+COUNTIF(GAMEstage2!B19:AE19,"sb")+COUNTIF(GAMEstage2!B19:AE19,"tb") -> 0 | B18: Wight of the body
A19: =COUNTIF(GAMEstage2!B20:AE20,"btb")+COUNTIF(GAMEstage2!B20:AE20,"sb")+COUNTIF(GAMEstage2!B20:AE20,"tb") -> 0 | B19: =MAX(A1:A30) -> 0
A20: =COUNTIF(GAMEstage2!B21:AE21,"btb")+COUNTIF(GAMEstage2!B21:AE21,"sb")+COUNTIF(GAMEstage2!B21:AE21,"tb") -> 0
A21: =COUNTIF(GAMEstage2!B22:AE22,"btb")+COUNTIF(GAMEstage2!B22:AE22,"sb")+COUNTIF(GAMEstage2!B22:AE22,"tb") -> 0
A22: =COUNTIF(GAMEstage2!B23:AE23,"btb")+COUNTIF(GAMEstage2!B23:AE23,"sb")+COUNTIF(GAMEstage2!B23:AE23,"tb") -> 0
A23: =COUNTIF(GAMEstage2!B24:AE24,"btb")+COUNTIF(GAMEstage2!B24:AE24,"sb")+COUNTIF(GAMEstage2!B24:AE24,"tb") -> 0
A24: =COUNTIF(GAMEstage2!B25:AE25,"btb")+COUNTIF(GAMEstage2!B25:AE25,"sb")+COUNTIF(GAMEstage2!B25:AE25,"tb") -> 0
A25: =COUNTIF(GAMEstage2!B26:AE26,"btb")+COUNTIF(GAMEstage2!B26:AE26,"sb")+COUNTIF(GAMEstage2!B26:AE26,"tb") -> 0
A26: =COUNTIF(GAMEstage2!B27:AE27,"btb")+COUNTIF(GAMEstage2!B27:AE27,"sb")+COUNTIF(GAMEstage2!B27:AE27,"tb") -> 0
A27: =COUNTIF(GAMEstage2!B28:AE28,"btb")+COUNTIF(GAMEstage2!B28:AE28,"sb")+COUNTIF(GAMEstage2!B28:AE28,"tb") -> 0
A28: =COUNTIF(GAMEstage2!B29:AE29,"btb")+COUNTIF(GAMEstage2!B29:AE29,"sb")+COUNTIF(GAMEstage2!B29:AE29,"tb") -> 0
A29: =COUNTIF(GAMEstage2!B30:AE30,"btb")+COUNTIF(GAMEstage2!B30:AE30,"sb")+COUNTIF(GAMEstage2!B30:AE30,"tb") -> 0
A30: =COUNTIF(GAMEstage2!B31:AE31,"btb")+COUNTIF(GAMEstage2!B31:AE31,"sb")+COUNTIF(GAMEstage2!B31:AE31,"tb") -> 0

Sheet Standardization
B2: COCKPIT | AL2: Here you have some designs that work good. You can use the shape to design your airplane in a faster way.
F7: btc | G7: btc | O7: tc | P7: tc
F8: sc | G8: sc | O8: sc | P8: sc | Y8: tc | Z8: tc
E9: btc | F9: sc | G9: sc | H9: btc | N9: btc | O9: sc | P9: sc | Q9: btc | X9: tc | Y9: sc | Z9: sc | AA9: tc
F15: btc | G15: btc | O15: btc | P15: btc | Y15: tc | Z15: tc
B23: TAIL
C27: btt | M27: st | N27: st | O27: st | P27: st | Q27: st | R27: st | Y27: btt
C28: st | D28: st | E28: btt | M28: st | N28: st | O28: st | P28: st | Q28: st | R28: st | Y28: st | Z28: st | AA28: btt
C29: st | D29: st | E29: st | F29: st | G29: btt | M29: st | N29: st | O29: st | P29: st | Q29: st | R29: st | Y29: st | Z29: st | AA29: st | AB29: tt
B34: WING
I38: btw
I39: sw | J39: sw | K39: btw
I40: sw | J40: sw | K40: sw | L40: sw | M40: btw
I41: sw | J41: sw | K41: sw | L41: sw | M41: sw | N41: sw | O41: btw
I42: sw | J42: sw | K42: sw | L42: sw | M42: sw | N42: sw | O42: sw | P42: sw | Q42: btw
I43: sw | J43: sw | K43: sw | L43: sw | M43: sw | N43: sw | O43: sw | P43: sw | Q43: sw | R43: sw | S43: btw
I47: sw | J47: sw | K47: sw | L47: sw | M47: sw | N47: sw | O47: sw | P47: sw | Q47: sw | R47: sw | S47: sw | T47: sw
I48: sw | J48: sw | K48: sw | L48: sw | M48: sw | N48: sw | O48: sw | P48: sw | Q48: sw | R48: sw | S48: sw | T48: sw
I49: sw | J49: sw | K49: sw | L49: sw | M49: sw | N49: sw | O49: sw | P49: sw | Q49: sw | R49: sw | S49: sw | T49: sw
I50: sw | J50: sw | K50: sw | L50: sw | M50: sw | N50: sw | O50: sw | P50: sw | Q50: sw | R50: sw | S50: sw | T50: sw
I51: sw | J51: sw | K51: sw | L51: sw | M51: sw | N51: sw | O51: sw | P51: sw | Q51: sw | R51: sw | S51: sw | T51: sw
I52: sw | J52: sw | K52: sw | L52: sw | M52: sw | N52: sw | O52: sw | P52: sw | Q52: sw | R52: sw | S52: sw | T52: sw
I56: btw
I57: sw | J57: sw | K57: btw
I58: sw | J58: sw | K58: sw | L58: sw | M58: btw
I59: sw | J59: sw | K59: sw | L59: sw | M59: sw | N59: sw | O59: btw
I60: sw | J60: sw | K60: sw | L60: sw | M60: sw | N60: sw | O60: sw | P60: sw | Q60: btw
I61: sw | J61: sw | K61: sw | L61: sw | M61: sw | N61: sw | O61: sw | P61: sw | Q61: sw | R61: tw

Sheet Geometry cockpit
A1: COCKPIT
A3: Type 1:
E4: nsc=number of squares in the cockpit = | H4: 4
E5: ntc=number of triangle in the cockpit= | H5: 0 | K5: Type
E6: nbtc= number of big triangle in the cockpit | H6: 4 | L6: 1 | M6: 2 | N6: 3 | O6: 4 | P6: 5 | Q6: 6
K7: nsc | L7: 4 | M7: 4 | N7: 2 | O7: 0 | P7: 0 | Q7: 0
E8: Lc=4 | K8: ntc | L8: 0 | M8: 2 | N8: 4 | O8: 0 | P8: 0 | Q8: 2
K9: nbtc | L9: 4 | M9: 2 | N9: 0 | O9: 2 | P9: 2 | Q9: 0
K10: Lc | L10: 4 | M10: 3 | N10: 2 | O10: 1 | P10: 2 | Q10: 1
A16: Type 2:
E17: nsc=number of squares in the cockpit = | H17: 4
E18: ntc=number of triangle in the cockpit= | H18: 2
E19: nbtc= number of big triangle in the cockpit | H19: 2
E21: Lc=3
A25: Type 3:
E26: nsc=number of squares in the cockpit = | H26: 2
E27: ntc=number of triangle in the cockpit= | H27: 4
E28: nbtc= number of big triangle in the cockpit | H28: 0
E31: Lc=2
A34: Type 4:
E35: nsc=number of squares in the cockpit = | H35: 0
E36: ntc=number of triangle in the cockpit= | H36: 0
E37: nbtc= number of big triangle in the cockpit | H37: 2
E39: Lc=1
A40: Type 5:
E41: nsc=number of squares in the cockpit = | H41: 0
E42: ntc=number of triangle in the cockpit= | H42: 0
E43: nbtc= number of big triangle in the cockpit | H43: 2
E46: Lc=2
A52: Type 6:
E53: nsc=number of squares in the cockpit = | H53: 0
E54: ntc=number of triangle in the cockpit= | H54: 2
E55: nbtc= number of big triangle in the cockpit | H55: 0
E58: Lc=1

Sheet Geometry tail
A1: tail | J1: NpbL | K1: ='Geometry wing '!K2 -> 24
A3: Type 1: | B3: Rectangle
J4: In function of the body:
J5: Number of blocks | M5: Npt=NptL*NptW/2 | N5: =M7*M8 -> 8
L7: NptW | M7: =ROUND(0.1*K1,0) -> 2
A8: y | L8: NptL | M8: =2*M7 -> 4
J10: nbtt= number of big triangle in the tail= | M10: =N5 -> 8 | N10: All the tail is with big triangles
C14: x
J20: In function of the body:
J21: Number of blocks | M21: Npt=NptL*NptW | N21: =(M23-1)*M24/2+M24 -> 24
L23: NptW | M23: =ROUNDUP(0.2*K1,0) -> 5
L24: NptL | M24: =2*(M23-1) -> 8
A26: Type 2: | B26: Triangle | J26: nbtt= number of big triangle in the tail= | M26: =M23-1 -> 4
J28: ntt= number of triangle in the tail= | M28: 1
J30: nst= number of square in the tail= | M30: =M24-1+((M23-1)*M24)/2-M26 -> 19
N31: =ROUNDDOWN(2*M31/10*N21,0) -> 0
O37: =M37+M32/2+M28 -> 1
J48: In function of the body:
J49: Number of blocks | M49: Npt | N49: =M51*M52/2 -> 25
A50: Type 3: | B50: Triangle2
L51: NptW | M51: =ROUND(0.2*K1,0) -> 5
L52: NptL | M52: =2*(M51) -> 10
J54: nbtt= number of big triangle in the tail= | M54: =M51 -> 5
J56: ntt= number of triangle in the tail= | M56: 0
J58: nst= number of square in the tail= | M58: =M52*M51/2-M54 -> 20
A69: Type
B70: 1 | C70: 2 | D70: 3
A71: nst | B71: 0 | C71: =$M$58 -> 20 | D71: =M30 -> 19
A72: ntt | B72: 0 | C72: =$M$56 -> 0 | D72: =M28 -> 1
A73: nbtt | B73: =$M$10 -> 8 | C73: =$M$54 -> 5 | D73: =M26 -> 4
A74: NptL | B74: =$M$8 -> 4 | C74: =$M$52 -> 10 | D74: =$M$24 -> 8

Sheet Calculate wingSpam2
A1: =COUNTIF(GAMEstage2!B2:AE2,"sb")+COUNTIF(GAMEstage2!B2:AE2,"bt")+COUNTIF(GAMEstage2!B2:AE2,"btb")+COUNTIF(GAMEstage2!B2:AE2,"btw")+COUNTIF(GAMEstage2!B2:AE2,"sw")+COUNTIF(GAMEstage2!B2:AE2,"tw") -> 0 | B1: =IF(A1=0,100,A1) -> 100
A2: =COUNTIF(GAMEstage2!B3:AE3,"sb")+COUNTIF(GAMEstage2!B3:AE3,"bt")+COUNTIF(GAMEstage2!B3:AE3,"btb")+COUNTIF(GAMEstage2!B3:AE3,"btw")+COUNTIF(GAMEstage2!B3:AE3,"sw")+COUNTIF(GAMEstage2!B3:AE3,"tw") -> 0 | B2: =IF(A2=0,100,A2) -> 100
A3: =COUNTIF(GAMEstage2!B4:AE4,"sb")+COUNTIF(GAMEstage2!B4:AE4,"bt")+COUNTIF(GAMEstage2!B4:AE4,"btb")+COUNTIF(GAMEstage2!B4:AE4,"btw")+COUNTIF(GAMEstage2!B4:AE4,"sw")+COUNTIF(GAMEstage2!B4:AE4,"tw") -> 0 | B3: 100
A4: =COUNTIF(GAMEstage2!B5:AE5,"sb")+COUNTIF(GAMEstage2!B5:AE5,"bt")+COUNTIF(GAMEstage2!B5:AE5,"btb")+COUNTIF(GAMEstage2!B5:AE5,"btw")+COUNTIF(GAMEstage2!B5:AE5,"sw")+COUNTIF(GAMEstage2!B5:AE5,"tw") -> 0 | B4: 100
A5: =COUNTIF(GAMEstage2!B6:AE6,"sb")+COUNTIF(GAMEstage2!B6:AE6,"bt")+COUNTIF(GAMEstage2!B6:AE6,"btb")+COUNTIF(GAMEstage2!B6:AE6,"btw")+COUNTIF(GAMEstage2!B6:AE6,"sw")+COUNTIF(GAMEstage2!B6:AE6,"tw") -> 0 | B5: 100
A6: =COUNTIF(GAMEstage2!B7:AE7,"sb")+COUNTIF(GAMEstage2!B7:AE7,"bt")+COUNTIF(GAMEstage2!B7:AE7,"btb")+COUNTIF(GAMEstage2!B7:AE7,"btw")+COUNTIF(GAMEstage2!B7:AE7,"sw")+COUNTIF(GAMEstage2!B7:AE7,"tw") -> 0 | B6: 100
A7: =COUNTIF(GAMEstage2!B8:AE8,"sb")+COUNTIF(GAMEstage2!B8:AE8,"bt")+COUNTIF(GAMEstage2!B8:AE8,"btb")+COUNTIF(GAMEstage2!B8:AE8,"btw")+COUNTIF(GAMEstage2!B8:AE8,"sw")+COUNTIF(GAMEstage2!B8:AE8,"tw") -> 0 | B7: 100
A8: =COUNTIF(GAMEstage2!B9:AE9,"sb")+COUNTIF(GAMEstage2!B9:AE9,"bt")+COUNTIF(GAMEstage2!B9:AE9,"btb")+COUNTIF(GAMEstage2!B9:AE9,"btw")+COUNTIF(GAMEstage2!B9:AE9,"sw")+COUNTIF(GAMEstage2!B9:AE9,"tw") -> 0 | B8: 100
A9: =COUNTIF(GAMEstage2!B10:AE10,"sb")+COUNTIF(GAMEstage2!B10:AE10,"bt")+COUNTIF(GAMEstage2!B10:AE10,"btb")+COUNTIF(GAMEstage2!B10:AE10,"btw")+COUNTIF(GAMEstage2!B10:AE10,"sw")+COUNTIF(GAMEstage2!B10:AE10,"tw") -> 0 | B9: 100
A10: =COUNTIF(GAMEstage2!B11:AE11,"sb")+COUNTIF(GAMEstage2!B11:AE11,"bt")+COUNTIF(GAMEstage2!B11:AE11,"btb")+COUNTIF(GAMEstage2!B11:AE11,"btw")+COUNTIF(GAMEstage2!B11:AE11,"sw")+COUNTIF(GAMEstage2!B11:AE11,"tw") -> 0 | B10: 100
A11: =COUNTIF(GAMEstage2!B12:AE12,"sb")+COUNTIF(GAMEstage2!B12:AE12,"bt")+COUNTIF(GAMEstage2!B12:AE12,"btb")+COUNTIF(GAMEstage2!B12:AE12,"btw")+COUNTIF(GAMEstage2!B12:AE12,"sw")+COUNTIF(GAMEstage2!B12:AE12,"tw") -> 0 | B11: 100
A12: =COUNTIF(GAMEstage2!B13:AE13,"sb")+COUNTIF(GAMEstage2!B13:AE13,"bt")+COUNTIF(GAMEstage2!B13:AE13,"btb")+COUNTIF(GAMEstage2!B13:AE13,"btw")+COUNTIF(GAMEstage2!B13:AE13,"sw")+COUNTIF(GAMEstage2!B13:AE13,"tw") -> 0 | B12: 100
A13: =COUNTIF(GAMEstage2!B14:AE14,"sb")+COUNTIF(GAMEstage2!B14:AE14,"bt")+COUNTIF(GAMEstage2!B14:AE14,"btb")+COUNTIF(GAMEstage2!B14:AE14,"btw")+COUNTIF(GAMEstage2!B14:AE14,"sw")+COUNTIF(GAMEstage2!B14:AE14,"tw") -> 0 | B13: 100
A14: =COUNTIF(GAMEstage2!B15:AE15,"sb")+COUNTIF(GAMEstage2!B15:AE15,"bt")+COUNTIF(GAMEstage2!B15:AE15,"btb")+COUNTIF(GAMEstage2!B15:AE15,"btw")+COUNTIF(GAMEstage2!B15:AE15,"sw")+COUNTIF(GAMEstage2!B15:AE15,"tw") -> 0 | B14: 100 | C14: Wing Span
A15: =COUNTIF(GAMEstage2!B16:AE16,"sb")+COUNTIF(GAMEstage2!B16:AE16,"bt")+COUNTIF(GAMEstage2!B16:AE16,"btb")+COUNTIF(GAMEstage2!B16:AE16,"btw")+COUNTIF(GAMEstage2!B16:AE16,"sw")+COUNTIF(GAMEstage2!B16:AE16,"tw") -> 0 | B15: 100 | C15: =MAX(A1:A30)+2 -> 2
A16: =COUNTIF(GAMEstage2!B17:AE17,"sb")+COUNTIF(GAMEstage2!B17:AE17,"bt")+COUNTIF(GAMEstage2!B17:AE17,"btb")+COUNTIF(GAMEstage2!B17:AE17,"btw")+COUNTIF(GAMEstage2!B17:AE17,"sw")+COUNTIF(GAMEstage2!B17:AE17,"tw") -> 0 | B16: 100
A17: =COUNTIF(GAMEstage2!B18:AE18,"sb")+COUNTIF(GAMEstage2!B18:AE18,"bt")+COUNTIF(GAMEstage2!B18:AE18,"btb")+COUNTIF(GAMEstage2!B18:AE18,"btw")+COUNTIF(GAMEstage2!B18:AE18,"sw")+COUNTIF(GAMEstage2!B18:AE18,"tw") -> 0 | B17: 100
A18: =COUNTIF(GAMEstage2!B19:AE19,"sb")+COUNTIF(GAMEstage2!B19:AE19,"bt")+COUNTIF(GAMEstage2!B19:AE19,"btb")+COUNTIF(GAMEstage2!B19:AE19,"btw")+COUNTIF(GAMEstage2!B19:AE19,"sw")+COUNTIF(GAMEstage2!B19:AE19,"tw") -> 0 | B18: 100 | C18: Wight of the body
A19: =COUNTIF(GAMEstage2!B20:AE20,"sb")+COUNTIF(GAMEstage2!B20:AE20,"bt")+COUNTIF(GAMEstage2!B20:AE20,"btb")+COUNTIF(GAMEstage2!B20:AE20,"btw")+COUNTIF(GAMEstage2!B20:AE20,"sw")+COUNTIF(GAMEstage2!B20:AE20,"tw") -> 0 | B19: 100 | C19: =MIN(B1:B30) -> 100
A20: =COUNTIF(GAMEstage2!B21:AE21,"sb")+COUNTIF(GAMEstage2!B21:AE21,"bt")+COUNTIF(GAMEstage2!B21:AE21,"btb")+COUNTIF(GAMEstage2!B21:AE21,"btw")+COUNTIF(GAMEstage2!B21:AE21,"sw")+COUNTIF(GAMEstage2!B21:AE21,"tw") -> 0 | B20: 100
A21: =COUNTIF(GAMEstage2!B22:AE22,"sb")+COUNTIF(GAMEstage2!B22:AE22,"bt")+COUNTIF(GAMEstage2!B22:AE22,"btb")+COUNTIF(GAMEstage2!B22:AE22,"btw")+COUNTIF(GAMEstage2!B22:AE22,"sw")+COUNTIF(GAMEstage2!B22:AE22,"tw") -> 0 | B21: 100
A22: =COUNTIF(GAMEstage2!B23:AE23,"sb")+COUNTIF(GAMEstage2!B23:AE23,"bt")+COUNTIF(GAMEstage2!B23:AE23,"btb")+COUNTIF(GAMEstage2!B23:AE23,"btw")+COUNTIF(GAMEstage2!B23:AE23,"sw")+COUNTIF(GAMEstage2!B23:AE23,"tw") -> 0 | B22: 100
A23: =COUNTIF(GAMEstage2!B24:AE24,"sb")+COUNTIF(GAMEstage2!B24:AE24,"bt")+COUNTIF(GAMEstage2!B24:AE24,"btb")+COUNTIF(GAMEstage2!B24:AE24,"btw")+COUNTIF(GAMEstage2!B24:AE24,"sw")+COUNTIF(GAMEstage2!B24:AE24,"tw") -> 0 | B23: 100
A24: =COUNTIF(GAMEstage2!B25:AE25,"sb")+COUNTIF(GAMEstage2!B25:AE25,"bt")+COUNTIF(GAMEstage2!B25:AE25,"btb")+COUNTIF(GAMEstage2!B25:AE25,"btw")+COUNTIF(GAMEstage2!B25:AE25,"sw")+COUNTIF(GAMEstage2!B25:AE25,"tw") -> 0 | B24: 100
A25: =COUNTIF(GAMEstage2!B26:AE26,"sb")+COUNTIF(GAMEstage2!B26:AE26,"bt")+COUNTIF(GAMEstage2!B26:AE26,"btb")+COUNTIF(GAMEstage2!B26:AE26,"btw")+COUNTIF(GAMEstage2!B26:AE26,"sw")+COUNTIF(GAMEstage2!B26:AE26,"tw") -> 0 | B25: 100
A26: =COUNTIF(GAMEstage2!B27:AE27,"sb")+COUNTIF(GAMEstage2!B27:AE27,"bt")+COUNTIF(GAMEstage2!B27:AE27,"btb")+COUNTIF(GAMEstage2!B27:AE27,"btw")+COUNTIF(GAMEstage2!B27:AE27,"sw")+COUNTIF(GAMEstage2!B27:AE27,"tw") -> 0 | B26: 100
A27: =COUNTIF(GAMEstage2!B28:AE28,"sb")+COUNTIF(GAMEstage2!B28:AE28,"bt")+COUNTIF(GAMEstage2!B28:AE28,"btb")+COUNTIF(GAMEstage2!B28:AE28,"btw")+COUNTIF(GAMEstage2!B28:AE28,"sw")+COUNTIF(GAMEstage2!B28:AE28,"tw") -> 0 | B27: 100
A28: =COUNTIF(GAMEstage2!B29:AE29,"sb")+COUNTIF(GAMEstage2!B29:AE29,"bt")+COUNTIF(GAMEstage2!B29:AE29,"btb")+COUNTIF(GAMEstage2!B29:AE29,"btw")+COUNTIF(GAMEstage2!B29:AE29,"sw")+COUNTIF(GAMEstage2!B29:AE29,"tw") -> 0 | B28: 100
A29: =COUNTIF(GAMEstage2!B30:AE30,"sb")+COUNTIF(GAMEstage2!B30:AE30,"bt")+COUNTIF(GAMEstage2!B30:AE30,"btb")+COUNTIF(GAMEstage2!B30:AE30,"btw")+COUNTIF(GAMEstage2!B30:AE30,"sw")+COUNTIF(GAMEstage2!B30:AE30,"tw") -> 0 | B29: 100
A30: =COUNTIF(GAMEstage2!B31:AE31,"sb")+COUNTIF(GAMEstage2!B31:AE31,"bt")+COUNTIF(GAMEstage2!B31:AE31,"btb")+COUNTIF(GAMEstage2!B31:AE31,"btw")+COUNTIF(GAMEstage2!B31:AE31,"sw")+COUNTIF(GAMEstage2!B31:AE31,"tw") -> 0 | B30: 100

Sheet Calculate wingSpam of the t 2
A1: =COUNTIF(GAMEstage1!B2:AE2,"sb")+COUNTIF(GAMEstage1!B2:AE2,"bt")+COUNTIF(GAMEstage1!B2:AE2,"btb")+COUNTIF(GAMEstage1!B2:AE2,"btw")+COUNTIF(GAMEstage1!B2:AE2,"sw")+COUNTIF(GAMEstage1!B2:AE2,"tw") -> 0
A2: =COUNTIF(GAMEstage1!B3:AE3,"sb")+COUNTIF(GAMEstage1!B3:AE3,"bt")+COUNTIF(GAMEstage1!B3:AE3,"btb")+COUNTIF(GAMEstage1!B3:AE3,"btw")+COUNTIF(GAMEstage1!B3:AE3,"sw")+COUNTIF(GAMEstage1!B3:AE3,"tw") -> 0
A3: =COUNTIF(GAMEstage1!B4:AE4,"sb")+COUNTIF(GAMEstage1!B4:AE4,"bt")+COUNTIF(GAMEstage1!B4:AE4,"btb")+COUNTIF(GAMEstage1!B4:AE4,"btw")+COUNTIF(GAMEstage1!B4:AE4,"sw")+COUNTIF(GAMEstage1!B4:AE4,"tw") -> 0
C14: Wing Span of the tail
C15: =((MAX(A16:A30)+2)-2)/2 -> 0
A16: =COUNTIF(GAMEstage2!B17:AE17,"sb")+COUNTIF(GAMEstage2!B17:AE17,"bt")+COUNTIF(GAMEstage2!B17:AE17,"btb")+COUNTIF(GAMEstage2!B17:AE17,"btt")+COUNTIF(GAMEstage2!B17:AE17,"st")+COUNTIF(GAMEstage2!B17:AE17,"tt") -> 0
A17: =COUNTIF(GAMEstage2!B18:AE18,"sb")+COUNTIF(GAMEstage2!B18:AE18,"bt")+COUNTIF(GAMEstage2!B18:AE18,"btb")+COUNTIF(GAMEstage2!B18:AE18,"btt")+COUNTIF(GAMEstage2!B18:AE18,"st")+COUNTIF(GAMEstage2!B18:AE18,"tt") -> 0
A18: =COUNTIF(GAMEstage2!B19:AE19,"sb")+COUNTIF(GAMEstage2!B19:AE19,"bt")+COUNTIF(GAMEstage2!B19:AE19,"btb")+COUNTIF(GAMEstage2!B19:AE19,"btt")+COUNTIF(GAMEstage2!B19:AE19,"st")+COUNTIF(GAMEstage2!B19:AE19,"tt") -> 0 | D18: =$C$15 -> 0
A19: =COUNTIF(GAMEstage2!B20:AE20,"sb")+COUNTIF(GAMEstage2!B20:AE20,"bt")+COUNTIF(GAMEstage2!B20:AE20,"btb")+COUNTIF(GAMEstage2!B20:AE20,"btt")+COUNTIF(GAMEstage2!B20:AE20,"st")+COUNTIF(GAMEstage2!B20:AE20,"tt") -> 0
A20: =COUNTIF(GAMEstage2!B21:AE21,"sb")+COUNTIF(GAMEstage2!B21:AE21,"bt")+COUNTIF(GAMEstage2!B21:AE21,"btb")+COUNTIF(GAMEstage2!B21:AE21,"btt")+COUNTIF(GAMEstage2!B21:AE21,"st")+COUNTIF(GAMEstage2!B21:AE21,"tt") -> 0
A21: =COUNTIF(GAMEstage2!B22:AE22,"sb")+COUNTIF(GAMEstage2!B22:AE22,"bt")+COUNTIF(GAMEstage2!B22:AE22,"btb")+COUNTIF(GAMEstage2!B22:AE22,"btt")+COUNTIF(GAMEstage2!B22:AE22,"st")+COUNTIF(GAMEstage2!B22:AE22,"tt") -> 0
A22: =COUNTIF(GAMEstage2!B23:AE23,"sb")+COUNTIF(GAMEstage2!B23:AE23,"bt")+COUNTIF(GAMEstage2!B23:AE23,"btb")+COUNTIF(GAMEstage2!B23:AE23,"btt")+COUNTIF(GAMEstage2!B23:AE23,"st")+COUNTIF(GAMEstage2!B23:AE23,"tt") -> 0
A23: =COUNTIF(GAMEstage2!B24:AE24,"sb")+COUNTIF(GAMEstage2!B24:AE24,"bt")+COUNTIF(GAMEstage2!B24:AE24,"btb")+COUNTIF(GAMEstage2!B24:AE24,"btt")+COUNTIF(GAMEstage2!B24:AE24,"st")+COUNTIF(GAMEstage2!B24:AE24,"tt") -> 0
A24: =COUNTIF(GAMEstage2!B25:AE25,"sb")+COUNTIF(GAMEstage2!B25:AE25,"bt")+COUNTIF(GAMEstage2!B25:AE25,"btb")+COUNTIF(GAMEstage2!B25:AE25,"btt")+COUNTIF(GAMEstage2!B25:AE25,"st")+COUNTIF(GAMEstage2!B25:AE25,"tt") -> 0
A25: =COUNTIF(GAMEstage2!B26:AE26,"sb")+COUNTIF(GAMEstage2!B26:AE26,"bt")+COUNTIF(GAMEstage2!B26:AE26,"btb")+COUNTIF(GAMEstage2!B26:AE26,"btt")+COUNTIF(GAMEstage2!B26:AE26,"st")+COUNTIF(GAMEstage2!B26:AE26,"tt") -> 0
A26: =COUNTIF(GAMEstage2!B27:AE27,"sb")+COUNTIF(GAMEstage2!B27:AE27,"bt")+COUNTIF(GAMEstage2!B27:AE27,"btb")+COUNTIF(GAMEstage2!B27:AE27,"btt")+COUNTIF(GAMEstage2!B27:AE27,"st")+COUNTIF(GAMEstage2!B27:AE27,"tt") -> 0
A27: =COUNTIF(GAMEstage2!B28:AE28,"sb")+COUNTIF(GAMEstage2!B28:AE28,"bt")+COUNTIF(GAMEstage2!B28:AE28,"btb")+COUNTIF(GAMEstage2!B28:AE28,"btt")+COUNTIF(GAMEstage2!B28:AE28,"st")+COUNTIF(GAMEstage2!B28:AE28,"tt") -> 0
A28: =COUNTIF(GAMEstage2!B29:AE29,"sb")+COUNTIF(GAMEstage2!B29:AE29,"bt")+COUNTIF(GAMEstage2!B29:AE29,"btb")+COUNTIF(GAMEstage2!B29:AE29,"btt")+COUNTIF(GAMEstage2!B29:AE29,"st")+COUNTIF(GAMEstage2!B29:AE29,"tt") -> 0
A29: =COUNTIF(GAMEstage2!B30:AE30,"sb")+COUNTIF(GAMEstage2!B30:AE30,"bt")+COUNTIF(GAMEstage2!B30:AE30,"btb")+COUNTIF(GAMEstage2!B30:AE30,"btt")+COUNTIF(GAMEstage2!B30:AE30,"st")+COUNTIF(GAMEstage2!B30:AE30,"tt") -> 0
A30: =COUNTIF(GAMEstage2!B31:AE31,"sb")+COUNTIF(GAMEstage2!B31:AE31,"bt")+COUNTIF(GAMEstage2!B31:AE31,"btb")+COUNTIF(GAMEstage2!B31:AE31,"btt")+COUNTIF(GAMEstage2!B31:AE31,"st")+COUNTIF(GAMEstage2!B31:AE31,"tt") -> 0

Sheet Graphic of Power
A1: Ratio of power | B1: Coeficient of lift | D1: 32
A2: 0 | B2: =40/65*A2 -> 0 | D2: =MATCH(D1,A2:A102,0) -> 33
A3: 1 | B3: =40/65*A3 -> 0.6153846154 | F3: We have supposed a lineal function between the power and the aceleration
A4: 2 | B4: 1.230769231
A5: 3 | B5: 1.846153846
A6: 4 | B6: 2.461538462
A7: 5 | B7: 3.076923077
A8: 6 | B8: 3.692307692
A9: 7 | B9: 4.307692308
A10: 8 | B10: 4.923076923
A11: 9 | B11: 5.538461538
A12: 10 | B12: 6.153846154
A13: 11 | B13: 6.769230769
A14: 12 | B14: 7.384615385
A15: 13 | B15: 8
A16: 14 | B16: 8.615384615
A17: 15 | B17: 9.230769231
A18: 16 | B18: 9.846153846
A19: 17 | B19: 10.46153846
A20: 18 | B20: 11.07692308
A21: 19 | B21: 11.69230769
A22: 20 | B22: 12.30769231
A23: 21 | B23: 12.92307692
A24: 22 | B24: 13.53846154
A25: 23 | B25: 14.15384615
A26: 24 | B26: 14.76923077
A27: 25 | B27: 15.38461538
A28: 26 | B28: 16
A29: 27 | B29: 16.61538462
A30: 28 | B30: 17.23076923
A31: 29 | B31: 17.84615385
A32: 30 | B32: 18.46153846
A33: 31 | B33: 19.07692308
A34: 32 | B34: 19.69230769
A35: 33 | B35: 20.30769231
A36: 34 | B36: 20.92307692
A37: 35 | B37: 21.53846154
A38: 36 | B38: 22.15384615
A39: 37 | B39: 22.76923077
A40: 38 | B40: 23.38461538
A41: 39 | B41: 24
A42: 40 | B42: 24.61538462
A43: 41 | B43: 25.23076923
A44: 42 | B44: 25.84615385
A45: 43 | B45: 26.46153846
A46: 44 | B46: 27.07692308
A47: 45 | B47: 27.69230769
A48: 46 | B48: 28.30769231
A49: 47 | B49: 28.92307692
A50: 48 | B50: 29.53846154
A51: 49 | B51: 30.15384615
A52: 50 | B52: 30.76923077
A53: 51 | B53: 31.38461538
A54: 52 | B54: 32
A55: 53 | B55: 32.61538462
A56: 54 | B56: 33.23076923
A57: 55 | B57: 33.84615385
A58: 56 | B58: 34.46153846
A59: 57 | B59: 35.07692308
A60: 58 | B60: 35.69230769
A61: 59 | B61: 36.30769231
A62: 60 | B62: 36.92307692
A63: 61 | B63: 37.53846154
A64: 62 | B64: 38.15384615
A65: 63 | B65: 38.76923077
A66: 64 | B66: 39.38461538
A67: 65 | B67: =40/65*A67 -> 40
A68: 66 | B68: 40.61538462
A69: 67 | B69: 41.23076923
A70: 68 | B70: 41.84615385
A71: 69 | B71: 42.46153846
A72: 70 | B72: 43.07692308
A73: 71 | B73: 43.69230769
A74: 72 | B74: 44.30769231
A75: 73 | B75: 44.92307692
A76: 74 | B76: 45.53846154
A77: 75 | B77: 46.15384615
A78: 76 | B78: 46.76923077
A79: 77 | B79: 47.38461538
A80: 78 | B80: 48
A81: 79 | B81: 48.61538462
A82: 80 | B82: 49.23076923
A83: 81 | B83: 49.84615385
A84: 82 | B84: 50.46153846
A85: 83 | B85: 51.07692308
A86: 84 | B86: 51.69230769
A87: 85 | B87: 52.30769231
A88: 86 | B88: 52.92307692
A89: 87 | B89: 53.53846154
A90: 88 | B90: 54.15384615
A91: 89 | B91: 54.76923077
A92: 90 | B92: 55.38461538
A93: 91 | B93: 56
A94: 92 | B94: 56.61538462
A95: 93 | B95: 57.23076923
A96: 94 | B96: 57.84615385
A97: 95 | B97: 58.46153846
A98: 96 | B98: 59.07692308
A99: 97 | B99: 59.69230769
A100: 98 | B100: 60.30769231
A101: 99 | B101: 60.92307692
A102: 100 | B102: 61.53846154

Sheet Geometry wing
A1: WING
J2: NpbL | K2: ='Customer needs'!B2 -> 24
A5: Type 1: | B5: Rectangle
J6: In function of the body: the width is going to be 0,2*NpbL
J7: Number of blocks | M7: Npw=NpwL*NpwW | N7: =ROUND(M9*M10,0) -> 65
L9: NpwW | M9: =ROUND(0.2*$K$2,0) -> 5
A10: y | H10: x=2,5*y | L10: NpwL | M10: =ROUND( (2.5*M9),0) -> 13
J12: nsw=number of squares in the wing=
L13: aw | M13: =RANDBETWEEN(0,10) -> 9
L14: nsw | M14: =ROUNDDOWN(M13*N7/10,0) -> 58
L15: aw | M15: =(M14/N7)*10 -> 8.923076923
C16: 3 | J16: ntw=number of triangle in the wing=
M17: bw | N17: =IF(M15>=10,0,RANDBETWEEN(0,10-M15)) -> 1
L19: ntw | M19: =EVEN(2*N17*N7/10) -> 14
L20: bw | M20: =(M19/(N7*2))*10 -> 1.076923077
J21: nbtw= number of big triangle in the wing=
L22: cw | M22: =10-M15-M20 -> 0 | O22: =M13+M20+M22 -> 10.07692308
L23: nbtw | M23: =EVEN(M22*N7/10) -> 0 | O23: =M14+M19/2+M23 -> 65
A26: Type 2: | B26: Triangle
J27: In function of the body: the width is going to be 0,3*NpbL
J28: Number of blocks | M28: Npw=NpwL*NpwW/2 | N28: =M30*M31/2 -> 49
L30: NpwW | M30: =ROUND(0.3*$K$2,0) -> 7
L31: NpwL | M31: =ROUND( (2*M30),0) -> 14
H32: x=2y
J33: nbtw= number of big triangle in the wing=
L34: aw | M34: =RANDBETWEEN(0,10) -> 3
L35: nbtw | M35: =EVEN(M30 +(M34/10)*(N28-M30)) -> 20
L36: aw | M36: =M35/N28*10 -> 4.081632653
J37: ntw=number of triangle in the wing=
L38: bw | M38: =IF(M36>=10,0,RANDBETWEEN(0,10-M36)) -> 0
L40: ntw | M40: =EVEN(2*M38*N28/10) -> 0
L41: bw | M41: =M40/(N28*2)*10 -> 0
J43: nsw=number of squares in the wing=
L44: cw | M44: =10-M36-M41 -> 5.918367347 | O44: =M36+M41+M44 -> 10
L45: nsw | M45: =ROUNDDOWN(M44*N28/10,0) -> 29 | O45: =M35+(M40/2)+M45 -> 49
A49: Type 3: | B49: Triangle2
J50: In function of the body: the width is going to be 0,3*NpbL
J51: Number of blocks | M51: Npw | N51: =(M53-1)*M54/2+M54 -> 48
L53: NpwW | M53: =ROUND(0.3*K2,0) -> 7
L54: NpwL | M54: =2*(M53-1) -> 12
H55: x=2(y-1)
J56: nbtw= number of big triangle in the wing=
L57: aw
L58: nbtw | M58: =M53-1 -> 6
L59: aw
J60: ntw=number of triangle in the wing=
L61: bw
L62: ntw | M62: =1 -> 1
L63: bw
J65: nsw=number of squares in the wing=
L66: cw | O66: =M57+M61+M66 -> 0
B67: t | L67: nsw | M67: =((M53-1)*M54/2)-M58+M54-1 -> 41 | O67: =M58+M62/2+M67 -> 47.5
A68: 2 | B68: 3
A70: Type | B70: 1 | C70: 2 | D70: 3
A72: nsw | B72: =$M$14 -> 58 | C72: =$M$45 -> 29 | D72: =$M$67 -> 41
A73: ntw | B73: =$M$19 -> 14 | C73: =$M$40 -> 0 | D73: =$M$62 -> 1
A74: nbtw | B74: =$M$23 -> 0 | C74: =$M$35 -> 20 | D74: =$M$58 -> 6
A75: NpwL | B75: =$M$10 -> 13 | C75: =$M$31 -> 14 | D75: =$M$54 -> 12

Sheet Review information
A8: CUSTOMER CONSTRAINS
A9: nsb=number of squares in the body | D9: nsc=number of squares in the cockpit | G9: nsw=number of squares in the wing | J9: nst=number of squares in the tail | Q9: To measure all these variable, the player will introduce the pieces in order: body, tail, wing, cockpit
A10: ntb=number of triangle in the body | D10: ntc=number of triangle in the cockpit | G10: ntw=number of triangle in the wing | J10: ntt=number of triangle in the tail
A11: nbtb= number of big triangle in the body | D11: nbtc= number of big triangle in the cockpit | G11: nbtw= number of big triangle in the wing | J11: nbtt= number of big triangle in the tail
A12: ne= number of engines
B16: Capacity (Number pass), just in the body | H16: INTERNAL CONSTRAINS | N16: CUSTOMER CONSTRAINS
C17: NP= number total of pass = nbs*3 + ntb + nbtb
C18: NPC= number of pass. required by the customer | N18: NP>= NPC
B20: Fast/Slow
C21: Weight= Wb +Wt+Ww+We +Wc
D22: Wb= weight body= nsb*11,5 + ntb * 6 +nbtb * 8
D23: Wt= weight tail= nst*10 + ntt* 5 +nbtt * 7
D24: Ww= weight wing= nsw*10 + ntw * 5 +nbtw * 7
D25: We= weight engine= ne*50
D26: Wc= weight cockpit= nsc*11,5 + ntc * 6 +nbtc * 8
N27: FAST -->
C28: Total Power =ne*500 | O28: Ratio of Power>= 66%
C29: Free Power= Total power- Weight
C30: Ratio of Power= Free Power/ Weight | G30: See graphic of power | N30: MEDIUM-->
C31: Lift =( Wing Surface + Tail Surface) * Coeficient of Lift | H31: Lift/ Weight >1,5 | J31: Condition of Fly | O31: 50%<Ratio of Power< 66%
D32: Wing Surface= 1*nsw +0,5* ntw + 1*nbtw=[number of block] | H32: 3<(Wing Surface/ Wing Tail)<6 | J32: Condition of Stability
D33: Wing Tail= 1*nst +0,5* ntt + 1*nbtt | N33: SLOW-->
D34: Coeficient of Lift = we can get front the grafic of power. Introducing the Ratio of Power. | O34: Ratio of Power <= 50%
B36: Km of travel
C37: We are goin to consider that the capacity of fuel per unit of surface(each block of the grid) depends of the number of engines
N38: INTERNATIONAL (Europe)-->
E39: 2 ENGINES --> | G39: 200 Km / block | O39: Km of travel> 5000
C40: Distance/ block | E40: 4 ENGINES --> | G40: 150 Km/ block
E41: 6 ENGINES--> | G41: 100 Km/ block | N41: TRANSATLANTIC (America)
O42: Km of travel> 10000
C43: Km of travel = Wing Surface * Distance/ block
N44: VERY HIGH AUTONOMY (Australia)
O45: Km of travel> 15000
B47: Parking requirements
B48: We have calculate before L and W ( in the manufacturing information)
C49: LC= lenght required by the customer | N49: L< min( LC, Lm)
C50: WsC= Wingspan required by the customer | N50: Ws< min( WsC, Wsm)
C51: Lm= lenght maximun of manufacturing
C52: Wsm= Wingspan of manufacturing
B53: Cost
C54: Cost= Cb+ Cw+ Ct+ Cc +Ce
D55: Cb= Cost of the body= nsb*130 + ntb* 70 + nbtb*170
D56: Cw= Cost of the wing= nsw*100 + ntw* 60 + nbtw*160 | N56: CC<= Cost
D57: Ct= Cost of the tail= nst*100 + ntt* 60 + nbtt*160
D58: Cc= Cost of the cockpit= nsc*100 + ntc* 60 + nbtc*160
D59: Ce= Cost of the engines= ne*500
C60: CC=Cost required by customer
B62: High/ Medium/ Low efficiency
C63: We need more time to decide if put or not this, because maybe is to much difficult.
B65: Delivery time
C66: Dt= Total time of supplier + Total time of assembly + Time of design+ Time between departmentes
D67: Total time of supplier= (nsb+nsc)*tss2 + (nst+nsw)*tss1 +(ntb+ntc)*tst2 + (ntt+ntw)*tst1 + (nbtb+nbtc)*tbts2 + (nbtt+nbtw)*tbts1 + ne* tse | N67: Dt<= DCt
D68: Total time of assembly= (nsb+nsc)*tsa2 + (nst+nsw)*tsa1 +(ntb+ntc)*tat2 + (ntt+ntw)*tat1 + (nbtb+nbtc)*tbta2 + (nbtt+nbtw)*tbta1 + ne* tae
D69: Time of design= we need to put a clock to measure this time. We need to scale this time to have relevance with respect to the others, when we study the duration of the design player.
D71: Time betwen departments=300 sec*4
C72: DCt= Delivery Customer Time
A74: DESING CONSTRAINS
A75: Engines
B76: Engines--> to put an engine must be at least 3 block ahead to assembly it.
C77: We suppose when we put a piece in a point, in the position matrix apears a 1
C78: (xe, ye)= point where we want put the engine
D79: Has (xe, ye+3) piece?--> | F79: yes-- ok
F80: no-- imposiblle
D81: Has (xe, ye+2) piece?--> | F81: yes-- ok
F82: no-- imposiblle
D83: Has (xe, ye+1) piece?--> | F83: yes-- ok
F84: no-- imposiblle
A85: Wings
B86: Angle of the wing --> the wing can´t be reverse
H87: y1w >= y2w
H88: See airplane geometry
B90: Position of the wing
H91: y1b>=y1w
H92: y1b>=60% L
H93: See airplane geometry
B95: Width of the wing | H95: (y1w - y4w)>= 20% L
B97: Ratio of the wing | H97: 0,3<=(y1w-y4w)/(x2w-x4w)<=1
H98: See airplane geometry
B99: P2w and P3w are free, and can be the same point.
A102: Tails
B103: Angle of the tail --> the tail can´t be reverse
H104: y1t >= y2t
H105: See airplane geometry
B107: Position of the tail
H108: (y4w-y1t) >=20%L
H109: See airplane geometry
B111: Width of the wing | H111: abs(y4t - y1t)<= 60% (y1w-y4w)
B113: Ratio of the tail | H113: 0,3<=(y4t-y1t)/(x2t-x4t)<=1
H114: See airplane geometry
B115: P2t and P3t are free, and can be the same point.
B117: The relation between the tail and the wing is given before.
A119: Cockpit
B120: The geometry of the triangle must be: | H120: (2*x2c)/y1c<=1
H121: See airplane geometry
A122: Body
B123: The geometry of the body must be: | H123: (yb1-yb2)/(2*abs(xb1))>=3
H124: See airplane geometry
A126: MANUFACTURING CONSTRAINS
A127: The constrain of the airplane dimesion have already been defined.
A129: The assembly time have already been defined. | E129: We have put that the squares and little triangles are the most difficult to assembly because of they are of worse quality and the friction is going to be higher, so they need to be better fix.
E132: See the characteristics of the pieces
A138: SUPPLIER CONSTRAINS
A140: The supplier time have already been defined.
A142: STOCK
B143: Each piece is going to have an fix stock in the begining. If the player need more (that will be usual), he´ll need to order the new pieces. It will increase the cost and time. With the lean tools the player will change the initial production of the suplier.
C146: Sis= Initial stock square= 10
C147: Sit= Inital stock triangle= 10
C149: Sibt=Initial stock big triangle=2
C150: Sie=Initial stock engines=2

Sheet Employee Saturation
A2: Employee Saturation
A4: We are supossing:
B6: If the project is feasible the emploee is forced to start with it.
B7: When the project is unfeasible (big dimesion of the airplane….) it can be reject.
B8: The saturation level goes since 50% till 90% (If is not in this range, the company will be ruined, and the game is over)
B9: The highest performance is reached in 70%
B10: If the number of working project is higher that 5 the game is over, because of oversaturation
F13: 0 project--> 30%--> GAME OVER
F15: 1 project --> 50%
F17: 2 project--> 70%
C18: Employee Saturation
F19: 3 project--> 80%
F21: 4 project--> 90%
F23: 5 project--> GAME OVER

Sheet Design information
E13: lbt=2
B15: ls=1 | D15: lt=1
J18: The pieces with capacity for passenger can be put just in the body.
K28: Assemby matrix
K29: square | L29: triangle | M29: big triangle | N29: engine
K30: 4 | L30: 10 | M30: 7 | N30: 24
K31: 10 | L31: 6 | M31: 9 | N31: 26
K32: 7 | L32: 9 | M32: 3 | N32: 23
K33: 24 | L33: 26 | M33: 23 | N33: 20
K35: This is the assemby matrix, but is very difficult to measure the pieces possition and its neigbour, so we are thinking not to do it yet

Sheet Manufacturing información
A7: Considering the plane as a matrix 50*35 and that we are going to put the axes of the airlplane.
A9: To calculate the length, we are going to use the vertical axe | F9: see airplane geometry
B11: L= y1c-y2b
A14: To calculate the wingspan, we are going to use the horizontal axe
B16: Ws= 2*max[abs(x2w),abs(x3w)]

Sheet Airplane geometry
G3: P1c
F6: P2c=P1b
F11: P1w
K16: Ww= width wing | M16: Lb=lenght body
C17: P2w
D20: P3w | F20: P4w
F26: P1t
E27: P2t
F29: P3t P4t
G30: P2b
